Workbook

Sheet Introduction
C4: Joint Monitoring Programme for Water Supply, Sanitation and Hygiene
C6: Estimates on household water, sanitation and hygiene by wealth quintile and sub-national region in
C7: =+Water!B5 -> Maldives
C9: Updated May 2021
C11: Follow the links below to find the following information:
C13: JMP Estimates
C14: WASH status and trends by wealth quintile (customized quintiles made without water and sanitation assets)
C15: Water
C16: Sanitation
C17: Hygiene
C19: Data inputs
C20: customized wealth quintiles and subnational data:
C21: =IF(INDIRECT(CONCATENATE("Water","!B105"))=0,"",INDIRECT(CONCATENATE("Water","!B105"))) -> DHS17
C22: =IF(INDIRECT(CONCATENATE("Water","!B106"))=0,"",INDIRECT(CONCATENATE("Water","!B106"))) -> 
C23: =IF(INDIRECT(CONCATENATE("Water","!B107"))=0,"",INDIRECT(CONCATENATE("Water","!B107"))) -> 
C24: =IF(INDIRECT(CONCATENATE("Water","!B108"))=0,"",INDIRECT(CONCATENATE("Water","!B108"))) -> 
C25: =IF(INDIRECT(CONCATENATE("Water","!B109"))=0,"",INDIRECT(CONCATENATE("Water","!B109"))) -> 
C26: =IF(INDIRECT(CONCATENATE("Water","!B110"))=0,"",INDIRECT(CONCATENATE("Water","!B110"))) -> 
C27: =IF(INDIRECT(CONCATENATE("Water","!B111"))=0,"",INDIRECT(CONCATENATE("Water","!B111"))) -> 
C28: =IF(INDIRECT(CONCATENATE("Water","!B112"))=0,"",INDIRECT(CONCATENATE("Water","!B112"))) -> 
C29: =IF(INDIRECT(CONCATENATE("Water","!B113"))=0,"",INDIRECT(CONCATENATE("Water","!B113"))) -> 
C30: =IF(INDIRECT(CONCATENATE("Water","!B114"))=0,"",INDIRECT(CONCATENATE("Water","!B114"))) -> 
C31: =IF(INDIRECT(CONCATENATE("Water","!B115"))=0,"",INDIRECT(CONCATENATE("Water","!B115"))) -> 
C32: =IF(INDIRECT(CONCATENATE("Water","!B116"))=0,"",INDIRECT(CONCATENATE("Water","!B116"))) -> 
L55: =+IF(ISNUMBER(M48), "", "Insufficient data to estimate safely managed sanitation services at national level") -> Insufficient data to estimate safely managed sanitation services at national level

Sheet Water
A1: BGD
B4: Summary of trends in use of drinking water by wealth quintile (%)
B5: =IF(ISERROR(INDIRECT(CONCATENATE($B105,"!A2"))),"",INDIRECT(CONCATENATE($B105,"!A2"))) -> Maldives
B7: =B118 -> National use of drinking water sources, 2013–2020 | J7: =B218 -> Urban use of drinking water sources, 2013–2020 | R7: =B318 -> Rural use of drinking water sources, 2013–2020
B31: =IF(ISERROR(INDIRECT(CONCATENATE($B105,"!A2"))),"",INDIRECT(CONCATENATE($B105,"!A2"))) -> Maldives | F31: Poorest | J31: Poor | N31: Middle | R31: Rich | V31: Richest
F32: Basic | G32: Limited | H32: Unimproved | I32: Surface water | J32: Basic | K32: Limited | L32: Unimproved | M32: Surface water | N32: Basic | O32: Limited | P32: Unimproved | Q32: Surface water | R32: Basic | S32: Limited | T32: Unimproved | U32: Surface water | V32: Basic | W32: Limited | X32: Unimproved | Y32: Surface water
B33: NATIONAL | D33: Estimate | E33: =C99 -> 2013 | F33: =E99 -> 98.72192133 | G33: =F99 -> 0.1869636223 | H33: 1.091115047 | I33: 0 | J33: =J99 -> 99.65613645 | K33: =K99 -> 0.1153765867 | L33: 0.2284869634 | M33: 0 | N33: =O99 -> 100 | O33: =P99 -> 0 | P33: 0 | Q33: 0 | R33: =T99 -> 99.90143463 | S33: =U99 -> 0.05931067831 | T33: 0.03925469021 | U33: 0 | V33: =Y99 -> 99.68341097 | W33: =Z99 -> 0 | X33: 0.3165890322 | Y33: 0
E34: =C100 -> 2020 | F34: =E100 -> 98.72192133 | G34: 0.1869636223 | H34: 1.091115047 | I34: 0 | J34: =J100 -> 99.65613645 | K34: 0.1153765867 | L34: 0.2284869634 | M34: 0 | N34: =O100 -> 100 | O34: 0 | P34: 0 | Q34: 0 | R34: =T100 -> 99.90143463 | S34: 0.05931067831 | T34: 0.03925469021 | U34: 0 | V34: =Y100 -> 99.68341097 | W34: 0 | X34: 0.3165890322 | Y34: 0
B36: URBAN | D36: Estimate | E36: =C199 -> 2013 | F36: =E199 -> 98.73273311 | G36: =F199 -> 0 | H36: 1.267266892 | I36: 0 | J36: =J199 -> 100 | K36: =K199 -> 0 | L36: 0 | M36: 0 | N36: =O199 -> 100 | O36: =P199 -> 0 | P36: 0 | Q36: 0 | R36: =T199 -> 100 | S36: =U199 -> 0 | T36: 0 | U36: 0 | V36: =Y199 -> 99.231693 | W36: =Z199 -> 0 | X36: 0.7683070019 | Y36: 0
E37: =C200 -> 2020 | F37: =E200 -> 98.73273311 | G37: 0 | H37: 1.267266892 | I37: 0 | J37: =J200 -> 100 | K37: 0 | L37: 0 | M37: 0 | N37: =O200 -> 100 | O37: 0 | P37: 0 | Q37: 0 | R37: =T200 -> 100 | S37: 0 | T37: 0 | U37: 0 | V37: =Y200 -> 99.231693 | W37: 0 | X37: 0.7683070019 | Y37: 0
B39: RURAL | D39: Estimate | E39: =C299 -> 2013 | F39: =E299 -> 99.00802856 | G39: =F299 -> 0.3184925493 | H39: 0.6734788884 | I39: 0 | J39: =J299 -> 99.55531466 | K39: =K299 -> 0.1516708862 | L39: 0.2930144537 | M39: 0 | N39: =O299 -> 99.56535293 | O39: =P299 -> 0.04504817265 | P39: 0.3895988969 | Q39: 0 | R39: =T299 -> 99.8987712 | S39: =U299 -> 0.1012288025 | T39: 0 | U39: 0 | V39: =Y299 -> 99.93325649 | W39: =Z299 -> 0 | X39: 0.06674350947 | Y39: 0
E40: =C300 -> 2020 | F40: =E300 -> 99.00802856 | G40: 0.3184925493 | H40: 0.6734788884 | I40: 0 | J40: =J300 -> 99.55531466 | K40: 0.1516708862 | L40: 0.2930144537 | M40: 0 | N40: =O300 -> 99.56535293 | O40: 0.04504817265 | P40: 0.3895988969 | Q40: 0 | R40: =T300 -> 99.8987712 | S40: 0.1012288025 | T40: 0 | U40: 0 | V40: =Y300 -> 99.93325649 | W40: 0 | X40: 0.06674350947 | Y40: 0
A97: NATIONAL | D97: Poorest | I97: Poor | N97: Middle | S97: Rich | X97: Richest
D98: Improved | E98: Basic | F98: Limited | G98: Unimproved | H98: Surface water | I98: Improved | J98: Basic | K98: Limited | L98: Unimproved | M98: Surface water | N98: Improved | O98: Basic | P98: Limited | Q98: Unimproved | R98: Surface water | S98: Improved | T98: Basic | U98: Limited | V98: Unimproved | W98: Surface water | X98: Improved | Y98: Basic | Z98: Limited | AA98: Unimproved | AB98: Surface water
A99: Forecast period: | C99: =MinBase(C105:C116) -> 2013 | D99: =IF((D101+H101)>100,D101*100/(D101+H101),D101) -> 98.90888495 | E99: =D99*AVERAGEIF(E105:E116,">0")/100 -> 98.72192133 | F99: =D99*(100-AVERAGEIF(E105:E116,">0"))/100 -> 0.1869636223 | G99: =100-(E99+F99+H99) -> 1.091115047 | H99: =IF((D101+H101)>100,H101*100/(D101+H101),H101) -> 0 | I99: =IF((I101+M101)>100,I101*100/(I101+M101),I101) -> 99.77151304 | J99: =I99*AVERAGEIF(J105:J116,">0")/100 -> 99.65613645 | K99: =I99*(100-AVERAGEIF(J105:J116,">0"))/100 -> 0.1153765867 | L99: =100-(J99+K99+M99) -> 0.2284869634 | M99: =IF((I101+M101)>100,M101*100/(I101+M101),M101) -> 0 | N99: =IF((N101+R101)>100,N101*100/(N101+R101),N101) -> 100 | O99: =N99*AVERAGEIF(O105:O116,">0")/100 -> 100 | P99: =N99*(100-AVERAGEIF(O105:O116,">0"))/100 -> 0 | Q99: =100-(O99+P99+R99) -> 0 | R99: =IF((N101+R101)>100,R101*100/(N101+R101),R101) -> 0 | S99: =IF((S101+W101)>100,S101*100/(S101+W101),S101) -> 99.96074531 | T99: =S99*AVERAGEIF(T105:T116,">0")/100 -> 99.90143463 | U99: =S99*(100-AVERAGEIF(T105:T116,">0"))/100 -> 0.05931067831 | V99: =100-(T99+U99+W99) -> 0.03925469021 | W99: =IF((S101+W101)>100,W101*100/(S101+W101),W101) -> 0 | X99: =IF((X101+AB101)>100,X101*100/(X101+AB101),X101) -> 99.68341097 | Y99: =X99*AVERAGEIF(Y105:Y116,">0")/100 -> 99.68341097 | Z99: =X99*(100-AVERAGEIF(Y105:Y116,">0"))/100 -> 0 | AA99: =100-(Y99+Z99+AB99) -> 0.3165890322 | AB99: =IF((X101+AB101)>100,AB101*100/(X101+AB101),AB101) -> 0
C100: =MaxTarget(C105:C116) -> 2020 | D100: =IF((D102+H102)>100,D102*100/(D102+H102),D102) -> 98.90888495 | E100: =D100*AVERAGEIF(E105:E116,">0")/100 -> 98.72192133 | F100: =D100*(100-AVERAGEIF(E105:E116,">0"))/100 -> 0.1869636223 | G100: =100-(E100+F100+H100) -> 1.091115047 | H100: =IF((D102+H102)>100,H102*100/(D102+H102),H102) -> 0 | I100: =IF((I102+M102)>100,I102*100/(I102+M102),I102) -> 99.77151304 | J100: =I100*AVERAGEIF(J105:J116,">0")/100 -> 99.65613645 | K100: =I100*(100-AVERAGEIF(J105:J116,">0"))/100 -> 0.1153765867 | L100: =100-(J100+K100+M100) -> 0.2284869634 | M100: =IF((I102+M102)>100,M102*100/(I102+M102),M102) -> 0 | N100: =IF((N102+R102)>100,N102*100/(N102+R102),N102) -> 100 | O100: =N100*AVERAGEIF(O105:O116,">0")/100 -> 100 | P100: =N100*(100-AVERAGEIF(O105:O116,">0"))/100 -> 0 | Q100: =100-(O100+P100+R100) -> 0 | R100: =IF((N102+R102)>100,R102*100/(N102+R102),R102) -> 0 | S100: =IF((S102+W102)>100,S102*100/(S102+W102),S102) -> 99.96074531 | T100: =S100*AVERAGEIF(T105:T116,">0")/100 -> 99.90143463 | U100: =S100*(100-AVERAGEIF(T105:T116,">0"))/100 -> 0.05931067831 | V100: =100-(T100+U100+W100) -> 0.03925469021 | W100: =IF((S102+W102)>100,W102*100/(S102+W102),W102) -> 0 | X100: =IF((X102+AB102)>100,X102*100/(X102+AB102),X102) -> 99.68341097 | Y100: =X100*AVERAGEIF(Y105:Y116,">0")/100 -> 99.68341097 | Z100: =X100*(100-AVERAGEIF(Y105:Y116,">0"))/100 -> 0 | AA100: =100-(Y100+Z100+AB100) -> 0.3165890322 | AB100: =IF((X102+AB102)>100,AB102*100/(X102+AB102),AB102) -> 0
A101: Regression period: | C101: =MinRegYear(C99,C105:C116) -> 2015 | D101: =IF(MAX(C105:C116)-MIN(C105:C116)<5,AVERAGEIF(C105:C116,">0",D105:D116), IF(FORECAST($C101,D$105:D$116,$C$105:$C$116)<0,0, IF(FORECAST($C101,D$105:D$116,$C$105:$C$116)>100,100, FORECAST($C101,D$105:D$116,$C$105:$C$116)))) -> 98.90888495 | H101: =IF(MAX(C105:C116)-MIN(C105:C116)<5,AVERAGEIF(C105:C116,">0",H105:H116), IF(FORECAST($C101,H$105:H$116,$C$105:$C$116)<0,0, IF(FORECAST($C101,H$105:H$116,$C$105:$C$116)>100,100, FORECAST($C101,H$105:H$116,$C$105:$C$116)))) -> 0 | I101: =IF(MAX(C105:C116)-MIN(C105:C116)<5,AVERAGEIF(C105:C116,">0",I105:I116), IF(FORECAST($C101,I$105:I$116,$C$105:$C$116)<0,0, IF(FORECAST($C101,I$105:I$116,$C$105:$C$116)>100,100, FORECAST($C101,I$105:I$116,$C$105:$C$116)))) -> 99.77151304 | M101: =IF(MAX(C105:C116)-MIN(C105:C116)<5,AVERAGEIF(C105:C116,">0",M105:M116), IF(FORECAST($C101,M$105:M$116,$C$105:$C$116)<0,0, IF(FORECAST($C101,M$105:M$116,$C$105:$C$116)>100,100, FORECAST($C101,M$105:M$116,$C$105:$C$116)))) -> 0 | N101: =IF(MAX(C105:C116)-MIN(C105:C116)<5,AVERAGEIF(C105:C116,">0",N105:N116), IF(FORECAST($C101,N$105:N$116,$C$105:$C$116)<0,0, IF(FORECAST($C101,N$105:N$116,$C$105:$C$116)>100,100, FORECAST($C101,N$105:N$116,$C$105:$C$116)))) -> 100 | R101: =IF(MAX(C105:C116)-MIN(C105:C116)<5,AVERAGEIF(C105:C116,">0",R105:R116), IF(FORECAST($C101,R$105:R$116,$C$105:$C$116)<0,0, IF(FORECAST($C101,R$105:R$116,$C$105:$C$116)>100,100, FORECAST($C101,R$105:R$116,$C$105:$C$116)))) -> 0 | S101: =IF(MAX(C105:C116)-MIN(C105:C116)<5,AVERAGEIF(C105:C116,">0",S105:S116), IF(FORECAST($C101,S$105:S$116,$C$105:$C$116)<0,0, IF(FORECAST($C101,S$105:S$116,$C$105:$C$116)>100,100, FORECAST($C101,S$105:S$116,$C$105:$C$116)))) -> 99.96074531 | W101: =IF(MAX(C105:C116)-MIN(C105:C116)<5,AVERAGEIF(C105:C116,">0",W105:W116), IF(FORECAST($C101,W$105:W$116,$C$105:$C$116)<0,0, IF(FORECAST($C101,W$105:W$116,$C$105:$C$116)>100,100, FORECAST($C101,W$105:W$116,$C$105:$C$116)))) -> 0 | X101: =IF(MAX(C105:C116)-MIN(C105:C116)<5,AVERAGEIF(C105:C116,">0",X105:X116), IF(FORECAST($C101,X$105:X$116,$C$105:$C$116)<0,0, IF(FORECAST($C101,X$105:X$116,$C$105:$C$116)>100,100, FORECAST($C101,X$105:X$116,$C$105:$C$116)))) -> 99.68341097 | AB101: =IF(MAX(C105:C116)-MIN(C105:C116)<5,AVERAGEIF(C105:C116,">0",AB105:AB116), IF(FORECAST($C101,AB$105:AB$116,$C$105:$C$116)<0,0, IF(FORECAST($C101,AB$105:AB$116,$C$105:$C$116)>100,100, FORECAST($C101,AB$105:AB$116,$C$105:$C$116)))) -> 0
C102: =MaxRegYear(C100,C105:C116) -> 2019 | D102: =IF(MAX(C105:C116)-MIN(C105:C116)<5,AVERAGEIF(C105:C116,">0",D105:D116), IF(FORECAST($C102,D$105:D$116,$C$105:$C$116)<0,0, IF(FORECAST($C102,D$105:D$116,$C$105:$C$116)>100,100, FORECAST($C102,D$105:D$116,$C$105:$C$116)))) -> 98.90888495 | H102: =IF(MAX(C105:C116)-MIN(C105:C116)<5,AVERAGEIF(C105:C116,">0",H105:H116), IF(FORECAST($C102,H$105:H$116,$C$105:$C$116)<0,0, IF(FORECAST($C102,H$105:H$116,$C$105:$C$116)>100,100, FORECAST($C102,H$105:H$116,$C$105:$C$116)))) -> 0 | I102: =IF(MAX(C105:C116)-MIN(C105:C116)<5,AVERAGEIF(C105:C116,">0",I105:I116), IF(FORECAST($C102,I$105:I$116,$C$105:$C$116)<0,0, IF(FORECAST($C102,I$105:I$116,$C$105:$C$116)>100,100, FORECAST($C102,I$105:I$116,$C$105:$C$116)))) -> 99.77151304 | M102: =IF(MAX(C105:C116)-MIN(C105:C116)<5,AVERAGEIF(C105:C116,">0",M105:M116), IF(FORECAST($C102,M$105:M$116,$C$105:$C$116)<0,0, IF(FORECAST($C102,M$105:M$116,$C$105:$C$116)>100,100, FORECAST($C102,M$105:M$116,$C$105:$C$116)))) -> 0 | N102: =IF(MAX(C105:C116)-MIN(C105:C116)<5,AVERAGEIF(C105:C116,">0",N105:N116), IF(FORECAST($C102,N$105:N$116,$C$105:$C$116)<0,0, IF(FORECAST($C102,N$105:N$116,$C$105:$C$116)>100,100, FORECAST($C102,N$105:N$116,$C$105:$C$116)))) -> 100 | R102: =IF(MAX(C105:C116)-MIN(C105:C116)<5,AVERAGEIF(C105:C116,">0",R105:R116), IF(FORECAST($C102,R$105:R$116,$C$105:$C$116)<0,0, IF(FORECAST($C102,R$105:R$116,$C$105:$C$116)>100,100, FORECAST($C102,R$105:R$116,$C$105:$C$116)))) -> 0 | S102: =IF(MAX(C105:C116)-MIN(C105:C116)<5,AVERAGEIF(C105:C116,">0",S105:S116), IF(FORECAST($C102,S$105:S$116,$C$105:$C$116)<0,0, IF(FORECAST($C102,S$105:S$116,$C$105:$C$116)>100,100, FORECAST($C102,S$105:S$116,$C$105:$C$116)))) -> 99.96074531 | W102: =IF(MAX(C105:C116)-MIN(C105:C116)<5,AVERAGEIF(C105:C116,">0",W105:W116), IF(FORECAST($C102,W$105:W$116,$C$105:$C$116)<0,0, IF(FORECAST($C102,W$105:W$116,$C$105:$C$116)>100,100, FORECAST($C102,W$105:W$116,$C$105:$C$116)))) -> 0 | X102: =IF(MAX(C105:C116)-MIN(C105:C116)<5,AVERAGEIF(C105:C116,">0",X105:X116), IF(FORECAST($C102,X$105:X$116,$C$105:$C$116)<0,0, IF(FORECAST($C102,X$105:X$116,$C$105:$C$116)>100,100, FORECAST($C102,X$105:X$116,$C$105:$C$116)))) -> 99.68341097 | AB102: =IF(MAX(C105:C116)-MIN(C105:C116)<5,AVERAGEIF(C105:C116,">0",AB105:AB116), IF(FORECAST($C102,AB$105:AB$116,$C$105:$C$116)<0,0, IF(FORECAST($C102,AB$105:AB$116,$C$105:$C$116)>100,100, FORECAST($C102,AB$105:AB$116,$C$105:$C$116)))) -> 0
B104: Survey | C104: Year | D104: Improved | E104: % Improved < = 30min | H104: Surface water | I104: Improved | J104: % Improved < = 30min | M104: Surface water | N104: Improved | O104: % Improved < = 30min | R104: Surface water | S104: Improved | T104: % Improved < = 30min | W104: Surface water | X104: Improved | Y104: % Improved < = 30min | AB104: Surface water
B105: DHS17 | C105: 2017 | D105: =IF(ISERROR(INDIRECT(CONCATENATE($B105,"!C16"))),"",INDIRECT(CONCATENATE($B105,"!C16"))) -> 98.90888495 | E105: =IF(ISERROR(INDIRECT(CONCATENATE($B105,"!C23"))),"",INDIRECT(CONCATENATE($B105,"!C23"))) -> 99.81097389 | H105: =IF(ISERROR(INDIRECT(CONCATENATE($B105,"!C21"))),"",INDIRECT(CONCATENATE($B105,"!C21"))) -> 0 | I105: =IF(ISERROR(INDIRECT(CONCATENATE($B105,"!D16"))),"",INDIRECT(CONCATENATE($B105,"!D16"))) -> 99.77151304 | J105: =IF(ISERROR(INDIRECT(CONCATENATE($B105,"!D23"))),"",INDIRECT(CONCATENATE($B105,"!D23"))) -> 99.88435919 | M105: =IF(ISERROR(INDIRECT(CONCATENATE($B105,"!D21"))),"",INDIRECT(CONCATENATE($B105,"!D21"))) -> 0 | N105: =IF(ISERROR(INDIRECT(CONCATENATE($B105,"!E16"))),"",INDIRECT(CONCATENATE($B105,"!E16"))) -> 100 | O105: =IF(ISERROR(INDIRECT(CONCATENATE($B105,"!E23"))),"",INDIRECT(CONCATENATE($B105,"!E23"))) -> 100 | R105: =IF(ISERROR(INDIRECT(CONCATENATE($B105,"!E21"))),"",INDIRECT(CONCATENATE($B105,"!E21"))) -> 0 | S105: =IF(ISERROR(INDIRECT(CONCATENATE($B105,"!F16"))),"",INDIRECT(CONCATENATE($B105,"!F16"))) -> 99.96074531 | T105: =IF(ISERROR(INDIRECT(CONCATENATE($B105,"!F23"))),"",INDIRECT(CONCATENATE($B105,"!F23"))) -> 99.94066603 | W105: =IF(ISERROR(INDIRECT(CONCATENATE($B105,"!F21"))),"",INDIRECT(CONCATENATE($B105,"!F21"))) -> 0 | X105: =IF(ISERROR(INDIRECT(CONCATENATE($B105,"!G16"))),"",INDIRECT(CONCATENATE($B105,"!G16"))) -> 99.68341097 | Y105: =IF(ISERROR(INDIRECT(CONCATENATE($B105,"!G23"))),"",INDIRECT(CONCATENATE($B105,"!G23"))) -> 100 | AB105: =IF(ISERROR(INDIRECT(CONCATENATE($B105,"!G221"))),"",INDIRECT(CONCATENATE($B105,"!G21"))) -> 0
D111: =IF(ISERROR(INDIRECT(CONCATENATE($B111,"!C16"))),"",INDIRECT(CONCATENATE($B111,"!C16"))) ->  | E111: =IF(ISERROR(INDIRECT(CONCATENATE($B111,"!C23"))),"",INDIRECT(CONCATENATE($B111,"!C23"))) ->  | H111: =IF(ISERROR(INDIRECT(CONCATENATE($B111,"!C21"))),"",INDIRECT(CONCATENATE($B111,"!C21"))) ->  | I111: =IF(ISERROR(INDIRECT(CONCATENATE($B111,"!D16"))),"",INDIRECT(CONCATENATE($B111,"!D16"))) ->  | J111: =IF(ISERROR(INDIRECT(CONCATENATE($B111,"!D23"))),"",INDIRECT(CONCATENATE($B111,"!D23"))) ->  | M111: =IF(ISERROR(INDIRECT(CONCATENATE($B111,"!D21"))),"",INDIRECT(CONCATENATE($B111,"!D21"))) ->  | N111: =IF(ISERROR(INDIRECT(CONCATENATE($B111,"!E16"))),"",INDIRECT(CONCATENATE($B111,"!E16"))) ->  | O111: =IF(ISERROR(INDIRECT(CONCATENATE($B111,"!E23"))),"",INDIRECT(CONCATENATE($B111,"!E23"))) ->  | R111: =IF(ISERROR(INDIRECT(CONCATENATE($B111,"!E21"))),"",INDIRECT(CONCATENATE($B111,"!E21"))) ->  | S111: =IF(ISERROR(INDIRECT(CONCATENATE($B111,"!F16"))),"",INDIRECT(CONCATENATE($B111,"!F16"))) ->  | T111: =IF(ISERROR(INDIRECT(CONCATENATE($B111,"!F23"))),"",INDIRECT(CONCATENATE($B111,"!F23"))) ->  | W111: =IF(ISERROR(INDIRECT(CONCATENATE($B111,"!F21"))),"",INDIRECT(CONCATENATE($B111,"!F21"))) ->  | X111: =IF(ISERROR(INDIRECT(CONCATENATE($B111,"!G16"))),"",INDIRECT(CONCATENATE($B111,"!G16"))) ->  | Y111: =IF(ISERROR(INDIRECT(CONCATENATE($B111,"!G23"))),"",INDIRECT(CONCATENATE($B111,"!G23"))) ->  | AB111: =IF(ISERROR(INDIRECT(CONCATENATE($B111,"!G221"))),"",INDIRECT(CONCATENATE($B111,"!G21"))) -> 
D112: =IF(ISERROR(INDIRECT(CONCATENATE($B112,"!C16"))),"",INDIRECT(CONCATENATE($B112,"!C16"))) ->  | E112: =IF(ISERROR(INDIRECT(CONCATENATE($B112,"!C23"))),"",INDIRECT(CONCATENATE($B112,"!C23"))) ->  | H112: =IF(ISERROR(INDIRECT(CONCATENATE($B112,"!C21"))),"",INDIRECT(CONCATENATE($B112,"!C21"))) ->  | I112: =IF(ISERROR(INDIRECT(CONCATENATE($B112,"!D16"))),"",INDIRECT(CONCATENATE($B112,"!D16"))) ->  | J112: =IF(ISERROR(INDIRECT(CONCATENATE($B112,"!D23"))),"",INDIRECT(CONCATENATE($B112,"!D23"))) ->  | M112: =IF(ISERROR(INDIRECT(CONCATENATE($B112,"!D21"))),"",INDIRECT(CONCATENATE($B112,"!D21"))) ->  | N112: =IF(ISERROR(INDIRECT(CONCATENATE($B112,"!E16"))),"",INDIRECT(CONCATENATE($B112,"!E16"))) ->  | O112: =IF(ISERROR(INDIRECT(CONCATENATE($B112,"!E23"))),"",INDIRECT(CONCATENATE($B112,"!E23"))) ->  | R112: =IF(ISERROR(INDIRECT(CONCATENATE($B112,"!E21"))),"",INDIRECT(CONCATENATE($B112,"!E21"))) ->  | S112: =IF(ISERROR(INDIRECT(CONCATENATE($B112,"!F16"))),"",INDIRECT(CONCATENATE($B112,"!F16"))) ->  | T112: =IF(ISERROR(INDIRECT(CONCATENATE($B112,"!F23"))),"",INDIRECT(CONCATENATE($B112,"!F23"))) ->  | W112: =IF(ISERROR(INDIRECT(CONCATENATE($B112,"!F21"))),"",INDIRECT(CONCATENATE($B112,"!F21"))) ->  | X112: =IF(ISERROR(INDIRECT(CONCATENATE($B112,"!G16"))),"",INDIRECT(CONCATENATE($B112,"!G16"))) ->  | Y112: =IF(ISERROR(INDIRECT(CONCATENATE($B112,"!G23"))),"",INDIRECT(CONCATENATE($B112,"!G23"))) ->  | AB112: =IF(ISERROR(INDIRECT(CONCATENATE($B112,"!G221"))),"",INDIRECT(CONCATENATE($B112,"!G21"))) -> 
B118: =CONCATENATE("National use of drinking water sources, ",C99,"–",C100) -> National use of drinking water sources, 2013–2020 | S118: Data points used for regression
E153: =IF(ISERROR(INDIRECT(CONCATENATE($B153,"!M18"))),"",INDIRECT(CONCATENATE($B153,"!M18"))) ->  | F153: =IF(ISERROR(INDIRECT(CONCATENATE($B153,"!M19"))),"",INDIRECT(CONCATENATE($B153,"!M19"))) ->  | G153: =IF(ISERROR(INDIRECT(CONCATENATE($B153,"!M20"))),"",INDIRECT(CONCATENATE($B153,"!M20"))) ->  | H153: =IF(ISERROR(INDIRECT(CONCATENATE($B153,"!M21"))),"",INDIRECT(CONCATENATE($B153,"!M21"))) ->  | J153: =IF(ISERROR(INDIRECT(CONCATENATE($B153,"!N18"))),"",INDIRECT(CONCATENATE($B153,"!N18"))) ->  | K153: =IF(ISERROR(INDIRECT(CONCATENATE($B153,"!N19"))),"",INDIRECT(CONCATENATE($B153,"!N19"))) ->  | L153: =IF(ISERROR(INDIRECT(CONCATENATE($B153,"!N20"))),"",INDIRECT(CONCATENATE($B153,"!N20"))) ->  | M153: =IF(ISERROR(INDIRECT(CONCATENATE($B153,"!N21"))),"",INDIRECT(CONCATENATE($B153,"!N21"))) ->  | O153: =IF(ISERROR(INDIRECT(CONCATENATE($B153,"!O18"))),"",INDIRECT(CONCATENATE($B153,"!O18"))) ->  | P153: =IF(ISERROR(INDIRECT(CONCATENATE($B153,"!O19"))),"",INDIRECT(CONCATENATE($B153,"!O19"))) ->  | Q153: =IF(ISERROR(INDIRECT(CONCATENATE($B153,"!O20"))),"",INDIRECT(CONCATENATE($B153,"!O20"))) ->  | R153: =IF(ISERROR(INDIRECT(CONCATENATE($B153,"!O21"))),"",INDIRECT(CONCATENATE($B153,"!O21"))) ->  | T153: =IF(ISERROR(INDIRECT(CONCATENATE($B153,"!P18"))),"",INDIRECT(CONCATENATE($B153,"!P18"))) ->  | U153: =IF(ISERROR(INDIRECT(CONCATENATE($B153,"!P19"))),"",INDIRECT(CONCATENATE($B153,"!P19"))) ->  | V153: =IF(ISERROR(INDIRECT(CONCATENATE($B153,"!P20"))),"",INDIRECT(CONCATENATE($B153,"!P20"))) ->  | W153: =IF(ISERROR(INDIRECT(CONCATENATE($B153,"!P21"))),"",INDIRECT(CONCATENATE($B153,"!P21"))) ->  | Y153: =IF(ISERROR(INDIRECT(CONCATENATE($B153,"!Q18"))),"",INDIRECT(CONCATENATE($B153,"!Q18"))) ->  | Z153: =IF(ISERROR(INDIRECT(CONCATENATE($B153,"!Q19"))),"",INDIRECT(CONCATENATE($B153,"!Q19"))) ->  | AA153: =IF(ISERROR(INDIRECT(CONCATENATE($B153,"!Q20"))),"",INDIRECT(CONCATENATE($B153,"!Q20"))) ->  | AB153: =IF(ISERROR(INDIRECT(CONCATENATE($B153,"!Q21"))),"",INDIRECT(CONCATENATE($B153,"!Q1"))) -> 
A197: URBAN | D197: Poorest | I197: Poor | N197: Middle | S197: Rich | X197: Richest
D198: Improved | E198: Basic | F198: Limited | G198: Unimproved | H198: Surface water | I198: Improved | J198: Basic | K198: Limited | L198: Unimproved | M198: Surface water | N198: Improved | O198: Basic | P198: Limited | Q198: Unimproved | R198: Surface water | S198: Improved | T198: Basic | U198: Limited | V198: Unimproved | W198: Surface water | X198: Improved | Y198: Basic | Z198: Limited | AA198: Unimproved | AB198: Surface water
A199: Forecast period: | C199: =MinBase(C205:C216) -> 2013 | D199: =IF((D201+H201)>100,D201*100/(D201+H201),D201) -> 98.73273311 | E199: =D199*AVERAGEIF(E205:E216,">0")/100 -> 98.73273311 | F199: =D199*(100-AVERAGEIF(E205:E216,">0"))/100 -> 0 | G199: =100-(E199+F199+H199) -> 1.267266892 | H199: =IF((D201+H201)>100,H201*100/(D201+H201),H201) -> 0 | I199: =IF((I201+M201)>100,I201*100/(I201+M201),I201) -> 100 | J199: =I199*AVERAGEIF(J205:J216,">0")/100 -> 100 | K199: =I199*(100-AVERAGEIF(J205:J216,">0"))/100 -> 0 | L199: =100-(J199+K199+M199) -> 0 | M199: =IF((I201+M201)>100,M201*100/(I201+M201),M201) -> 0 | N199: =IF((N201+R201)>100,N201*100/(N201+R201),N201) -> 100 | O199: =N199*AVERAGEIF(O205:O216,">0")/100 -> 100 | P199: =N199*(100-AVERAGEIF(O205:O216,">0"))/100 -> 0 | Q199: =100-(O199+P199+R199) -> 0 | R199: =IF((N201+R201)>100,R201*100/(N201+R201),R201) -> 0 | S199: =IF((S201+W201)>100,S201*100/(S201+W201),S201) -> 100 | T199: =S199*AVERAGEIF(T205:T216,">0")/100 -> 100 | U199: =S199*(100-AVERAGEIF(T205:T216,">0"))/100 -> 0 | V199: =100-(T199+U199+W199) -> 0 | W199: =IF((S201+W201)>100,W201*100/(S201+W201),W201) -> 0 | X199: =IF((X201+AB201)>100,X201*100/(X201+AB201),X201) -> 99.231693 | Y199: =X199*AVERAGEIF(Y205:Y216,">0")/100 -> 99.231693 | Z199: =X199*(100-AVERAGEIF(Y205:Y216,">0"))/100 -> 0 | AA199: =100-(Y199+Z199+AB199) -> 0.7683070019 | AB199: =IF((X201+AB201)>100,AB201*100/(X201+AB201),AB201) -> 0
C200: =MaxTarget(C205:C216) -> 2020 | D200: =IF((D202+H202)>100,D202*100/(D202+H202),D202) -> 98.73273311 | E200: =D200*AVERAGEIF(E205:E216,">0")/100 -> 98.73273311 | F200: =D200*(100-AVERAGEIF(E205:E216,">0"))/100 -> 0 | G200: =100-(E200+F200+H200) -> 1.267266892 | H200: =IF((D202+H202)>100,H202*100/(D202+H202),H202) -> 0 | I200: =IF((I202+M202)>100,I202*100/(I202+M202),I202) -> 100 | J200: =I200*AVERAGEIF(J205:J216,">0")/100 -> 100 | K200: =I200*(100-AVERAGEIF(J205:J216,">0"))/100 -> 0 | L200: =100-(J200+K200+M200) -> 0 | M200: =IF((I202+M202)>100,M202*100/(I202+M202),M202) -> 0 | N200: =IF((N202+R202)>100,N202*100/(N202+R202),N202) -> 100 | O200: =N200*AVERAGEIF(O205:O216,">0")/100 -> 100 | P200: =N200*(100-AVERAGEIF(O205:O216,">0"))/100 -> 0 | Q200: =100-(O200+P200+R200) -> 0 | R200: =IF((N202+R202)>100,R202*100/(N202+R202),R202) -> 0 | S200: =IF((S202+W202)>100,S202*100/(S202+W202),S202) -> 100 | T200: =S200*AVERAGEIF(T205:T216,">0")/100 -> 100 | U200: =S200*(100-AVERAGEIF(T205:T216,">0"))/100 -> 0 | V200: =100-(T200+U200+W200) -> 0 | W200: =IF((S202+W202)>100,W202*100/(S202+W202),W202) -> 0 | X200: =IF((X202+AB202)>100,X202*100/(X202+AB202),X202) -> 99.231693 | Y200: =X200*AVERAGEIF(Y205:Y216,">0")/100 -> 99.231693 | Z200: =X200*(100-AVERAGEIF(Y205:Y216,">0"))/100 -> 0 | AA200: =100-(Y200+Z200+AB200) -> 0.7683070019 | AB200: =IF((X202+AB202)>100,AB202*100/(X202+AB202),AB202) -> 0
A201: Regression period: | C201: =MinRegYear(C199,C205:C216) -> 2015 | D201: =IF(MAX(C205:C216)-MIN(C205:C216)<5,AVERAGEIF(C205:C216,">0",D205:D216), IF(FORECAST($C201,D$205:D$216,$C$205:$C$216)<0,0, IF(FORECAST($C201,D$205:D$216,$C$205:$C$216)>100,100, FORECAST($C201,D$205:D$216,$C$205:$C$216)))) -> 98.73273311 | H201: =IF(MAX(C205:C216)-MIN(C205:C216)<5,AVERAGEIF(C205:C216,">0",H205:H216), IF(FORECAST($C201,H$205:H$216,$C$205:$C$216)<0,0, IF(FORECAST($C201,H$205:H$216,$C$205:$C$216)>100,100, FORECAST($C201,H$205:H$216,$C$205:$C$216)))) -> 0 | I201: =IF(MAX(C205:C216)-MIN(C205:C216)<5,AVERAGEIF(C205:C216,">0",I205:I216), IF(FORECAST($C201,I$205:I$216,$C$205:$C$216)<0,0, IF(FORECAST($C201,I$205:I$216,$C$205:$C$216)>100,100, FORECAST($C201,I$205:I$216,$C$205:$C$216)))) -> 100 | M201: =IF(MAX(C205:C216)-MIN(C205:C216)<5,AVERAGEIF(C205:C216,">0",M205:M216), IF(FORECAST($C201,M$205:M$216,$C$205:$C$216)<0,0, IF(FORECAST($C201,M$205:M$216,$C$205:$C$216)>100,100, FORECAST($C201,M$205:M$216,$C$205:$C$216)))) -> 0 | N201: =IF(MAX(C205:C216)-MIN(C205:C216)<5,AVERAGEIF(C205:C216,">0",N205:N216), IF(FORECAST($C201,N$205:N$216,$C$205:$C$216)<0,0, IF(FORECAST($C201,N$205:N$216,$C$205:$C$216)>100,100, FORECAST($C201,N$205:N$216,$C$205:$C$216)))) -> 100 | R201: =IF(MAX(C205:C216)-MIN(C205:C216)<5,AVERAGEIF(C205:C216,">0",R205:R216), IF(FORECAST($C201,R$205:R$216,$C$205:$C$216)<0,0, IF(FORECAST($C201,R$205:R$216,$C$205:$C$216)>100,100, FORECAST($C201,R$205:R$216,$C$205:$C$216)))) -> 0 | S201: =IF(MAX(C205:C216)-MIN(C205:C216)<5,AVERAGEIF(C205:C216,">0",S205:S216), IF(FORECAST($C201,S$205:S$216,$C$205:$C$216)<0,0, IF(FORECAST($C201,S$205:S$216,$C$205:$C$216)>100,100, FORECAST($C201,S$205:S$216,$C$205:$C$216)))) -> 100 | W201: =IF(MAX(C205:C216)-MIN(C205:C216)<5,AVERAGEIF(C205:C216,">0",W205:W216), IF(FORECAST($C201,W$205:W$216,$C$205:$C$216)<0,0, IF(FORECAST($C201,W$205:W$216,$C$205:$C$216)>100,100, FORECAST($C201,W$205:W$216,$C$205:$C$216)))) -> 0 | X201: =IF(MAX(C205:C216)-MIN(C205:C216)<5,AVERAGEIF(C205:C216,">0",X205:X216), IF(FORECAST($C201,X$205:X$216,$C$205:$C$216)<0,0, IF(FORECAST($C201,X$205:X$216,$C$205:$C$216)>100,100, FORECAST($C201,X$205:X$216,$C$205:$C$216)))) -> 99.231693 | AB201: =IF(MAX(C205:C216)-MIN(C205:C216)<5,AVERAGEIF(C205:C216,">0",AB205:AB216), IF(FORECAST($C201,AB$205:AB$216,$C$205:$C$216)<0,0, IF(FORECAST($C201,AB$205:AB$216,$C$205:$C$216)>100,100, FORECAST($C201,AB$205:AB$216,$C$205:$C$216)))) -> 0
C202: =MaxRegYear(C200,C205:C216) -> 2019 | D202: =IF(MAX(C205:C216)-MIN(C205:C216)<5,AVERAGEIF(C205:C216,">0",D205:D216), IF(FORECAST($C202,D$205:D$216,$C$205:$C$216)<0,0, IF(FORECAST($C202,D$205:D$216,$C$205:$C$216)>100,100, FORECAST($C202,D$205:D$216,$C$205:$C$216)))) -> 98.73273311 | H202: =IF(MAX(C205:C216)-MIN(C205:C216)<5,AVERAGEIF(C205:C216,">0",H205:H216), IF(FORECAST($C202,H$205:H$216,$C$205:$C$216)<0,0, IF(FORECAST($C202,H$205:H$216,$C$205:$C$216)>100,100, FORECAST($C202,H$205:H$216,$C$205:$C$216)))) -> 0 | I202: =IF(MAX(C205:C216)-MIN(C205:C216)<5,AVERAGEIF(C205:C216,">0",I205:I216), IF(FORECAST($C202,I$205:I$216,$C$205:$C$216)<0,0, IF(FORECAST($C202,I$205:I$216,$C$205:$C$216)>100,100, FORECAST($C202,I$205:I$216,$C$205:$C$216)))) -> 100 | M202: =IF(MAX(C205:C216)-MIN(C205:C216)<5,AVERAGEIF(C205:C216,">0",M205:M216), IF(FORECAST($C202,M$205:M$216,$C$205:$C$216)<0,0, IF(FORECAST($C202,M$205:M$216,$C$205:$C$216)>100,100, FORECAST($C202,M$205:M$216,$C$205:$C$216)))) -> 0 | N202: =IF(MAX(C205:C216)-MIN(C205:C216)<5,AVERAGEIF(C205:C216,">0",N205:N216), IF(FORECAST($C202,N$205:N$216,$C$205:$C$216)<0,0, IF(FORECAST($C202,N$205:N$216,$C$205:$C$216)>100,100, FORECAST($C202,N$205:N$216,$C$205:$C$216)))) -> 100 | R202: =IF(MAX(C205:C216)-MIN(C205:C216)<5,AVERAGEIF(C205:C216,">0",R205:R216), IF(FORECAST($C202,R$205:R$216,$C$205:$C$216)<0,0, IF(FORECAST($C202,R$205:R$216,$C$205:$C$216)>100,100, FORECAST($C202,R$205:R$216,$C$205:$C$216)))) -> 0 | S202: =IF(MAX(C205:C216)-MIN(C205:C216)<5,AVERAGEIF(C205:C216,">0",S205:S216), IF(FORECAST($C202,S$205:S$216,$C$205:$C$216)<0,0, IF(FORECAST($C202,S$205:S$216,$C$205:$C$216)>100,100, FORECAST($C202,S$205:S$216,$C$205:$C$216)))) -> 100 | W202: =IF(MAX(C205:C216)-MIN(C205:C216)<5,AVERAGEIF(C205:C216,">0",W205:W216), IF(FORECAST($C202,W$205:W$216,$C$205:$C$216)<0,0, IF(FORECAST($C202,W$205:W$216,$C$205:$C$216)>100,100, FORECAST($C202,W$205:W$216,$C$205:$C$216)))) -> 0 | X202: =IF(MAX(C205:C216)-MIN(C205:C216)<5,AVERAGEIF(C205:C216,">0",X205:X216), IF(FORECAST($C202,X$205:X$216,$C$205:$C$216)<0,0, IF(FORECAST($C202,X$205:X$216,$C$205:$C$216)>100,100, FORECAST($C202,X$205:X$216,$C$205:$C$216)))) -> 99.231693 | AB202: =IF(MAX(C205:C216)-MIN(C205:C216)<5,AVERAGEIF(C205:C216,">0",AB205:AB216), IF(FORECAST($C202,AB$205:AB$216,$C$205:$C$216)<0,0, IF(FORECAST($C202,AB$205:AB$216,$C$205:$C$216)>100,100, FORECAST($C202,AB$205:AB$216,$C$205:$C$216)))) -> 0
B204: Survey | C204: Year | D204: Improved | E204: % Improved < = 30min | H204: Surface water | I204: Improved | J204: % Improved < = 30min | M204: Surface water | N204: Improved | O204: % Improved < = 30min | R204: Surface water | S204: Improved | T204: % Improved < = 30min | W204: Surface water | X204: Improved | Y204: % Improved < = 30min | AB204: Surface water
B205: DHS17 | C205: 2017 | D205: =IF(ISERROR(INDIRECT(CONCATENATE($B205,"!H16"))),"",INDIRECT(CONCATENATE($B205,"!H16"))) -> 98.73273311 | E205: =IF(ISERROR(INDIRECT(CONCATENATE($B205,"!H23"))),"",INDIRECT(CONCATENATE($B205,"!H23"))) -> 100 | H205: =IF(ISERROR(INDIRECT(CONCATENATE($B205,"!H21"))),"",INDIRECT(CONCATENATE($B205,"!H21"))) -> 0 | I205: =IF(ISERROR(INDIRECT(CONCATENATE($B205,"!I16"))),"",INDIRECT(CONCATENATE($B205,"!I16"))) -> 100 | J205: =IF(ISERROR(INDIRECT(CONCATENATE($B205,"!I23"))),"",INDIRECT(CONCATENATE($B205,"!I23"))) -> 100 | M205: =IF(ISERROR(INDIRECT(CONCATENATE($B205,"!I21"))),"",INDIRECT(CONCATENATE($B205,"!I21"))) -> 0 | N205: =IF(ISERROR(INDIRECT(CONCATENATE($B205,"!J16"))),"",INDIRECT(CONCATENATE($B205,"!J16"))) -> 100 | O205: =IF(ISERROR(INDIRECT(CONCATENATE($B205,"!J23"))),"",INDIRECT(CONCATENATE($B205,"!J23"))) -> 100 | R205: =IF(ISERROR(INDIRECT(CONCATENATE($B205,"!J21"))),"",INDIRECT(CONCATENATE($B205,"!J21"))) -> 0 | S205: =IF(ISERROR(INDIRECT(CONCATENATE($B205,"!K16"))),"",INDIRECT(CONCATENATE($B205,"!K16"))) -> 100 | T205: =IF(ISERROR(INDIRECT(CONCATENATE($B205,"!K23"))),"",INDIRECT(CONCATENATE($B205,"!K23"))) -> 100 | W205: =IF(ISERROR(INDIRECT(CONCATENATE($B205,"!K21"))),"",INDIRECT(CONCATENATE($B205,"!K21"))) -> 0 | X205: =IF(ISERROR(INDIRECT(CONCATENATE($B205,"!L16"))),"",INDIRECT(CONCATENATE($B205,"!L16"))) -> 99.231693 | Y205: =IF(ISERROR(INDIRECT(CONCATENATE($B205,"!L23"))),"",INDIRECT(CONCATENATE($B205,"!L23"))) -> 100 | AB205: =IF(ISERROR(INDIRECT(CONCATENATE($B205,"!L221"))),"",INDIRECT(CONCATENATE($B205,"!L21"))) -> 0
B218: =CONCATENATE("Urban use of drinking water sources, ",C199,"–",C200) -> Urban use of drinking water sources, 2013–2020 | S218: Data points used for regression
E253: =IF(ISERROR(INDIRECT(CONCATENATE($B253,"!M18"))),"",INDIRECT(CONCATENATE($B253,"!M18"))) ->  | F253: =IF(ISERROR(INDIRECT(CONCATENATE($B253,"!M19"))),"",INDIRECT(CONCATENATE($B253,"!M19"))) ->  | G253: =IF(ISERROR(INDIRECT(CONCATENATE($B253,"!M20"))),"",INDIRECT(CONCATENATE($B253,"!M20"))) ->  | H253: =IF(ISERROR(INDIRECT(CONCATENATE($B253,"!M21"))),"",INDIRECT(CONCATENATE($B253,"!M21"))) ->  | J253: =IF(ISERROR(INDIRECT(CONCATENATE($B253,"!N18"))),"",INDIRECT(CONCATENATE($B253,"!N18"))) ->  | K253: =IF(ISERROR(INDIRECT(CONCATENATE($B253,"!N19"))),"",INDIRECT(CONCATENATE($B253,"!N19"))) ->  | L253: =IF(ISERROR(INDIRECT(CONCATENATE($B253,"!N20"))),"",INDIRECT(CONCATENATE($B253,"!N20"))) ->  | M253: =IF(ISERROR(INDIRECT(CONCATENATE($B253,"!N21"))),"",INDIRECT(CONCATENATE($B253,"!N21"))) ->  | O253: =IF(ISERROR(INDIRECT(CONCATENATE($B253,"!O18"))),"",INDIRECT(CONCATENATE($B253,"!O18"))) ->  | P253: =IF(ISERROR(INDIRECT(CONCATENATE($B253,"!O19"))),"",INDIRECT(CONCATENATE($B253,"!O19"))) ->  | Q253: =IF(ISERROR(INDIRECT(CONCATENATE($B253,"!O20"))),"",INDIRECT(CONCATENATE($B253,"!O20"))) ->  | R253: =IF(ISERROR(INDIRECT(CONCATENATE($B253,"!O21"))),"",INDIRECT(CONCATENATE($B253,"!O21"))) ->  | T253: =IF(ISERROR(INDIRECT(CONCATENATE($B253,"!P18"))),"",INDIRECT(CONCATENATE($B253,"!P18"))) ->  | U253: =IF(ISERROR(INDIRECT(CONCATENATE($B253,"!P19"))),"",INDIRECT(CONCATENATE($B253,"!P19"))) ->  | V253: =IF(ISERROR(INDIRECT(CONCATENATE($B253,"!P20"))),"",INDIRECT(CONCATENATE($B253,"!P20"))) ->  | W253: =IF(ISERROR(INDIRECT(CONCATENATE($B253,"!P21"))),"",INDIRECT(CONCATENATE($B253,"!P21"))) ->  | Y253: =IF(ISERROR(INDIRECT(CONCATENATE($B253,"!Q18"))),"",INDIRECT(CONCATENATE($B253,"!Q18"))) ->  | Z253: =IF(ISERROR(INDIRECT(CONCATENATE($B253,"!Q19"))),"",INDIRECT(CONCATENATE($B253,"!Q19"))) ->  | AA253: =IF(ISERROR(INDIRECT(CONCATENATE($B253,"!Q20"))),"",INDIRECT(CONCATENATE($B253,"!Q20"))) ->  | AB253: =IF(ISERROR(INDIRECT(CONCATENATE($B253,"!Q21"))),"",INDIRECT(CONCATENATE($B253,"!Q1"))) -> 
E254: =IF(ISERROR(INDIRECT(CONCATENATE($B254,"!M18"))),"",INDIRECT(CONCATENATE($B254,"!M18"))) ->  | F254: =IF(ISERROR(INDIRECT(CONCATENATE($B254,"!M19"))),"",INDIRECT(CONCATENATE($B254,"!M19"))) ->  | G254: =IF(ISERROR(INDIRECT(CONCATENATE($B254,"!M20"))),"",INDIRECT(CONCATENATE($B254,"!M20"))) ->  | H254: =IF(ISERROR(INDIRECT(CONCATENATE($B254,"!M21"))),"",INDIRECT(CONCATENATE($B254,"!M21"))) ->  | J254: =IF(ISERROR(INDIRECT(CONCATENATE($B254,"!N18"))),"",INDIRECT(CONCATENATE($B254,"!N18"))) ->  | K254: =IF(ISERROR(INDIRECT(CONCATENATE($B254,"!N19"))),"",INDIRECT(CONCATENATE($B254,"!N19"))) ->  | L254: =IF(ISERROR(INDIRECT(CONCATENATE($B254,"!N20"))),"",INDIRECT(CONCATENATE($B254,"!N20"))) ->  | M254: =IF(ISERROR(INDIRECT(CONCATENATE($B254,"!N21"))),"",INDIRECT(CONCATENATE($B254,"!N21"))) ->  | O254: =IF(ISERROR(INDIRECT(CONCATENATE($B254,"!O18"))),"",INDIRECT(CONCATENATE($B254,"!O18"))) ->  | P254: =IF(ISERROR(INDIRECT(CONCATENATE($B254,"!O19"))),"",INDIRECT(CONCATENATE($B254,"!O19"))) ->  | Q254: =IF(ISERROR(INDIRECT(CONCATENATE($B254,"!O20"))),"",INDIRECT(CONCATENATE($B254,"!O20"))) ->  | R254: =IF(ISERROR(INDIRECT(CONCATENATE($B254,"!O21"))),"",INDIRECT(CONCATENATE($B254,"!O21"))) ->  | T254: =IF(ISERROR(INDIRECT(CONCATENATE($B254,"!P18"))),"",INDIRECT(CONCATENATE($B254,"!P18"))) ->  | U254: =IF(ISERROR(INDIRECT(CONCATENATE($B254,"!P19"))),"",INDIRECT(CONCATENATE($B254,"!P19"))) ->  | V254: =IF(ISERROR(INDIRECT(CONCATENATE($B254,"!P20"))),"",INDIRECT(CONCATENATE($B254,"!P20"))) ->  | W254: =IF(ISERROR(INDIRECT(CONCATENATE($B254,"!P21"))),"",INDIRECT(CONCATENATE($B254,"!P21"))) ->  | Y254: =IF(ISERROR(INDIRECT(CONCATENATE($B254,"!Q18"))),"",INDIRECT(CONCATENATE($B254,"!Q18"))) ->  | Z254: =IF(ISERROR(INDIRECT(CONCATENATE($B254,"!Q19"))),"",INDIRECT(CONCATENATE($B254,"!Q19"))) ->  | AA254: =IF(ISERROR(INDIRECT(CONCATENATE($B254,"!Q20"))),"",INDIRECT(CONCATENATE($B254,"!Q20"))) ->  | AB254: =IF(ISERROR(INDIRECT(CONCATENATE($B254,"!Q21"))),"",INDIRECT(CONCATENATE($B254,"!Q1"))) -> 
E255: =IF(ISERROR(INDIRECT(CONCATENATE($B255,"!M18"))),"",INDIRECT(CONCATENATE($B255,"!M18"))) ->  | F255: =IF(ISERROR(INDIRECT(CONCATENATE($B255,"!M19"))),"",INDIRECT(CONCATENATE($B255,"!M19"))) ->  | G255: =IF(ISERROR(INDIRECT(CONCATENATE($B255,"!M20"))),"",INDIRECT(CONCATENATE($B255,"!M20"))) ->  | H255: =IF(ISERROR(INDIRECT(CONCATENATE($B255,"!M21"))),"",INDIRECT(CONCATENATE($B255,"!M21"))) ->  | J255: =IF(ISERROR(INDIRECT(CONCATENATE($B255,"!N18"))),"",INDIRECT(CONCATENATE($B255,"!N18"))) ->  | K255: =IF(ISERROR(INDIRECT(CONCATENATE($B255,"!N19"))),"",INDIRECT(CONCATENATE($B255,"!N19"))) ->  | L255: =IF(ISERROR(INDIRECT(CONCATENATE($B255,"!N20"))),"",INDIRECT(CONCATENATE($B255,"!N20"))) ->  | M255: =IF(ISERROR(INDIRECT(CONCATENATE($B255,"!N21"))),"",INDIRECT(CONCATENATE($B255,"!N21"))) ->  | O255: =IF(ISERROR(INDIRECT(CONCATENATE($B255,"!O18"))),"",INDIRECT(CONCATENATE($B255,"!O18"))) ->  | P255: =IF(ISERROR(INDIRECT(CONCATENATE($B255,"!O19"))),"",INDIRECT(CONCATENATE($B255,"!O19"))) ->  | Q255: =IF(ISERROR(INDIRECT(CONCATENATE($B255,"!O20"))),"",INDIRECT(CONCATENATE($B255,"!O20"))) ->  | R255: =IF(ISERROR(INDIRECT(CONCATENATE($B255,"!O21"))),"",INDIRECT(CONCATENATE($B255,"!O21"))) ->  | T255: =IF(ISERROR(INDIRECT(CONCATENATE($B255,"!P18"))),"",INDIRECT(CONCATENATE($B255,"!P18"))) ->  | U255: =IF(ISERROR(INDIRECT(CONCATENATE($B255,"!P19"))),"",INDIRECT(CONCATENATE($B255,"!P19"))) ->  | V255: =IF(ISERROR(INDIRECT(CONCATENATE($B255,"!P20"))),"",INDIRECT(CONCATENATE($B255,"!P20"))) ->  | W255: =IF(ISERROR(INDIRECT(CONCATENATE($B255,"!P21"))),"",INDIRECT(CONCATENATE($B255,"!P21"))) ->  | Y255: =IF(ISERROR(INDIRECT(CONCATENATE($B255,"!Q18"))),"",INDIRECT(CONCATENATE($B255,"!Q18"))) ->  | Z255: =IF(ISERROR(INDIRECT(CONCATENATE($B255,"!Q19"))),"",INDIRECT(CONCATENATE($B255,"!Q19"))) ->  | AA255: =IF(ISERROR(INDIRECT(CONCATENATE($B255,"!Q20"))),"",INDIRECT(CONCATENATE($B255,"!Q20"))) ->  | AB255: =IF(ISERROR(INDIRECT(CONCATENATE($B255,"!Q21"))),"",INDIRECT(CONCATENATE($B255,"!Q1"))) -> 
E256: =IF(ISERROR(INDIRECT(CONCATENATE($B256,"!M18"))),"",INDIRECT(CONCATENATE($B256,"!M18"))) ->  | F256: =IF(ISERROR(INDIRECT(CONCATENATE($B256,"!M19"))),"",INDIRECT(CONCATENATE($B256,"!M19"))) ->  | G256: =IF(ISERROR(INDIRECT(CONCATENATE($B256,"!M20"))),"",INDIRECT(CONCATENATE($B256,"!M20"))) ->  | H256: =IF(ISERROR(INDIRECT(CONCATENATE($B256,"!M21"))),"",INDIRECT(CONCATENATE($B256,"!M21"))) ->  | J256: =IF(ISERROR(INDIRECT(CONCATENATE($B256,"!N18"))),"",INDIRECT(CONCATENATE($B256,"!N18"))) ->  | K256: =IF(ISERROR(INDIRECT(CONCATENATE($B256,"!N19"))),"",INDIRECT(CONCATENATE($B256,"!N19"))) ->  | L256: =IF(ISERROR(INDIRECT(CONCATENATE($B256,"!N20"))),"",INDIRECT(CONCATENATE($B256,"!N20"))) ->  | M256: =IF(ISERROR(INDIRECT(CONCATENATE($B256,"!N21"))),"",INDIRECT(CONCATENATE($B256,"!N21"))) ->  | O256: =IF(ISERROR(INDIRECT(CONCATENATE($B256,"!O18"))),"",INDIRECT(CONCATENATE($B256,"!O18"))) ->  | P256: =IF(ISERROR(INDIRECT(CONCATENATE($B256,"!O19"))),"",INDIRECT(CONCATENATE($B256,"!O19"))) ->  | Q256: =IF(ISERROR(INDIRECT(CONCATENATE($B256,"!O20"))),"",INDIRECT(CONCATENATE($B256,"!O20"))) ->  | R256: =IF(ISERROR(INDIRECT(CONCATENATE($B256,"!O21"))),"",INDIRECT(CONCATENATE($B256,"!O21"))) ->  | T256: =IF(ISERROR(INDIRECT(CONCATENATE($B256,"!P18"))),"",INDIRECT(CONCATENATE($B256,"!P18"))) ->  | U256: =IF(ISERROR(INDIRECT(CONCATENATE($B256,"!P19"))),"",INDIRECT(CONCATENATE($B256,"!P19"))) ->  | V256: =IF(ISERROR(INDIRECT(CONCATENATE($B256,"!P20"))),"",INDIRECT(CONCATENATE($B256,"!P20"))) ->  | W256: =IF(ISERROR(INDIRECT(CONCATENATE($B256,"!P21"))),"",INDIRECT(CONCATENATE($B256,"!P21"))) ->  | Y256: =IF(ISERROR(INDIRECT(CONCATENATE($B256,"!Q18"))),"",INDIRECT(CONCATENATE($B256,"!Q18"))) ->  | Z256: =IF(ISERROR(INDIRECT(CONCATENATE($B256,"!Q19"))),"",INDIRECT(CONCATENATE($B256,"!Q19"))) ->  | AA256: =IF(ISERROR(INDIRECT(CONCATENATE($B256,"!Q20"))),"",INDIRECT(CONCATENATE($B256,"!Q20"))) ->  | AB256: =IF(ISERROR(INDIRECT(CONCATENATE($B256,"!Q21"))),"",INDIRECT(CONCATENATE($B256,"!Q1"))) -> 
E257: =IF(ISERROR(INDIRECT(CONCATENATE($B257,"!M18"))),"",INDIRECT(CONCATENATE($B257,"!M18"))) ->  | F257: =IF(ISERROR(INDIRECT(CONCATENATE($B257,"!M19"))),"",INDIRECT(CONCATENATE($B257,"!M19"))) ->  | G257: =IF(ISERROR(INDIRECT(CONCATENATE($B257,"!M20"))),"",INDIRECT(CONCATENATE($B257,"!M20"))) ->  | H257: =IF(ISERROR(INDIRECT(CONCATENATE($B257,"!M21"))),"",INDIRECT(CONCATENATE($B257,"!M21"))) ->  | J257: =IF(ISERROR(INDIRECT(CONCATENATE($B257,"!N18"))),"",INDIRECT(CONCATENATE($B257,"!N18"))) ->  | K257: =IF(ISERROR(INDIRECT(CONCATENATE($B257,"!N19"))),"",INDIRECT(CONCATENATE($B257,"!N19"))) ->  | L257: =IF(ISERROR(INDIRECT(CONCATENATE($B257,"!N20"))),"",INDIRECT(CONCATENATE($B257,"!N20"))) ->  | M257: =IF(ISERROR(INDIRECT(CONCATENATE($B257,"!N21"))),"",INDIRECT(CONCATENATE($B257,"!N21"))) ->  | O257: =IF(ISERROR(INDIRECT(CONCATENATE($B257,"!O18"))),"",INDIRECT(CONCATENATE($B257,"!O18"))) ->  | P257: =IF(ISERROR(INDIRECT(CONCATENATE($B257,"!O19"))),"",INDIRECT(CONCATENATE($B257,"!O19"))) ->  | Q257: =IF(ISERROR(INDIRECT(CONCATENATE($B257,"!O20"))),"",INDIRECT(CONCATENATE($B257,"!O20"))) ->  | R257: =IF(ISERROR(INDIRECT(CONCATENATE($B257,"!O21"))),"",INDIRECT(CONCATENATE($B257,"!O21"))) ->  | T257: =IF(ISERROR(INDIRECT(CONCATENATE($B257,"!P18"))),"",INDIRECT(CONCATENATE($B257,"!P18"))) ->  | U257: =IF(ISERROR(INDIRECT(CONCATENATE($B257,"!P19"))),"",INDIRECT(CONCATENATE($B257,"!P19"))) ->  | V257: =IF(ISERROR(INDIRECT(CONCATENATE($B257,"!P20"))),"",INDIRECT(CONCATENATE($B257,"!P20"))) ->  | W257: =IF(ISERROR(INDIRECT(CONCATENATE($B257,"!P21"))),"",INDIRECT(CONCATENATE($B257,"!P21"))) ->  | Y257: =IF(ISERROR(INDIRECT(CONCATENATE($B257,"!Q18"))),"",INDIRECT(CONCATENATE($B257,"!Q18"))) ->  | Z257: =IF(ISERROR(INDIRECT(CONCATENATE($B257,"!Q19"))),"",INDIRECT(CONCATENATE($B257,"!Q19"))) ->  | AA257: =IF(ISERROR(INDIRECT(CONCATENATE($B257,"!Q20"))),"",INDIRECT(CONCATENATE($B257,"!Q20"))) ->  | AB257: =IF(ISERROR(INDIRECT(CONCATENATE($B257,"!Q21"))),"",INDIRECT(CONCATENATE($B257,"!Q1"))) -> 
A297: RURAL | D297: Poorest | I297: Poor | N297: Middle | S297: Rich | X297: Richest
D298: Improved | E298: Basic | F298: Limited | G298: Unimproved | H298: Surface water | I298: Improved | J298: Basic | K298: Limited | L298: Unimproved | M298: Surface water | N298: Improved | O298: Basic | P298: Limited | Q298: Unimproved | R298: Surface water | S298: Improved | T298: Basic | U298: Limited | V298: Unimproved | W298: Surface water | X298: Improved | Y298: Basic | Z298: Limited | AA298: Unimproved | AB298: Surface water
A299: Forecast period: | C299: 2013 | D299: =IF((D301+H301)>100,D301*100/(D301+H301),D301) -> 99.32652111 | E299: =D299*AVERAGEIF(E305:E316,">0")/100 -> 99.00802856 | F299: =D299*(100-AVERAGEIF(E305:E316,">0"))/100 -> 0.3184925493 | G299: =100-(E299+F299+H299) -> 0.6734788884 | H299: =IF((D301+H301)>100,H301*100/(D301+H301),H301) -> 0 | I299: =IF((I301+M301)>100,I301*100/(I301+M301),I301) -> 99.70698555 | J299: =I299*AVERAGEIF(J305:J316,">0")/100 -> 99.55531466 | K299: =I299*(100-AVERAGEIF(J305:J316,">0"))/100 -> 0.1516708862 | L299: =100-(J299+K299+M299) -> 0.2930144537 | M299: =IF((I301+M301)>100,M301*100/(I301+M301),M301) -> 0 | N299: =IF((N301+R301)>100,N301*100/(N301+R301),N301) -> 99.6104011 | O299: =N299*AVERAGEIF(O305:O316,">0")/100 -> 99.56535293 | P299: =N299*(100-AVERAGEIF(O305:O316,">0"))/100 -> 0.04504817265 | Q299: =100-(O299+P299+R299) -> 0.3895988969 | R299: =IF((N301+R301)>100,R301*100/(N301+R301),R301) -> 0 | S299: =IF((S301+W301)>100,S301*100/(S301+W301),S301) -> 100 | T299: =S299*AVERAGEIF(T305:T316,">0")/100 -> 99.8987712 | U299: =S299*(100-AVERAGEIF(T305:T316,">0"))/100 -> 0.1012288025 | V299: =100-(T299+U299+W299) -> 0 | W299: =IF((S301+W301)>100,W301*100/(S301+W301),W301) -> 0 | X299: =IF((X301+AB301)>100,X301*100/(X301+AB301),X301) -> 99.93325649 | Y299: =X299*AVERAGEIF(Y305:Y316,">0")/100 -> 99.93325649 | Z299: =X299*(100-AVERAGEIF(Y305:Y316,">0"))/100 -> 0 | AA299: =100-(Y299+Z299+AB299) -> 0.06674350947 | AB299: =IF((X301+AB301)>100,AB301*100/(X301+AB301),AB301) -> 0
C300: 2020 | D300: =IF((D302+H302)>100,D302*100/(D302+H302),D302) -> 99.32652111 | E300: =D300*AVERAGEIF(E305:E316,">0")/100 -> 99.00802856 | F300: =D300*(100-AVERAGEIF(E305:E316,">0"))/100 -> 0.3184925493 | G300: =100-(E300+F300+H300) -> 0.6734788884 | H300: =IF((D302+H302)>100,H302*100/(D302+H302),H302) -> 0 | I300: =IF((I302+M302)>100,I302*100/(I302+M302),I302) -> 99.70698555 | J300: =I300*AVERAGEIF(J305:J316,">0")/100 -> 99.55531466 | K300: =I300*(100-AVERAGEIF(J305:J316,">0"))/100 -> 0.1516708862 | L300: =100-(J300+K300+M300) -> 0.2930144537 | M300: =IF((I302+M302)>100,M302*100/(I302+M302),M302) -> 0 | N300: =IF((N302+R302)>100,N302*100/(N302+R302),N302) -> 99.6104011 | O300: =N300*AVERAGEIF(O305:O316,">0")/100 -> 99.56535293 | P300: =N300*(100-AVERAGEIF(O305:O316,">0"))/100 -> 0.04504817265 | Q300: =100-(O300+P300+R300) -> 0.3895988969 | R300: =IF((N302+R302)>100,R302*100/(N302+R302),R302) -> 0 | S300: =IF((S302+W302)>100,S302*100/(S302+W302),S302) -> 100 | T300: =S300*AVERAGEIF(T305:T316,">0")/100 -> 99.8987712 | U300: =S300*(100-AVERAGEIF(T305:T316,">0"))/100 -> 0.1012288025 | V300: =100-(T300+U300+W300) -> 0 | W300: =IF((S302+W302)>100,W302*100/(S302+W302),W302) -> 0 | X300: =IF((X302+AB302)>100,X302*100/(X302+AB302),X302) -> 99.93325649 | Y300: =X300*AVERAGEIF(Y305:Y316,">0")/100 -> 99.93325649 | Z300: =X300*(100-AVERAGEIF(Y305:Y316,">0"))/100 -> 0 | AA300: =100-(Y300+Z300+AB300) -> 0.06674350947 | AB300: =IF((X302+AB302)>100,AB302*100/(X302+AB302),AB302) -> 0
A301: Regression period: | C301: =MinRegYear(C299,C305:C316) -> 2015 | D301: =IF(MAX(C305:C316)-MIN(C305:C316)<5,AVERAGEIF(C305:C316,">0",D305:D316), IF(FORECAST($C301,D$305:D$316,$C$305:$C$316)<0,0, IF(FORECAST($C301,D$305:D$316,$C$305:$C$316)>100,100, FORECAST($C301,D$305:D$316,$C$305:$C$316)))) -> 99.32652111 | H301: =IF(MAX(C305:C316)-MIN(C305:C316)<5,AVERAGEIF(C305:C316,">0",H305:H316), IF(FORECAST($C301,H$305:H$316,$C$305:$C$316)<0,0, IF(FORECAST($C301,H$305:H$316,$C$305:$C$316)>100,100, FORECAST($C301,H$305:H$316,$C$305:$C$316)))) -> 0 | I301: =IF(MAX(C305:C316)-MIN(C305:C316)<5,AVERAGEIF(C305:C316,">0",I305:I316), IF(FORECAST($C301,I$305:I$316,$C$305:$C$316)<0,0, IF(FORECAST($C301,I$305:I$316,$C$305:$C$316)>100,100, FORECAST($C301,I$305:I$316,$C$305:$C$316)))) -> 99.70698555 | M301: =IF(MAX(C305:C316)-MIN(C305:C316)<5,AVERAGEIF(C305:C316,">0",M305:M316), IF(FORECAST($C301,M$305:M$316,$C$305:$C$316)<0,0, IF(FORECAST($C301,M$305:M$316,$C$305:$C$316)>100,100, FORECAST($C301,M$305:M$316,$C$305:$C$316)))) -> 0 | N301: =IF(MAX(C305:C316)-MIN(C305:C316)<5,AVERAGEIF(C305:C316,">0",N305:N316), IF(FORECAST($C301,N$305:N$316,$C$305:$C$316)<0,0, IF(FORECAST($C301,N$305:N$316,$C$305:$C$316)>100,100, FORECAST($C301,N$305:N$316,$C$305:$C$316)))) -> 99.6104011 | R301: =IF(MAX(C305:C316)-MIN(C305:C316)<5,AVERAGEIF(C305:C316,">0",R305:R316), IF(FORECAST($C301,R$305:R$316,$C$305:$C$316)<0,0, IF(FORECAST($C301,R$305:R$316,$C$305:$C$316)>100,100, FORECAST($C301,R$305:R$316,$C$305:$C$316)))) -> 0 | S301: =IF(MAX(C305:C316)-MIN(C305:C316)<5,AVERAGEIF(C305:C316,">0",S305:S316), IF(FORECAST($C301,S$305:S$316,$C$305:$C$316)<0,0, IF(FORECAST($C301,S$305:S$316,$C$305:$C$316)>100,100, FORECAST($C301,S$305:S$316,$C$305:$C$316)))) -> 100 | W301: =IF(MAX(C305:C316)-MIN(C305:C316)<5,AVERAGEIF(C305:C316,">0",W305:W316), IF(FORECAST($C301,W$305:W$316,$C$305:$C$316)<0,0, IF(FORECAST($C301,W$305:W$316,$C$305:$C$316)>100,100, FORECAST($C301,W$305:W$316,$C$305:$C$316)))) -> 0 | X301: =IF(MAX(C305:C316)-MIN(C305:C316)<5,AVERAGEIF(C305:C316,">0",X305:X316), IF(FORECAST($C301,X$305:X$316,$C$305:$C$316)<0,0, IF(FORECAST($C301,X$305:X$316,$C$305:$C$316)>100,100, FORECAST($C301,X$305:X$316,$C$305:$C$316)))) -> 99.93325649 | AB301: =IF(MAX(C305:C316)-MIN(C305:C316)<5,AVERAGEIF(C305:C316,">0",AB305:AB316), IF(FORECAST($C301,AB$305:AB$316,$C$305:$C$316)<0,0, IF(FORECAST($C301,AB$305:AB$316,$C$305:$C$316)>100,100, FORECAST($C301,AB$305:AB$316,$C$305:$C$316)))) -> 0
C302: =MaxRegYear(C300,C305:C316) -> 2019 | D302: =IF(MAX(C305:C316)-MIN(C305:C316)<5,AVERAGEIF(C305:C316,">0",D305:D316), IF(FORECAST($C302,D$305:D$316,$C$305:$C$316)<0,0, IF(FORECAST($C302,D$305:D$316,$C$305:$C$316)>100,100, FORECAST($C302,D$305:D$316,$C$305:$C$316)))) -> 99.32652111 | H302: =IF(MAX(C305:C316)-MIN(C305:C316)<5,AVERAGEIF(C305:C316,">0",H305:H316), IF(FORECAST($C302,H$305:H$316,$C$305:$C$316)<0,0, IF(FORECAST($C302,H$305:H$316,$C$305:$C$316)>100,100, FORECAST($C302,H$305:H$316,$C$305:$C$316)))) -> 0 | I302: =IF(MAX(C305:C316)-MIN(C305:C316)<5,AVERAGEIF(C305:C316,">0",I305:I316), IF(FORECAST($C302,I$305:I$316,$C$305:$C$316)<0,0, IF(FORECAST($C302,I$305:I$316,$C$305:$C$316)>100,100, FORECAST($C302,I$305:I$316,$C$305:$C$316)))) -> 99.70698555 | M302: =IF(MAX(C305:C316)-MIN(C305:C316)<5,AVERAGEIF(C305:C316,">0",M305:M316), IF(FORECAST($C302,M$305:M$316,$C$305:$C$316)<0,0, IF(FORECAST($C302,M$305:M$316,$C$305:$C$316)>100,100, FORECAST($C302,M$305:M$316,$C$305:$C$316)))) -> 0 | N302: =IF(MAX(C305:C316)-MIN(C305:C316)<5,AVERAGEIF(C305:C316,">0",N305:N316), IF(FORECAST($C302,N$305:N$316,$C$305:$C$316)<0,0, IF(FORECAST($C302,N$305:N$316,$C$305:$C$316)>100,100, FORECAST($C302,N$305:N$316,$C$305:$C$316)))) -> 99.6104011 | R302: =IF(MAX(C305:C316)-MIN(C305:C316)<5,AVERAGEIF(C305:C316,">0",R305:R316), IF(FORECAST($C302,R$305:R$316,$C$305:$C$316)<0,0, IF(FORECAST($C302,R$305:R$316,$C$305:$C$316)>100,100, FORECAST($C302,R$305:R$316,$C$305:$C$316)))) -> 0 | S302: =IF(MAX(C305:C316)-MIN(C305:C316)<5,AVERAGEIF(C305:C316,">0",S305:S316), IF(FORECAST($C302,S$305:S$316,$C$305:$C$316)<0,0, IF(FORECAST($C302,S$305:S$316,$C$305:$C$316)>100,100, FORECAST($C302,S$305:S$316,$C$305:$C$316)))) -> 100 | W302: =IF(MAX(C305:C316)-MIN(C305:C316)<5,AVERAGEIF(C305:C316,">0",W305:W316), IF(FORECAST($C302,W$305:W$316,$C$305:$C$316)<0,0, IF(FORECAST($C302,W$305:W$316,$C$305:$C$316)>100,100, FORECAST($C302,W$305:W$316,$C$305:$C$316)))) -> 0 | X302: =IF(MAX(C305:C316)-MIN(C305:C316)<5,AVERAGEIF(C305:C316,">0",X305:X316), IF(FORECAST($C302,X$305:X$316,$C$305:$C$316)<0,0, IF(FORECAST($C302,X$305:X$316,$C$305:$C$316)>100,100, FORECAST($C302,X$305:X$316,$C$305:$C$316)))) -> 99.93325649 | AB302: =IF(MAX(C305:C316)-MIN(C305:C316)<5,AVERAGEIF(C305:C316,">0",AB305:AB316), IF(FORECAST($C302,AB$305:AB$316,$C$305:$C$316)<0,0, IF(FORECAST($C302,AB$305:AB$316,$C$305:$C$316)>100,100, FORECAST($C302,AB$305:AB$316,$C$305:$C$316)))) -> 0
B304: Survey | C304: Year | D304: Improved | E304: % Improved < = 30min | H304: Surface water | I304: Improved | J304: % Improved < = 30min | M304: Surface water | N304: Improved | O304: % Improved < = 30min | R304: Surface water | S304: Improved | T304: % Improved < = 30min | W304: Surface water | X304: Improved | Y304: % Improved < = 30min | AB304: Surface water
B305: DHS17 | C305: 2017 | D305: =IF(ISERROR(INDIRECT(CONCATENATE($B305,"!M16"))),"",INDIRECT(CONCATENATE($B305,"!M16"))) -> 99.32652111 | E305: =IF(ISERROR(INDIRECT(CONCATENATE($B305,"!M23"))),"",INDIRECT(CONCATENATE($B305,"!M23"))) -> 99.67934793 | H305: =IF(ISERROR(INDIRECT(CONCATENATE($B305,"!M21"))),"",INDIRECT(CONCATENATE($B305,"!M21"))) -> 0 | I305: =IF(ISERROR(INDIRECT(CONCATENATE($B305,"!N16"))),"",INDIRECT(CONCATENATE($B305,"!N16"))) -> 99.70698555 | J305: =IF(ISERROR(INDIRECT(CONCATENATE($B305,"!N23"))),"",INDIRECT(CONCATENATE($B305,"!N23"))) -> 99.84788339 | M305: =IF(ISERROR(INDIRECT(CONCATENATE($B305,"!N21"))),"",INDIRECT(CONCATENATE($B305,"!N21"))) -> 0 | N305: =IF(ISERROR(INDIRECT(CONCATENATE($B305,"!O16"))),"",INDIRECT(CONCATENATE($B305,"!O16"))) -> 99.6104011 | O305: =IF(ISERROR(INDIRECT(CONCATENATE($B305,"!O23"))),"",INDIRECT(CONCATENATE($B305,"!O23"))) -> 99.95477563 | R305: =IF(ISERROR(INDIRECT(CONCATENATE($B305,"!O21"))),"",INDIRECT(CONCATENATE($B305,"!O21"))) -> 0 | S305: =IF(ISERROR(INDIRECT(CONCATENATE($B305,"!P16"))),"",INDIRECT(CONCATENATE($B305,"!P16"))) -> 100 | T305: =IF(ISERROR(INDIRECT(CONCATENATE($B305,"!P23"))),"",INDIRECT(CONCATENATE($B305,"!P23"))) -> 99.8987712 | W305: =IF(ISERROR(INDIRECT(CONCATENATE($B305,"!P21"))),"",INDIRECT(CONCATENATE($B305,"!P21"))) -> 0 | X305: =IF(ISERROR(INDIRECT(CONCATENATE($B305,"!Q16"))),"",INDIRECT(CONCATENATE($B305,"!Q16"))) -> 99.93325649 | Y305: =IF(ISERROR(INDIRECT(CONCATENATE($B305,"!Q23"))),"",INDIRECT(CONCATENATE($B305,"!Q23"))) -> 100 | AB305: =IF(ISERROR(INDIRECT(CONCATENATE($B305,"!Q221"))),"",INDIRECT(CONCATENATE($B305,"!Q21"))) -> 0
B318: =CONCATENATE("Rural use of drinking water sources, ",C299,"–",C300) -> Rural use of drinking water sources, 2013–2020 | S318: Data points used for regression

Sheet Sanitation
B4: Summary of trends in use of sanitation facilities by wealth quintile (%)
B5: =IF(ISERROR(INDIRECT(CONCATENATE($B105,"!A2"))),"",INDIRECT(CONCATENATE($B105,"!A2"))) -> Maldives
B7: =B118 -> National use of sanitation facilities, 2013–2020 | J7: =B218 -> Urban use of sanitation facilities, 2013–2020 | R7: =B318 -> Rural use of sanitation facilities, 2013–2020
B31: =IF(ISERROR(INDIRECT(CONCATENATE($B105,"!A2"))),"",INDIRECT(CONCATENATE($B105,"!A2"))) -> Maldives | F31: Poorest | J31: Poor | N31: Middle | R31: Rich | V31: Richest
F32: Basic | G32: Limited | H32: Unimproved | I32: Open defecation | J32: Basic | K32: Limited | L32: Unimproved | M32: Open defecation | N32: Basic | O32: Limited | P32: Unimproved | Q32: Open defecation | R32: Basic | S32: Limited | T32: Unimproved | U32: Open defecation | V32: Basic | W32: Limited | X32: Unimproved | Y32: Open defecation
B33: NATIONAL | D33: Estimate | E33: =C99 -> 2013 | F33: =E99 -> 97.35652069 | G33: =F99 -> 0.9826429673 | H33: 1.226862853 | I33: 0.433973491 | J33: =J99 -> 98.19188849 | K33: =K99 -> 0.6631364907 | L33: 1.144975021 | M33: 0 | N33: =O99 -> 98.65196584 | O33: =P99 -> 0.7266993081 | P33: 0.6213348477 | Q33: 0 | R33: =T99 -> 99.04142927 | S33: =U99 -> 0.4393315442 | T33: 0.519239186 | U33: 0 | V33: =Y99 -> 98.92874911 | W33: =Z99 -> 0.3108779612 | X33: 0.7603729335 | Y33: 0
E34: =C100 -> 2020 | F34: =E100 -> 97.35652069 | G34: 0.9826429673 | H34: 1.226862853 | I34: 0.433973491 | J34: =J100 -> 98.19188849 | K34: 0.6631364907 | L34: 1.144975021 | M34: 0 | N34: =O100 -> 98.65196584 | O34: 0.7266993081 | P34: 0.6213348477 | Q34: 0 | R34: =T100 -> 99.04142927 | S34: 0.4393315442 | T34: 0.519239186 | U34: 0 | V34: =Y100 -> 98.92874911 | W34: 0.3108779612 | X34: 0.7603729335 | Y34: 0
B36: URBAN | D36: Estimate | E36: =C199 -> 2013 | F36: =E199 -> 98.30621418 | G36: =F199 -> 1.693785816 | H36: 0 | I36: 0 | J36: =J199 -> 98.99781077 | K36: =K199 -> 1.002189229 | L36: 0 | M36: 0 | N36: =O199 -> 100 | O36: =P199 -> 0 | P36: 0 | Q36: 0 | R36: =T199 -> 99.00912274 | S36: =U199 -> 0 | T36: 0.9908772565 | U36: 0 | V36: =Y199 -> 99.42170437 | W36: =Z199 -> 0.578295634 | X36: 0 | Y36: 0
E37: =C200 -> 2020 | F37: =E200 -> 98.30621418 | G37: 1.693785816 | H37: 0 | I37: 0 | J37: =J200 -> 98.99781077 | K37: 1.002189229 | L37: 0 | M37: 0 | N37: =O200 -> 100 | O37: 0 | P37: 0 | Q37: 0 | R37: =T200 -> 99.00912274 | S37: 0 | T37: 0.9908772565 | U37: 0 | V37: =Y200 -> 99.42170437 | W37: 0.578295634 | X37: 0 | Y37: 0
B39: RURAL | D39: Estimate | E39: =C299 -> 2013 | F39: =E299 -> 96.98768832 | G39: =F299 -> 0.5668396212 | H39: 1.706198176 | I39: 0.7392738855 | J39: =J299 -> 97.77798499 | K39: =K299 -> 0.7896072951 | L39: 1.432407712 | M39: 0 | N39: =O299 -> 97.97840249 | O39: =P299 -> 0.3306189585 | P39: 1.69097855 | Q39: 0 | R39: =T299 -> 98.06489204 | S39: =U299 -> 1.031023822 | T39: 0.9040841389 | U39: 0 | V39: =Y299 -> 98.86067319 | W39: =Z299 -> 0.2946408598 | X39: 0.8446859537 | Y39: 0
E40: =C300 -> 2020 | F40: =E300 -> 96.98768832 | G40: 0.5668396212 | H40: 1.706198176 | I40: 0.7392738855 | J40: =J300 -> 97.77798499 | K40: 0.7896072951 | L40: 1.432407712 | M40: 0 | N40: =O300 -> 97.97840249 | O40: 0.3306189585 | P40: 1.69097855 | Q40: 0 | R40: =T300 -> 98.06489204 | S40: 1.031023822 | T40: 0.9040841389 | U40: 0 | V40: =Y300 -> 98.86067319 | W40: 0.2946408598 | X40: 0.8446859537 | Y40: 0
A97: NATIONAL | D97: Poorest | I97: Poor | N97: Middle | S97: Rich | X97: Richest
D98: Improved | E98: Basic | F98: Limited | G98: Unimproved | H98: Open defecation | I98: Improved | J98: Basic | K98: Limited | L98: Unimproved | M98: Open defecation | N98: Improved | O98: Basic | P98: Limited | Q98: Unimproved | R98: Open defecation | S98: Improved | T98: Basic | U98: Limited | V98: Unimproved | W98: Open defecation | X98: Improved | Y98: Basic | Z98: Limited | AA98: Unimproved | AB98: Open defecation
A99: Forecast period: | C99: 2013 | D99: =IF((D101+H101)>100,D101*100/(D101+H101),D101) -> 98.33916366 | E99: =D99*AVERAGEIF(E105:E116,">0")/100 -> 97.35652069 | F99: =D99*(100-AVERAGEIF(E105:E116,">0"))/100 -> 0.9826429673 | G99: =100-(E99+F99+H99) -> 1.226862853 | H99: =IF((D101+H101)>100,H101*100/(D101+H101),H101) -> 0.433973491 | I99: =IF((I101+M101)>100,I101*100/(I101+M101),I101) -> 98.85502498 | J99: =I99*AVERAGEIF(J105:J116,">0")/100 -> 98.19188849 | K99: =I99*(100-AVERAGEIF(J105:J116,">0"))/100 -> 0.6631364907 | L99: =100-(J99+K99+M99) -> 1.144975021 | M99: =IF((I101+M101)>100,M101*100/(I101+M101),M101) -> 0 | N99: =IF((N101+R101)>100,N101*100/(N101+R101),N101) -> 99.37866515 | O99: =N99*AVERAGEIF(O105:O116,">0")/100 -> 98.65196584 | P99: =N99*(100-AVERAGEIF(O105:O116,">0"))/100 -> 0.7266993081 | Q99: =100-(O99+P99+R99) -> 0.6213348477 | R99: =IF((N101+R101)>100,R101*100/(N101+R101),R101) -> 0 | S99: =IF((S101+W101)>100,S101*100/(S101+W101),S101) -> 99.48076081 | T99: =S99*AVERAGEIF(T105:T116,">0")/100 -> 99.04142927 | U99: =S99*(100-AVERAGEIF(T105:T116,">0"))/100 -> 0.4393315442 | V99: =100-(T99+U99+W99) -> 0.519239186 | W99: =IF((S101+W101)>100,W101*100/(S101+W101),W101) -> 0 | X99: =IF((X101+AB101)>100,X101*100/(X101+AB101),X101) -> 99.23962707 | Y99: =X99*AVERAGEIF(Y105:Y116,">0")/100 -> 98.92874911 | Z99: =X99*(100-AVERAGEIF(Y105:Y116,">0"))/100 -> 0.3108779612 | AA99: =100-(Y99+Z99+AB99) -> 0.7603729335 | AB99: =IF((X101+AB101)>100,AB101*100/(X101+AB101),AB101) -> 0
C100: 2020 | D100: =IF((D102+H102)>100,D102*100/(D102+H102),D102) -> 98.33916366 | E100: =D100*AVERAGEIF(E105:E116,">0")/100 -> 97.35652069 | F100: =D100*(100-AVERAGEIF(E105:E116,">0"))/100 -> 0.9826429673 | G100: =100-(E100+F100+H100) -> 1.226862853 | H100: =IF((D102+H102)>100,H102*100/(D102+H102),H102) -> 0.433973491 | I100: =IF((I102+M102)>100,I102*100/(I102+M102),I102) -> 98.85502498 | J100: =I100*AVERAGEIF(J105:J116,">0")/100 -> 98.19188849 | K100: =I100*(100-AVERAGEIF(J105:J116,">0"))/100 -> 0.6631364907 | L100: =100-(J100+K100+M100) -> 1.144975021 | M100: =IF((I102+M102)>100,M102*100/(I102+M102),M102) -> 0 | N100: =IF((N102+R102)>100,N102*100/(N102+R102),N102) -> 99.37866515 | O100: =N100*AVERAGEIF(O105:O116,">0")/100 -> 98.65196584 | P100: =N100*(100-AVERAGEIF(O105:O116,">0"))/100 -> 0.7266993081 | Q100: =100-(O100+P100+R100) -> 0.6213348477 | R100: =IF((N102+R102)>100,R102*100/(N102+R102),R102) -> 0 | S100: =IF((S102+W102)>100,S102*100/(S102+W102),S102) -> 99.48076081 | T100: =S100*AVERAGEIF(T105:T116,">0")/100 -> 99.04142927 | U100: =S100*(100-AVERAGEIF(T105:T116,">0"))/100 -> 0.4393315442 | V100: =100-(T100+U100+W100) -> 0.519239186 | W100: =IF((S102+W102)>100,W102*100/(S102+W102),W102) -> 0 | X100: =IF((X102+AB102)>100,X102*100/(X102+AB102),X102) -> 99.23962707 | Y100: =X100*AVERAGEIF(Y105:Y116,">0")/100 -> 98.92874911 | Z100: =X100*(100-AVERAGEIF(Y105:Y116,">0"))/100 -> 0.3108779612 | AA100: =100-(Y100+Z100+AB100) -> 0.7603729335 | AB100: =IF((X102+AB102)>100,AB102*100/(X102+AB102),AB102) -> 0
A101: Regression period: | C101: =MinRegYear(C99,C105:C116) -> 2015 | D101: =IF(MAX(C105:C116)-MIN(C105:C116)<5,AVERAGEIF(C105:C116,">0",D105:D116), IF(FORECAST($C101,D$105:D$116,$C$105:$C$116)<0,0, IF(FORECAST($C101,D$105:D$116,$C$105:$C$116)>100,100, FORECAST($C101,D$105:D$116,$C$105:$C$116)))) -> 98.33916366 | H101: =IF(MAX(C105:C116)-MIN(C105:C116)<5,AVERAGEIF(C105:C116,">0",H105:H116), IF(FORECAST($C101,H$105:H$116,$C$105:$C$116)<0,0, IF(FORECAST($C101,H$105:H$116,$C$105:$C$116)>100,100, FORECAST($C101,H$105:H$116,$C$105:$C$116)))) -> 0.433973491 | I101: =IF(MAX(C105:C116)-MIN(C105:C116)<5,AVERAGEIF(C105:C116,">0",I105:I116), IF(FORECAST($C101,I$105:I$116,$C$105:$C$116)<0,0, IF(FORECAST($C101,I$105:I$116,$C$105:$C$116)>100,100, FORECAST($C101,I$105:I$116,$C$105:$C$116)))) -> 98.85502498 | M101: =IF(MAX(C105:C116)-MIN(C105:C116)<5,AVERAGEIF(C105:C116,">0",M105:M116), IF(FORECAST($C101,M$105:M$116,$C$105:$C$116)<0,0, IF(FORECAST($C101,M$105:M$116,$C$105:$C$116)>100,100, FORECAST($C101,M$105:M$116,$C$105:$C$116)))) -> 0 | N101: =IF(MAX(C105:C116)-MIN(C105:C116)<5,AVERAGEIF(C105:C116,">0",N105:N116), IF(FORECAST($C101,N$105:N$116,$C$105:$C$116)<0,0, IF(FORECAST($C101,N$105:N$116,$C$105:$C$116)>100,100, FORECAST($C101,N$105:N$116,$C$105:$C$116)))) -> 99.37866515 | R101: =IF(MAX(C105:C116)-MIN(C105:C116)<5,AVERAGEIF(C105:C116,">0",R105:R116), IF(FORECAST($C101,R$105:R$116,$C$105:$C$116)<0,0, IF(FORECAST($C101,R$105:R$116,$C$105:$C$116)>100,100, FORECAST($C101,R$105:R$116,$C$105:$C$116)))) -> 0 | S101: =IF(MAX(C105:C116)-MIN(C105:C116)<5,AVERAGEIF(C105:C116,">0",S105:S116), IF(FORECAST($C101,S$105:S$116,$C$105:$C$116)<0,0, IF(FORECAST($C101,S$105:S$116,$C$105:$C$116)>100,100, FORECAST($C101,S$105:S$116,$C$105:$C$116)))) -> 99.48076081 | W101: =IF(MAX(C105:C116)-MIN(C105:C116)<5,AVERAGEIF(C105:C116,">0",W105:W116), IF(FORECAST($C101,W$105:W$116,$C$105:$C$116)<0,0, IF(FORECAST($C101,W$105:W$116,$C$105:$C$116)>100,100, FORECAST($C101,W$105:W$116,$C$105:$C$116)))) -> 0 | X101: =IF(MAX(C105:C116)-MIN(C105:C116)<5,AVERAGEIF(C105:C116,">0",X105:X116), IF(FORECAST($C101,X$105:X$116,$C$105:$C$116)<0,0, IF(FORECAST($C101,X$105:X$116,$C$105:$C$116)>100,100, FORECAST($C101,X$105:X$116,$C$105:$C$116)))) -> 99.23962707 | AB101: =IF(MAX(C105:C116)-MIN(C105:C116)<5,AVERAGEIF(C105:C116,">0",AB105:AB116), IF(FORECAST($C101,AB$105:AB$116,$C$105:$C$116)<0,0, IF(FORECAST($C101,AB$105:AB$116,$C$105:$C$116)>100,100, FORECAST($C101,AB$105:AB$116,$C$105:$C$116)))) -> 0
C102: =MaxRegYear(C100,C105:C116) -> 2019 | D102: =IF(MAX(C105:C116)-MIN(C105:C116)<5,AVERAGEIF(C105:C116,">0",D105:D116), IF(FORECAST($C102,D$105:D$116,$C$105:$C$116)<0,0, IF(FORECAST($C102,D$105:D$116,$C$105:$C$116)>100,100, FORECAST($C102,D$105:D$116,$C$105:$C$116)))) -> 98.33916366 | H102: =IF(MAX(C105:C116)-MIN(C105:C116)<5,AVERAGEIF(C105:C116,">0",H105:H116), IF(FORECAST($C102,H$105:H$116,$C$105:$C$116)<0,0, IF(FORECAST($C102,H$105:H$116,$C$105:$C$116)>100,100, FORECAST($C102,H$105:H$116,$C$105:$C$116)))) -> 0.433973491 | I102: =IF(MAX(C105:C116)-MIN(C105:C116)<5,AVERAGEIF(C105:C116,">0",I105:I116), IF(FORECAST($C102,I$105:I$116,$C$105:$C$116)<0,0, IF(FORECAST($C102,I$105:I$116,$C$105:$C$116)>100,100, FORECAST($C102,I$105:I$116,$C$105:$C$116)))) -> 98.85502498 | M102: =IF(MAX(C105:C116)-MIN(C105:C116)<5,AVERAGEIF(C105:C116,">0",M105:M116), IF(FORECAST($C102,M$105:M$116,$C$105:$C$116)<0,0, IF(FORECAST($C102,M$105:M$116,$C$105:$C$116)>100,100, FORECAST($C102,M$105:M$116,$C$105:$C$116)))) -> 0 | N102: =IF(MAX(C105:C116)-MIN(C105:C116)<5,AVERAGEIF(C105:C116,">0",N105:N116), IF(FORECAST($C102,N$105:N$116,$C$105:$C$116)<0,0, IF(FORECAST($C102,N$105:N$116,$C$105:$C$116)>100,100, FORECAST($C102,N$105:N$116,$C$105:$C$116)))) -> 99.37866515 | R102: =IF(MAX(C105:C116)-MIN(C105:C116)<5,AVERAGEIF(C105:C116,">0",R105:R116), IF(FORECAST($C102,R$105:R$116,$C$105:$C$116)<0,0, IF(FORECAST($C102,R$105:R$116,$C$105:$C$116)>100,100, FORECAST($C102,R$105:R$116,$C$105:$C$116)))) -> 0 | S102: =IF(MAX(C105:C116)-MIN(C105:C116)<5,AVERAGEIF(C105:C116,">0",S105:S116), IF(FORECAST($C102,S$105:S$116,$C$105:$C$116)<0,0, IF(FORECAST($C102,S$105:S$116,$C$105:$C$116)>100,100, FORECAST($C102,S$105:S$116,$C$105:$C$116)))) -> 99.48076081 | W102: =IF(MAX(C105:C116)-MIN(C105:C116)<5,AVERAGEIF(C105:C116,">0",W105:W116), IF(FORECAST($C102,W$105:W$116,$C$105:$C$116)<0,0, IF(FORECAST($C102,W$105:W$116,$C$105:$C$116)>100,100, FORECAST($C102,W$105:W$116,$C$105:$C$116)))) -> 0 | X102: =IF(MAX(C105:C116)-MIN(C105:C116)<5,AVERAGEIF(C105:C116,">0",X105:X116), IF(FORECAST($C102,X$105:X$116,$C$105:$C$116)<0,0, IF(FORECAST($C102,X$105:X$116,$C$105:$C$116)>100,100, FORECAST($C102,X$105:X$116,$C$105:$C$116)))) -> 99.23962707 | AB102: =IF(MAX(C105:C116)-MIN(C105:C116)<5,AVERAGEIF(C105:C116,">0",AB105:AB116), IF(FORECAST($C102,AB$105:AB$116,$C$105:$C$116)<0,0, IF(FORECAST($C102,AB$105:AB$116,$C$105:$C$116)>100,100, FORECAST($C102,AB$105:AB$116,$C$105:$C$116)))) -> 0
B104: Survey | C104: Year | D104: Improved | E104: Not shared | H104: Open defecation | I104: Improved | J104: Not shared | M104: Open defecation | N104: Improved | O104: Not shared | R104: Open defecation | S104: Improved | T104: Not shared | W104: Open defecation | X104: Improved | Y104: Not shared | AB104: Open defecation
B105: DHS17 | C105: 2017 | D105: =IF(ISERROR(INDIRECT(CONCATENATE($B105,"!C122"))),"",INDIRECT(CONCATENATE($B105,"!C122"))) -> 98.33916366 | E105: =IF(ISERROR(INDIRECT(CONCATENATE($B105,"!C129"))),"",INDIRECT(CONCATENATE($B105,"!C129"))) -> 99.00076131 | H105: =IF(ISERROR(INDIRECT(CONCATENATE($B105,"!C127"))),"",INDIRECT(CONCATENATE($B105,"!C127"))) -> 0.433973491 | I105: =IF(ISERROR(INDIRECT(CONCATENATE($B105,"!D122"))),"",INDIRECT(CONCATENATE($B105,"!D122"))) -> 98.85502498 | J105: =IF(ISERROR(INDIRECT(CONCATENATE($B105,"!D129"))),"",INDIRECT(CONCATENATE($B105,"!D129"))) -> 99.32918282 | M105: =IF(ISERROR(INDIRECT(CONCATENATE($B105,"!D127"))),"",INDIRECT(CONCATENATE($B105,"!D127"))) -> 0 | N105: =IF(ISERROR(INDIRECT(CONCATENATE($B105,"!E122"))),"",INDIRECT(CONCATENATE($B105,"!E122"))) -> 99.37866515 | O105: =IF(ISERROR(INDIRECT(CONCATENATE($B105,"!E129"))),"",INDIRECT(CONCATENATE($B105,"!E129"))) -> 99.26875723 | R105: =IF(ISERROR(INDIRECT(CONCATENATE($B105,"!E127"))),"",INDIRECT(CONCATENATE($B105,"!E127"))) -> 0 | S105: =IF(ISERROR(INDIRECT(CONCATENATE($B105,"!F122"))),"",INDIRECT(CONCATENATE($B105,"!F122"))) -> 99.48076081 | T105: =IF(ISERROR(INDIRECT(CONCATENATE($B105,"!F129"))),"",INDIRECT(CONCATENATE($B105,"!F129"))) -> 99.55837537 | W105: =IF(ISERROR(INDIRECT(CONCATENATE($B105,"!F127"))),"",INDIRECT(CONCATENATE($B105,"!F127"))) -> 0 | X105: =IF(ISERROR(INDIRECT(CONCATENATE($B105,"!G122"))),"",INDIRECT(CONCATENATE($B105,"!G122"))) -> 99.23962707 | Y105: =IF(ISERROR(INDIRECT(CONCATENATE($B105,"!G129"))),"",INDIRECT(CONCATENATE($B105,"!G129"))) -> 99.6867401 | AB105: =IF(ISERROR(INDIRECT(CONCATENATE($B105,"!G2127"))),"",INDIRECT(CONCATENATE($B105,"!G127"))) -> 0
B118: =CONCATENATE("National use of sanitation facilities, ",C99,"–",C100) -> National use of sanitation facilities, 2013–2020 | S118: Data points used for regression
A197: URBAN | D197: Poorest | I197: Poor | N197: Middle | S197: Rich | X197: Richest
D198: Improved | E198: Basic | F198: Limited | G198: Unimproved | H198: Open defecation | I198: Improved | J198: Basic | K198: Limited | L198: Unimproved | M198: Open defecation | N198: Improved | O198: Basic | P198: Limited | Q198: Unimproved | R198: Open defecation | S198: Improved | T198: Basic | U198: Limited | V198: Unimproved | W198: Open defecation | X198: Improved | Y198: Basic | Z198: Limited | AA198: Unimproved | AB198: Open defecation
A199: Forecast period: | C199: =MinBase(C205:C216) -> 2013 | D199: =IF((D201+H201)>100,D201*100/(D201+H201),D201) -> 100 | E199: =D199*AVERAGEIF(E205:E216,">0")/100 -> 98.30621418 | F199: =D199*(100-AVERAGEIF(E205:E216,">0"))/100 -> 1.693785816 | G199: =100-(E199+F199+H199) -> 0 | H199: =IF((D201+H201)>100,H201*100/(D201+H201),H201) -> 0 | I199: =IF((I201+M201)>100,I201*100/(I201+M201),I201) -> 100 | J199: =I199*AVERAGEIF(J205:J216,">0")/100 -> 98.99781077 | K199: =I199*(100-AVERAGEIF(J205:J216,">0"))/100 -> 1.002189229 | L199: =100-(J199+K199+M199) -> 0 | M199: =IF((I201+M201)>100,M201*100/(I201+M201),M201) -> 0 | N199: =IF((N201+R201)>100,N201*100/(N201+R201),N201) -> 100 | O199: =N199*AVERAGEIF(O205:O216,">0")/100 -> 100 | P199: =N199*(100-AVERAGEIF(O205:O216,">0"))/100 -> 0 | Q199: =100-(O199+P199+R199) -> 0 | R199: =IF((N201+R201)>100,R201*100/(N201+R201),R201) -> 0 | S199: =IF((S201+W201)>100,S201*100/(S201+W201),S201) -> 99.00912274 | T199: =S199*AVERAGEIF(T205:T216,">0")/100 -> 99.00912274 | U199: =S199*(100-AVERAGEIF(T205:T216,">0"))/100 -> 0 | V199: =100-(T199+U199+W199) -> 0.9908772565 | W199: =IF((S201+W201)>100,W201*100/(S201+W201),W201) -> 0 | X199: =IF((X201+AB201)>100,X201*100/(X201+AB201),X201) -> 100 | Y199: =X199*AVERAGEIF(Y205:Y216,">0")/100 -> 99.42170437 | Z199: =X199*(100-AVERAGEIF(Y205:Y216,">0"))/100 -> 0.578295634 | AA199: =100-(Y199+Z199+AB199) -> 0 | AB199: =IF((X201+AB201)>100,AB201*100/(X201+AB201),AB201) -> 0
C200: =MaxTarget(C205:C216) -> 2020 | D200: =IF((D202+H202)>100,D202*100/(D202+H202),D202) -> 100 | E200: =D200*AVERAGEIF(E205:E216,">0")/100 -> 98.30621418 | F200: =D200*(100-AVERAGEIF(E205:E216,">0"))/100 -> 1.693785816 | G200: =100-(E200+F200+H200) -> 0 | H200: =IF((D202+H202)>100,H202*100/(D202+H202),H202) -> 0 | I200: =IF((I202+M202)>100,I202*100/(I202+M202),I202) -> 100 | J200: =I200*AVERAGEIF(J205:J216,">0")/100 -> 98.99781077 | K200: =I200*(100-AVERAGEIF(J205:J216,">0"))/100 -> 1.002189229 | L200: =100-(J200+K200+M200) -> 0 | M200: =IF((I202+M202)>100,M202*100/(I202+M202),M202) -> 0 | N200: =IF((N202+R202)>100,N202*100/(N202+R202),N202) -> 100 | O200: =N200*AVERAGEIF(O205:O216,">0")/100 -> 100 | P200: =N200*(100-AVERAGEIF(O205:O216,">0"))/100 -> 0 | Q200: =100-(O200+P200+R200) -> 0 | R200: =IF((N202+R202)>100,R202*100/(N202+R202),R202) -> 0 | S200: =IF((S202+W202)>100,S202*100/(S202+W202),S202) -> 99.00912274 | T200: =S200*AVERAGEIF(T205:T216,">0")/100 -> 99.00912274 | U200: =S200*(100-AVERAGEIF(T205:T216,">0"))/100 -> 0 | V200: =100-(T200+U200+W200) -> 0.9908772565 | W200: =IF((S202+W202)>100,W202*100/(S202+W202),W202) -> 0 | X200: =IF((X202+AB202)>100,X202*100/(X202+AB202),X202) -> 100 | Y200: =X200*AVERAGEIF(Y205:Y216,">0")/100 -> 99.42170437 | Z200: =X200*(100-AVERAGEIF(Y205:Y216,">0"))/100 -> 0.578295634 | AA200: =100-(Y200+Z200+AB200) -> 0 | AB200: =IF((X202+AB202)>100,AB202*100/(X202+AB202),AB202) -> 0
A201: Regression period: | C201: =MinRegYear(C199,C205:C216) -> 2015 | D201: =IF(MAX(C205:C216)-MIN(C205:C216)<5,AVERAGEIF(C205:C216,">0",D205:D216), IF(FORECAST($C201,D$205:D$216,$C$205:$C$216)<0,0, IF(FORECAST($C201,D$205:D$216,$C$205:$C$216)>100,100, FORECAST($C201,D$205:D$216,$C$205:$C$216)))) -> 100 | H201: =IF(MAX(C205:C216)-MIN(C205:C216)<5,AVERAGEIF(C205:C216,">0",H205:H216), IF(FORECAST($C201,H$205:H$216,$C$205:$C$216)<0,0, IF(FORECAST($C201,H$205:H$216,$C$205:$C$216)>100,100, FORECAST($C201,H$205:H$216,$C$205:$C$216)))) -> 0 | I201: =IF(MAX(C205:C216)-MIN(C205:C216)<5,AVERAGEIF(C205:C216,">0",I205:I216), IF(FORECAST($C201,I$205:I$216,$C$205:$C$216)<0,0, IF(FORECAST($C201,I$205:I$216,$C$205:$C$216)>100,100, FORECAST($C201,I$205:I$216,$C$205:$C$216)))) -> 100 | M201: =IF(MAX(C205:C216)-MIN(C205:C216)<5,AVERAGEIF(C205:C216,">0",M205:M216), IF(FORECAST($C201,M$205:M$216,$C$205:$C$216)<0,0, IF(FORECAST($C201,M$205:M$216,$C$205:$C$216)>100,100, FORECAST($C201,M$205:M$216,$C$205:$C$216)))) -> 0 | N201: =IF(MAX(C205:C216)-MIN(C205:C216)<5,AVERAGEIF(C205:C216,">0",N205:N216), IF(FORECAST($C201,N$205:N$216,$C$205:$C$216)<0,0, IF(FORECAST($C201,N$205:N$216,$C$205:$C$216)>100,100, FORECAST($C201,N$205:N$216,$C$205:$C$216)))) -> 100 | R201: =IF(MAX(C205:C216)-MIN(C205:C216)<5,AVERAGEIF(C205:C216,">0",R205:R216), IF(FORECAST($C201,R$205:R$216,$C$205:$C$216)<0,0, IF(FORECAST($C201,R$205:R$216,$C$205:$C$216)>100,100, FORECAST($C201,R$205:R$216,$C$205:$C$216)))) -> 0 | S201: =IF(MAX(C205:C216)-MIN(C205:C216)<5,AVERAGEIF(C205:C216,">0",S205:S216), IF(FORECAST($C201,S$205:S$216,$C$205:$C$216)<0,0, IF(FORECAST($C201,S$205:S$216,$C$205:$C$216)>100,100, FORECAST($C201,S$205:S$216,$C$205:$C$216)))) -> 99.00912274 | W201: =IF(MAX(C205:C216)-MIN(C205:C216)<5,AVERAGEIF(C205:C216,">0",W205:W216), IF(FORECAST($C201,W$205:W$216,$C$205:$C$216)<0,0, IF(FORECAST($C201,W$205:W$216,$C$205:$C$216)>100,100, FORECAST($C201,W$205:W$216,$C$205:$C$216)))) -> 0 | X201: =IF(MAX(C205:C216)-MIN(C205:C216)<5,AVERAGEIF(C205:C216,">0",X205:X216), IF(FORECAST($C201,X$205:X$216,$C$205:$C$216)<0,0, IF(FORECAST($C201,X$205:X$216,$C$205:$C$216)>100,100, FORECAST($C201,X$205:X$216,$C$205:$C$216)))) -> 100 | AB201: =IF(MAX(C205:C216)-MIN(C205:C216)<5,AVERAGEIF(C205:C216,">0",AB205:AB216), IF(FORECAST($C201,AB$205:AB$216,$C$205:$C$216)<0,0, IF(FORECAST($C201,AB$205:AB$216,$C$205:$C$216)>100,100, FORECAST($C201,AB$205:AB$216,$C$205:$C$216)))) -> 0
C202: =MaxRegYear(C200,C205:C216) -> 2019 | D202: =IF(MAX(C205:C216)-MIN(C205:C216)<5,AVERAGEIF(C205:C216,">0",D205:D216), IF(FORECAST($C202,D$205:D$216,$C$205:$C$216)<0,0, IF(FORECAST($C202,D$205:D$216,$C$205:$C$216)>100,100, FORECAST($C202,D$205:D$216,$C$205:$C$216)))) -> 100 | H202: =IF(MAX(C205:C216)-MIN(C205:C216)<5,AVERAGEIF(C205:C216,">0",H205:H216), IF(FORECAST($C202,H$205:H$216,$C$205:$C$216)<0,0, IF(FORECAST($C202,H$205:H$216,$C$205:$C$216)>100,100, FORECAST($C202,H$205:H$216,$C$205:$C$216)))) -> 0 | I202: =IF(MAX(C205:C216)-MIN(C205:C216)<5,AVERAGEIF(C205:C216,">0",I205:I216), IF(FORECAST($C202,I$205:I$216,$C$205:$C$216)<0,0, IF(FORECAST($C202,I$205:I$216,$C$205:$C$216)>100,100, FORECAST($C202,I$205:I$216,$C$205:$C$216)))) -> 100 | M202: =IF(MAX(C205:C216)-MIN(C205:C216)<5,AVERAGEIF(C205:C216,">0",M205:M216), IF(FORECAST($C202,M$205:M$216,$C$205:$C$216)<0,0, IF(FORECAST($C202,M$205:M$216,$C$205:$C$216)>100,100, FORECAST($C202,M$205:M$216,$C$205:$C$216)))) -> 0 | N202: =IF(MAX(C205:C216)-MIN(C205:C216)<5,AVERAGEIF(C205:C216,">0",N205:N216), IF(FORECAST($C202,N$205:N$216,$C$205:$C$216)<0,0, IF(FORECAST($C202,N$205:N$216,$C$205:$C$216)>100,100, FORECAST($C202,N$205:N$216,$C$205:$C$216)))) -> 100 | R202: =IF(MAX(C205:C216)-MIN(C205:C216)<5,AVERAGEIF(C205:C216,">0",R205:R216), IF(FORECAST($C202,R$205:R$216,$C$205:$C$216)<0,0, IF(FORECAST($C202,R$205:R$216,$C$205:$C$216)>100,100, FORECAST($C202,R$205:R$216,$C$205:$C$216)))) -> 0 | S202: =IF(MAX(C205:C216)-MIN(C205:C216)<5,AVERAGEIF(C205:C216,">0",S205:S216), IF(FORECAST($C202,S$205:S$216,$C$205:$C$216)<0,0, IF(FORECAST($C202,S$205:S$216,$C$205:$C$216)>100,100, FORECAST($C202,S$205:S$216,$C$205:$C$216)))) -> 99.00912274 | W202: =IF(MAX(C205:C216)-MIN(C205:C216)<5,AVERAGEIF(C205:C216,">0",W205:W216), IF(FORECAST($C202,W$205:W$216,$C$205:$C$216)<0,0, IF(FORECAST($C202,W$205:W$216,$C$205:$C$216)>100,100, FORECAST($C202,W$205:W$216,$C$205:$C$216)))) -> 0 | X202: =IF(MAX(C205:C216)-MIN(C205:C216)<5,AVERAGEIF(C205:C216,">0",X205:X216), IF(FORECAST($C202,X$205:X$216,$C$205:$C$216)<0,0, IF(FORECAST($C202,X$205:X$216,$C$205:$C$216)>100,100, FORECAST($C202,X$205:X$216,$C$205:$C$216)))) -> 100 | AB202: =IF(MAX(C205:C216)-MIN(C205:C216)<5,AVERAGEIF(C205:C216,">0",AB205:AB216), IF(FORECAST($C202,AB$205:AB$216,$C$205:$C$216)<0,0, IF(FORECAST($C202,AB$205:AB$216,$C$205:$C$216)>100,100, FORECAST($C202,AB$205:AB$216,$C$205:$C$216)))) -> 0
B204: Survey | C204: Year | D204: Improved | E204: Not shared | H204: Open defecation | I204: Improved | J204: Not shared | M204: Open defecation | N204: Improved | O204: Not shared | R204: Open defecation | S204: Improved | T204: Not shared | W204: Open defecation | X204: Improved | Y204: Not shared | AB204: Open defecation
B205: DHS17 | C205: 2017 | D205: =IF(ISERROR(INDIRECT(CONCATENATE($B205,"!H122"))),"",INDIRECT(CONCATENATE($B205,"!H122"))) -> 100 | E205: =IF(ISERROR(INDIRECT(CONCATENATE($B205,"!H129"))),"",INDIRECT(CONCATENATE($B205,"!H129"))) -> 98.30621418 | H205: =IF(ISERROR(INDIRECT(CONCATENATE($B205,"!H127"))),"",INDIRECT(CONCATENATE($B205,"!H127"))) -> 0 | I205: =IF(ISERROR(INDIRECT(CONCATENATE($B205,"!I122"))),"",INDIRECT(CONCATENATE($B205,"!I122"))) -> 100 | J205: =IF(ISERROR(INDIRECT(CONCATENATE($B205,"!I129"))),"",INDIRECT(CONCATENATE($B205,"!I129"))) -> 98.99781077 | M205: =IF(ISERROR(INDIRECT(CONCATENATE($B205,"!I127"))),"",INDIRECT(CONCATENATE($B205,"!I127"))) -> 0 | N205: =IF(ISERROR(INDIRECT(CONCATENATE($B205,"!J122"))),"",INDIRECT(CONCATENATE($B205,"!J122"))) -> 100 | O205: =IF(ISERROR(INDIRECT(CONCATENATE($B205,"!J129"))),"",INDIRECT(CONCATENATE($B205,"!J129"))) -> 100 | R205: =IF(ISERROR(INDIRECT(CONCATENATE($B205,"!J127"))),"",INDIRECT(CONCATENATE($B205,"!J127"))) -> 0 | S205: =IF(ISERROR(INDIRECT(CONCATENATE($B205,"!K122"))),"",INDIRECT(CONCATENATE($B205,"!K122"))) -> 99.00912274 | T205: =IF(ISERROR(INDIRECT(CONCATENATE($B205,"!K129"))),"",INDIRECT(CONCATENATE($B205,"!K129"))) -> 100 | W205: =IF(ISERROR(INDIRECT(CONCATENATE($B205,"!K127"))),"",INDIRECT(CONCATENATE($B205,"!K127"))) -> 0 | X205: =IF(ISERROR(INDIRECT(CONCATENATE($B205,"!L122"))),"",INDIRECT(CONCATENATE($B205,"!L122"))) -> 100 | Y205: =IF(ISERROR(INDIRECT(CONCATENATE($B205,"!L129"))),"",INDIRECT(CONCATENATE($B205,"!L129"))) -> 99.42170437 | AB205: =IF(ISERROR(INDIRECT(CONCATENATE($B205,"!L2127"))),"",INDIRECT(CONCATENATE($B205,"!L127"))) -> 0
B218: =CONCATENATE("Urban use of sanitation facilities, ",C199,"–",C200) -> Urban use of sanitation facilities, 2013–2020 | S218: Data points used for regression
A297: RURAL | D297: Poorest | I297: Poor | N297: Middle | S297: Rich | X297: Richest
D298: Improved | E298: Basic | F298: Limited | G298: Unimproved | H298: Open defecation | I298: Improved | J298: Basic | K298: Limited | L298: Unimproved | M298: Open defecation | N298: Improved | O298: Basic | P298: Limited | Q298: Unimproved | R298: Open defecation | S298: Improved | T298: Basic | U298: Limited | V298: Unimproved | W298: Open defecation | X298: Improved | Y298: Basic | Z298: Limited | AA298: Unimproved | AB298: Open defecation
A299: Forecast period: | C299: =MinBase(C305:C316) -> 2013 | D299: =IF((D301+H301)>100,D301*100/(D301+H301),D301) -> 97.55452794 | E299: =D299*AVERAGEIF(E305:E316,">0")/100 -> 96.98768832 | F299: =D299*(100-AVERAGEIF(E305:E316,">0"))/100 -> 0.5668396212 | G299: =100-(E299+F299+H299) -> 1.706198176 | H299: =IF((D301+H301)>100,H301*100/(D301+H301),H301) -> 0.7392738855 | I299: =IF((I301+M301)>100,I301*100/(I301+M301),I301) -> 98.56759229 | J299: =I299*AVERAGEIF(J305:J316,">0")/100 -> 97.77798499 | K299: =I299*(100-AVERAGEIF(J305:J316,">0"))/100 -> 0.7896072951 | L299: =100-(J299+K299+M299) -> 1.432407712 | M299: =IF((I301+M301)>100,M301*100/(I301+M301),M301) -> 0 | N299: =IF((N301+R301)>100,N301*100/(N301+R301),N301) -> 98.30902145 | O299: =N299*AVERAGEIF(O305:O316,">0")/100 -> 97.97840249 | P299: =N299*(100-AVERAGEIF(O305:O316,">0"))/100 -> 0.3306189585 | Q299: =100-(O299+P299+R299) -> 1.69097855 | R299: =IF((N301+R301)>100,R301*100/(N301+R301),R301) -> 0 | S299: =IF((S301+W301)>100,S301*100/(S301+W301),S301) -> 99.09591586 | T299: =S299*AVERAGEIF(T305:T316,">0")/100 -> 98.06489204 | U299: =S299*(100-AVERAGEIF(T305:T316,">0"))/100 -> 1.031023822 | V299: =100-(T299+U299+W299) -> 0.9040841389 | W299: =IF((S301+W301)>100,W301*100/(S301+W301),W301) -> 0 | X299: =IF((X301+AB301)>100,X301*100/(X301+AB301),X301) -> 99.15531405 | Y299: =X299*AVERAGEIF(Y305:Y316,">0")/100 -> 98.86067319 | Z299: =X299*(100-AVERAGEIF(Y305:Y316,">0"))/100 -> 0.2946408598 | AA299: =100-(Y299+Z299+AB299) -> 0.8446859537 | AB299: =IF((X301+AB301)>100,AB301*100/(X301+AB301),AB301) -> 0
C300: =MaxTarget(C305:C316) -> 2020 | D300: =IF((D302+H302)>100,D302*100/(D302+H302),D302) -> 97.55452794 | E300: =D300*AVERAGEIF(E305:E316,">0")/100 -> 96.98768832 | F300: =D300*(100-AVERAGEIF(E305:E316,">0"))/100 -> 0.5668396212 | G300: =100-(E300+F300+H300) -> 1.706198176 | H300: =IF((D302+H302)>100,H302*100/(D302+H302),H302) -> 0.7392738855 | I300: =IF((I302+M302)>100,I302*100/(I302+M302),I302) -> 98.56759229 | J300: =I300*AVERAGEIF(J305:J316,">0")/100 -> 97.77798499 | K300: =I300*(100-AVERAGEIF(J305:J316,">0"))/100 -> 0.7896072951 | L300: =100-(J300+K300+M300) -> 1.432407712 | M300: =IF((I302+M302)>100,M302*100/(I302+M302),M302) -> 0 | N300: =IF((N302+R302)>100,N302*100/(N302+R302),N302) -> 98.30902145 | O300: =N300*AVERAGEIF(O305:O316,">0")/100 -> 97.97840249 | P300: =N300*(100-AVERAGEIF(O305:O316,">0"))/100 -> 0.3306189585 | Q300: =100-(O300+P300+R300) -> 1.69097855 | R300: =IF((N302+R302)>100,R302*100/(N302+R302),R302) -> 0 | S300: =IF((S302+W302)>100,S302*100/(S302+W302),S302) -> 99.09591586 | T300: =S300*AVERAGEIF(T305:T316,">0")/100 -> 98.06489204 | U300: =S300*(100-AVERAGEIF(T305:T316,">0"))/100 -> 1.031023822 | V300: =100-(T300+U300+W300) -> 0.9040841389 | W300: =IF((S302+W302)>100,W302*100/(S302+W302),W302) -> 0 | X300: =IF((X302+AB302)>100,X302*100/(X302+AB302),X302) -> 99.15531405 | Y300: =X300*AVERAGEIF(Y305:Y316,">0")/100 -> 98.86067319 | Z300: =X300*(100-AVERAGEIF(Y305:Y316,">0"))/100 -> 0.2946408598 | AA300: =100-(Y300+Z300+AB300) -> 0.8446859537 | AB300: =IF((X302+AB302)>100,AB302*100/(X302+AB302),AB302) -> 0
A301: Regression period: | C301: =MinRegYear(C299,C305:C316) -> 2015 | D301: =IF(MAX(C305:C316)-MIN(C305:C316)<5,AVERAGEIF(C305:C316,">0",D305:D316), IF(FORECAST($C301,D$305:D$316,$C$305:$C$316)<0,0, IF(FORECAST($C301,D$305:D$316,$C$305:$C$316)>100,100, FORECAST($C301,D$305:D$316,$C$305:$C$316)))) -> 97.55452794 | H301: =IF(MAX(C305:C316)-MIN(C305:C316)<5,AVERAGEIF(C305:C316,">0",H305:H316), IF(FORECAST($C301,H$305:H$316,$C$305:$C$316)<0,0, IF(FORECAST($C301,H$305:H$316,$C$305:$C$316)>100,100, FORECAST($C301,H$305:H$316,$C$305:$C$316)))) -> 0.7392738855 | I301: =IF(MAX(C305:C316)-MIN(C305:C316)<5,AVERAGEIF(C305:C316,">0",I305:I316), IF(FORECAST($C301,I$305:I$316,$C$305:$C$316)<0,0, IF(FORECAST($C301,I$305:I$316,$C$305:$C$316)>100,100, FORECAST($C301,I$305:I$316,$C$305:$C$316)))) -> 98.56759229 | M301: =IF(MAX(C305:C316)-MIN(C305:C316)<5,AVERAGEIF(C305:C316,">0",M305:M316), IF(FORECAST($C301,M$305:M$316,$C$305:$C$316)<0,0, IF(FORECAST($C301,M$305:M$316,$C$305:$C$316)>100,100, FORECAST($C301,M$305:M$316,$C$305:$C$316)))) -> 0 | N301: =IF(MAX(C305:C316)-MIN(C305:C316)<5,AVERAGEIF(C305:C316,">0",N305:N316), IF(FORECAST($C301,N$305:N$316,$C$305:$C$316)<0,0, IF(FORECAST($C301,N$305:N$316,$C$305:$C$316)>100,100, FORECAST($C301,N$305:N$316,$C$305:$C$316)))) -> 98.30902145 | R301: =IF(MAX(C305:C316)-MIN(C305:C316)<5,AVERAGEIF(C305:C316,">0",R305:R316), IF(FORECAST($C301,R$305:R$316,$C$305:$C$316)<0,0, IF(FORECAST($C301,R$305:R$316,$C$305:$C$316)>100,100, FORECAST($C301,R$305:R$316,$C$305:$C$316)))) -> 0 | S301: =IF(MAX(C305:C316)-MIN(C305:C316)<5,AVERAGEIF(C305:C316,">0",S305:S316), IF(FORECAST($C301,S$305:S$316,$C$305:$C$316)<0,0, IF(FORECAST($C301,S$305:S$316,$C$305:$C$316)>100,100, FORECAST($C301,S$305:S$316,$C$305:$C$316)))) -> 99.09591586 | W301: =IF(MAX(C305:C316)-MIN(C305:C316)<5,AVERAGEIF(C305:C316,">0",W305:W316), IF(FORECAST($C301,W$305:W$316,$C$305:$C$316)<0,0, IF(FORECAST($C301,W$305:W$316,$C$305:$C$316)>100,100, FORECAST($C301,W$305:W$316,$C$305:$C$316)))) -> 0 | X301: =IF(MAX(C305:C316)-MIN(C305:C316)<5,AVERAGEIF(C305:C316,">0",X305:X316), IF(FORECAST($C301,X$305:X$316,$C$305:$C$316)<0,0, IF(FORECAST($C301,X$305:X$316,$C$305:$C$316)>100,100, FORECAST($C301,X$305:X$316,$C$305:$C$316)))) -> 99.15531405 | AB301: =IF(MAX(C305:C316)-MIN(C305:C316)<5,AVERAGEIF(C305:C316,">0",AB305:AB316), IF(FORECAST($C301,AB$305:AB$316,$C$305:$C$316)<0,0, IF(FORECAST($C301,AB$305:AB$316,$C$305:$C$316)>100,100, FORECAST($C301,AB$305:AB$316,$C$305:$C$316)))) -> 0
C302: =MaxRegYear(C300,C305:C316) -> 2019 | D302: =IF(MAX(C305:C316)-MIN(C305:C316)<5,AVERAGEIF(C305:C316,">0",D305:D316), IF(FORECAST($C302,D$305:D$316,$C$305:$C$316)<0,0, IF(FORECAST($C302,D$305:D$316,$C$305:$C$316)>100,100, FORECAST($C302,D$305:D$316,$C$305:$C$316)))) -> 97.55452794 | H302: =IF(MAX(C305:C316)-MIN(C305:C316)<5,AVERAGEIF(C305:C316,">0",H305:H316), IF(FORECAST($C302,H$305:H$316,$C$305:$C$316)<0,0, IF(FORECAST($C302,H$305:H$316,$C$305:$C$316)>100,100, FORECAST($C302,H$305:H$316,$C$305:$C$316)))) -> 0.7392738855 | I302: =IF(MAX(C305:C316)-MIN(C305:C316)<5,AVERAGEIF(C305:C316,">0",I305:I316), IF(FORECAST($C302,I$305:I$316,$C$305:$C$316)<0,0, IF(FORECAST($C302,I$305:I$316,$C$305:$C$316)>100,100, FORECAST($C302,I$305:I$316,$C$305:$C$316)))) -> 98.56759229 | M302: =IF(MAX(C305:C316)-MIN(C305:C316)<5,AVERAGEIF(C305:C316,">0",M305:M316), IF(FORECAST($C302,M$305:M$316,$C$305:$C$316)<0,0, IF(FORECAST($C302,M$305:M$316,$C$305:$C$316)>100,100, FORECAST($C302,M$305:M$316,$C$305:$C$316)))) -> 0 | N302: =IF(MAX(C305:C316)-MIN(C305:C316)<5,AVERAGEIF(C305:C316,">0",N305:N316), IF(FORECAST($C302,N$305:N$316,$C$305:$C$316)<0,0, IF(FORECAST($C302,N$305:N$316,$C$305:$C$316)>100,100, FORECAST($C302,N$305:N$316,$C$305:$C$316)))) -> 98.30902145 | R302: =IF(MAX(C305:C316)-MIN(C305:C316)<5,AVERAGEIF(C305:C316,">0",R305:R316), IF(FORECAST($C302,R$305:R$316,$C$305:$C$316)<0,0, IF(FORECAST($C302,R$305:R$316,$C$305:$C$316)>100,100, FORECAST($C302,R$305:R$316,$C$305:$C$316)))) -> 0 | S302: =IF(MAX(C305:C316)-MIN(C305:C316)<5,AVERAGEIF(C305:C316,">0",S305:S316), IF(FORECAST($C302,S$305:S$316,$C$305:$C$316)<0,0, IF(FORECAST($C302,S$305:S$316,$C$305:$C$316)>100,100, FORECAST($C302,S$305:S$316,$C$305:$C$316)))) -> 99.09591586 | W302: =IF(MAX(C305:C316)-MIN(C305:C316)<5,AVERAGEIF(C305:C316,">0",W305:W316), IF(FORECAST($C302,W$305:W$316,$C$305:$C$316)<0,0, IF(FORECAST($C302,W$305:W$316,$C$305:$C$316)>100,100, FORECAST($C302,W$305:W$316,$C$305:$C$316)))) -> 0 | X302: =IF(MAX(C305:C316)-MIN(C305:C316)<5,AVERAGEIF(C305:C316,">0",X305:X316), IF(FORECAST($C302,X$305:X$316,$C$305:$C$316)<0,0, IF(FORECAST($C302,X$305:X$316,$C$305:$C$316)>100,100, FORECAST($C302,X$305:X$316,$C$305:$C$316)))) -> 99.15531405 | AB302: =IF(MAX(C305:C316)-MIN(C305:C316)<5,AVERAGEIF(C305:C316,">0",AB305:AB316), IF(FORECAST($C302,AB$305:AB$316,$C$305:$C$316)<0,0, IF(FORECAST($C302,AB$305:AB$316,$C$305:$C$316)>100,100, FORECAST($C302,AB$305:AB$316,$C$305:$C$316)))) -> 0
B304: Survey | C304: Year | D304: Improved | E304: Not shared | H304: Open defecation | I304: Improved | J304: Not shared | M304: Open defecation | N304: Improved | O304: Not shared | R304: Open defecation | S304: Improved | T304: Not shared | W304: Open defecation | X304: Improved | Y304: Not shared | AB304: Open defecation
B305: DHS17 | C305: 2017 | D305: =IF(ISERROR(INDIRECT(CONCATENATE($B305,"!M122"))),"",INDIRECT(CONCATENATE($B305,"!M122"))) -> 97.55452794 | E305: =IF(ISERROR(INDIRECT(CONCATENATE($B305,"!M129"))),"",INDIRECT(CONCATENATE($B305,"!M129"))) -> 99.41895099 | H305: =IF(ISERROR(INDIRECT(CONCATENATE($B305,"!M127"))),"",INDIRECT(CONCATENATE($B305,"!M127"))) -> 0.7392738855 | I305: =IF(ISERROR(INDIRECT(CONCATENATE($B305,"!N122"))),"",INDIRECT(CONCATENATE($B305,"!N122"))) -> 98.56759229 | J305: =IF(ISERROR(INDIRECT(CONCATENATE($B305,"!N129"))),"",INDIRECT(CONCATENATE($B305,"!N129"))) -> 99.19891794 | M305: =IF(ISERROR(INDIRECT(CONCATENATE($B305,"!N127"))),"",INDIRECT(CONCATENATE($B305,"!N127"))) -> 0 | N305: =IF(ISERROR(INDIRECT(CONCATENATE($B305,"!O122"))),"",INDIRECT(CONCATENATE($B305,"!O122"))) -> 98.30902145 | O305: =IF(ISERROR(INDIRECT(CONCATENATE($B305,"!O129"))),"",INDIRECT(CONCATENATE($B305,"!O129"))) -> 99.66369418 | R305: =IF(ISERROR(INDIRECT(CONCATENATE($B305,"!O127"))),"",INDIRECT(CONCATENATE($B305,"!O127"))) -> 0 | S305: =IF(ISERROR(INDIRECT(CONCATENATE($B305,"!P122"))),"",INDIRECT(CONCATENATE($B305,"!P122"))) -> 99.09591586 | T305: =IF(ISERROR(INDIRECT(CONCATENATE($B305,"!P129"))),"",INDIRECT(CONCATENATE($B305,"!P129"))) -> 98.95956981 | W305: =IF(ISERROR(INDIRECT(CONCATENATE($B305,"!P127"))),"",INDIRECT(CONCATENATE($B305,"!P127"))) -> 0 | X305: =IF(ISERROR(INDIRECT(CONCATENATE($B305,"!Q122"))),"",INDIRECT(CONCATENATE($B305,"!Q122"))) -> 99.15531405 | Y305: =IF(ISERROR(INDIRECT(CONCATENATE($B305,"!Q129"))),"",INDIRECT(CONCATENATE($B305,"!Q129"))) -> 99.70284915 | AB305: =IF(ISERROR(INDIRECT(CONCATENATE($B305,"!Q2127"))),"",INDIRECT(CONCATENATE($B305,"!Q127"))) -> 0
B318: =CONCATENATE("Rural use of sanitation facilities, ",C299,"–",C300) -> Rural use of sanitation facilities, 2013–2020 | S318: Data points used for regression

Sheet Hygiene
B4: Access to hygiene facilities by wealth quintile (%)
B5: =IF(ISERROR(INDIRECT(CONCATENATE($E$32,"!A2"))),"",INDIRECT(CONCATENATE($E$32,"!A2"))) -> Maldives
B7: =CONCATENATE("National ",IF(ISERROR(INDIRECT(CONCATENATE($E$32,"!A2"))),"",INDIRECT(CONCATENATE($E$32,"!A210")))) -> National Access to hygiene facilities | K7: =CONCATENATE("Urban ",IF(ISERROR(INDIRECT(CONCATENATE($E$32,"!A2"))),"",INDIRECT(CONCATENATE($E$32,"!A210")))) -> Urban Access to hygiene facilities | S7: =CONCATENATE("Rural ",IF(ISERROR(INDIRECT(CONCATENATE($E$32,"!A2"))),"",INDIRECT(CONCATENATE($E$32,"!A210")))) -> Rural Access to hygiene facilities
E32: =INDEX(B88:B100,A88) -> DHS17 | G32: =IF(ISERROR(INDIRECT(CONCATENATE($E$32,"!A2"))),"",INDIRECT(CONCATENATE($E$32,"!A2"))) -> Maldives | K32: Poorest | N32: Poor | Q32: Middle | T32: Rich | W32: Richest
K33: Basic | L33: Limited | M33: No facility | N33: Basic | O33: Limited | P33: No facility | Q33: Basic | R33: Limited | S33: No facility | T33: Basic | U33: Limited | V33: No facility | W33: Basic | X33: Limited | Y33: No facility
B34: >>> Select Survey : | G34: NATIONAL | J34: =IF(ISERROR(INDIRECT(CONCATENATE(#REF!,"!A2"))),"",INDIRECT(CONCATENATE(#REF!,"!A210"))) ->  | K34: =IF(ISERROR(INDIRECT(CONCATENATE($E$32,"!C222"))),"",INDIRECT(CONCATENATE($E$32,"!C222"))) -> 86.39435132 | L34: =IF(ISERROR(INDIRECT(CONCATENATE($E$32,"!C223"))),"",INDIRECT(CONCATENATE($E$32,"!C223"))) -> 7.971482618 | M34: =IF(ISERROR(INDIRECT(CONCATENATE($E$32,"!C224"))),"",INDIRECT(CONCATENATE($E$32,"!C224"))) -> 5.634166059 | N34: =IF(ISERROR(INDIRECT(CONCATENATE($E$32,"!D222"))),"",INDIRECT(CONCATENATE($E$32,"!D222"))) -> 93.41812008 | O34: =IF(ISERROR(INDIRECT(CONCATENATE($E$32,"!D223"))),"",INDIRECT(CONCATENATE($E$32,"!D223"))) -> 4.246575417 | P34: =IF(ISERROR(INDIRECT(CONCATENATE($E$32,"!D224"))),"",INDIRECT(CONCATENATE($E$32,"!D224"))) -> 2.335304498 | Q34: =IF(ISERROR(INDIRECT(CONCATENATE($E$32,"!E222"))),"",INDIRECT(CONCATENATE($E$32,"!E222"))) -> 95.97560359 | R34: =IF(ISERROR(INDIRECT(CONCATENATE($E$32,"!E223"))),"",INDIRECT(CONCATENATE($E$32,"!E223"))) -> 2.652636842 | S34: =IF(ISERROR(INDIRECT(CONCATENATE($E$32,"!E224"))),"",INDIRECT(CONCATENATE($E$32,"!E224"))) -> 1.371759565 | T34: =IF(ISERROR(INDIRECT(CONCATENATE($E$32,"!F222"))),"",INDIRECT(CONCATENATE($E$32,"!F222"))) -> 96.65149464 | U34: =IF(ISERROR(INDIRECT(CONCATENATE($E$32,"!F223"))),"",INDIRECT(CONCATENATE($E$32,"!F223"))) -> 2.139775764 | V34: =IF(ISERROR(INDIRECT(CONCATENATE($E$32,"!F224"))),"",INDIRECT(CONCATENATE($E$32,"!F224"))) -> 1.208729591 | W34: =IF(ISERROR(INDIRECT(CONCATENATE($E$32,"!G222"))),"",INDIRECT(CONCATENATE($E$32,"!G222"))) -> 97.26196905 | X34: =IF(ISERROR(INDIRECT(CONCATENATE($E$32,"!G223"))),"",INDIRECT(CONCATENATE($E$32,"!G223"))) -> 1.611953835 | Y34: =IF(ISERROR(INDIRECT(CONCATENATE($E$32,"!G224"))),"",INDIRECT(CONCATENATE($E$32,"!G224"))) -> 1.126077115
G37: URBAN | J37: =IF(ISERROR(INDIRECT(CONCATENATE(#REF!,"!A2"))),"",INDIRECT(CONCATENATE(#REF!,"!A210"))) ->  | K37: =IF(ISERROR(INDIRECT(CONCATENATE($E$32,"!H222"))),"",INDIRECT(CONCATENATE($E$32,"!H222"))) -> 95.61649095 | L37: =IF(ISERROR(INDIRECT(CONCATENATE($E$32,"!H223"))),"",INDIRECT(CONCATENATE($E$32,"!H223"))) -> 3.169832626 | M37: =IF(ISERROR(INDIRECT(CONCATENATE($E$32,"!H224"))),"",INDIRECT(CONCATENATE($E$32,"!H224"))) -> 1.213676427 | N37: =IF(ISERROR(INDIRECT(CONCATENATE($E$32,"!I222"))),"",INDIRECT(CONCATENATE($E$32,"!I222"))) -> 95.24940485 | O37: =IF(ISERROR(INDIRECT(CONCATENATE($E$32,"!I223"))),"",INDIRECT(CONCATENATE($E$32,"!I223"))) -> 4.199320474 | P37: =IF(ISERROR(INDIRECT(CONCATENATE($E$32,"!I224"))),"",INDIRECT(CONCATENATE($E$32,"!I224"))) -> 0.5512746712 | Q37: =IF(ISERROR(INDIRECT(CONCATENATE($E$32,"!J222"))),"",INDIRECT(CONCATENATE($E$32,"!J222"))) -> 97.32441139 | R37: =IF(ISERROR(INDIRECT(CONCATENATE($E$32,"!J223"))),"",INDIRECT(CONCATENATE($E$32,"!J223"))) -> 2.225164754 | S37: =IF(ISERROR(INDIRECT(CONCATENATE($E$32,"!J224"))),"",INDIRECT(CONCATENATE($E$32,"!J224"))) -> 0.4504238516 | T37: =IF(ISERROR(INDIRECT(CONCATENATE($E$32,"!K222"))),"",INDIRECT(CONCATENATE($E$32,"!K222"))) -> 100 | U37: =IF(ISERROR(INDIRECT(CONCATENATE($E$32,"!K223"))),"",INDIRECT(CONCATENATE($E$32,"!K223"))) -> 0 | V37: =IF(ISERROR(INDIRECT(CONCATENATE($E$32,"!K224"))),"",INDIRECT(CONCATENATE($E$32,"!K224"))) -> 0 | W37: =IF(ISERROR(INDIRECT(CONCATENATE($E$32,"!L222"))),"",INDIRECT(CONCATENATE($E$32,"!L222"))) -> 97.19013573 | X37: =IF(ISERROR(INDIRECT(CONCATENATE($E$32,"!L223"))),"",INDIRECT(CONCATENATE($E$32,"!L223"))) -> 2.809864267 | Y37: =IF(ISERROR(INDIRECT(CONCATENATE($E$32,"!L224"))),"",INDIRECT(CONCATENATE($E$32,"!L224"))) -> 0
G40: RURAL | J40: =IF(ISERROR(INDIRECT(CONCATENATE(#REF!,"!A2"))),"",INDIRECT(CONCATENATE(#REF!,"!A210"))) ->  | K40: =IF(ISERROR(INDIRECT(CONCATENATE($E$32,"!M222"))),"",INDIRECT(CONCATENATE($E$32,"!M222"))) -> 82.19336379 | L40: =IF(ISERROR(INDIRECT(CONCATENATE($E$32,"!M223"))),"",INDIRECT(CONCATENATE($E$32,"!M223"))) -> 10.63307767 | M40: =IF(ISERROR(INDIRECT(CONCATENATE($E$32,"!M224"))),"",INDIRECT(CONCATENATE($E$32,"!M224"))) -> 7.173558534 | N40: =IF(ISERROR(INDIRECT(CONCATENATE($E$32,"!N222"))),"",INDIRECT(CONCATENATE($E$32,"!N222"))) -> 91.56036878 | O40: =IF(ISERROR(INDIRECT(CONCATENATE($E$32,"!N223"))),"",INDIRECT(CONCATENATE($E$32,"!N223"))) -> 4.671318024 | P40: =IF(ISERROR(INDIRECT(CONCATENATE($E$32,"!N224"))),"",INDIRECT(CONCATENATE($E$32,"!N224"))) -> 3.768313195 | Q40: =IF(ISERROR(INDIRECT(CONCATENATE($E$32,"!O222"))),"",INDIRECT(CONCATENATE($E$32,"!O222"))) -> 94.38876712 | R40: =IF(ISERROR(INDIRECT(CONCATENATE($E$32,"!O223"))),"",INDIRECT(CONCATENATE($E$32,"!O223"))) -> 3.221414182 | S40: =IF(ISERROR(INDIRECT(CONCATENATE($E$32,"!O224"))),"",INDIRECT(CONCATENATE($E$32,"!O224"))) -> 2.389818694 | T40: =IF(ISERROR(INDIRECT(CONCATENATE($E$32,"!P222"))),"",INDIRECT(CONCATENATE($E$32,"!P222"))) -> 94.99580502 | U40: =IF(ISERROR(INDIRECT(CONCATENATE($E$32,"!P223"))),"",INDIRECT(CONCATENATE($E$32,"!P223"))) -> 2.833019936 | V40: =IF(ISERROR(INDIRECT(CONCATENATE($E$32,"!P224"))),"",INDIRECT(CONCATENATE($E$32,"!P224"))) -> 2.171175048 | W40: =IF(ISERROR(INDIRECT(CONCATENATE($E$32,"!Q222"))),"",INDIRECT(CONCATENATE($E$32,"!Q222"))) -> 95.53378244 | X40: =IF(ISERROR(INDIRECT(CONCATENATE($E$32,"!Q223"))),"",INDIRECT(CONCATENATE($E$32,"!Q223"))) -> 1.637777661 | Y40: =IF(ISERROR(INDIRECT(CONCATENATE($E$32,"!Q224"))),"",INDIRECT(CONCATENATE($E$32,"!Q224"))) -> 2.828439899
A88: 1 | B88: DHS17
B89: Template

Sheet DHS17
A2: =A1026 -> Maldives
A3: =A1034 -> 2017
A4: Use of drinking water sources
A5: by wealth quintile and sub-national region
A6: Notes:
A7: WHO/UNICEF JMP customised wealth index excludes water,
A8: sanitation and hygiene assets.
A9: Survey used for analysis: | B9: =A1025 -> DHS17
A10: =B1028 -> 
A11: =B1027 -> 
A14: Use of drinking water sources | C14: NATIONAL wealth index quintile | H14: URBAN wealth index quintile | M14: RURAL wealth index quintile | R14: SUB-REGIONS: | BA14: Raw numbers of respondents: | BB14: Use of drinking water sources | BC14: NATIONAL wealth index quintile | BH14: URBAN wealth index quintile | BM14: RURAL wealth index quintile | BR14: SUB-REGIONS:
A15: Weighted percentage (used in graphs) | C15: Poorest | D15: Poor | E15: Middle | F15: Rich | G15: Richest | H15: 1 Poorest | I15: 2 Poor | J15: 3 Middle | K15: 4 Rich | L15: 5 Richest | M15: 1 Poorest | N15: 2 Poor | O15: 3 Middle | P15: 4 Rich | Q15: 5 Richest | R15: 4 Central Region | S15: 1 Malé | T15: 3 North Central | U15: 2 North Region | V15: 5 South Central | W15: 6 South Region | BA15: Water data, raw numbers (weighted) | BC15: Poorest | BD15: Poor | BE15: Middle | BF15: Rich | BG15: Richest | BH15: Poorest | BI15: Poor | BJ15: Middle | BK15: Rich | BL15: Richest | BM15: Poorest | BN15: Poor | BO15: Middle | BP15: Rich | BQ15: Richest | BR15: 4 Central Region | BS15: 1 Malé | BT15: 3 North Central | BU15: 2 North Region | BV15: 5 South Central | BW15: 6 South Region
A16: Water | B16: 1 Improved | C16: 98.90888495 | D16: 99.77151304 | E16: 100 | F16: 99.96074531 | G16: 99.68341097 | H16: 98.73273311 | I16: 100 | J16: 100 | K16: 100 | L16: 99.231693 | M16: 99.32652111 | N16: 99.70698555 | O16: 99.6104011 | P16: 100 | Q16: 99.93325649 | R16: 100 | S16: 99.5932734 | T16: 99.87307128 | U16: 100 | V16: 99.36671294 | W16: 99.48016083 | BA16: Water | BB16: Improved | BC16: N/A | BD16: N/A | BE16: N/A | BF16: N/A | BG16: N/A | BH16: N/A | BI16: N/A | BJ16: N/A | BK16: N/A | BL16: N/A | BM16: N/A | BN16: N/A | BO16: N/A | BP16: N/A | BQ16: N/A | BR16: N/A | BS16: N/A | BT16: N/A | BU16: N/A | BV16: N/A | BW16: N/A
B17: 2 Not Improved | C17: 1.091115047 | D17: 0.2284869634 | E17: 0 | F17: 0.03925469021 | G17: 0.3165890322 | H17: 1.267266892 | I17: 0 | J17: 0 | K17: 0 | L17: 0.7683070019 | M17: 0.6734788884 | N17: 0.2930144537 | O17: 0.3895988969 | P17: 0 | Q17: 0.06674350947 | R17: 0 | S17: 0.4067265979 | T17: 0.126928721 | U17: 0 | V17: 0.6332870628 | W17: 0.5198391664 | BB17: Not Improved | BC17: N/A | BD17: N/A | BE17: N/A | BF17: N/A | BG17: N/A | BH17: N/A | BI17: N/A | BJ17: N/A | BK17: N/A | BL17: N/A | BM17: N/A | BN17: N/A | BO17: N/A | BP17: N/A | BQ17: N/A | BR17: N/A | BS17: N/A | BT17: N/A | BU17: N/A | BV17: N/A | BW17: N/A
A18: Water ladder | B18: 1 Basic | C18: 98.72192133 | D18: 99.65613645 | E18: 100 | F18: 99.90143463 | G18: 99.68341097 | H18: 98.73273311 | I18: 100 | J18: 100 | K18: 100 | L18: 99.231693 | M18: 99.00802856 | N18: 99.55531466 | O18: 99.56535293 | P18: 99.8987712 | Q18: 99.93325649 | R18: 98.98831125 | S18: 99.5932734 | T18: 99.87307128 | U18: 100 | V18: 99.36671294 | W18: 99.48016083 | BA18: Water ladder | BB18: Basic | BC18: N/A | BD18: N/A | BE18: N/A | BF18: N/A | BG18: N/A | BH18: N/A | BI18: N/A | BJ18: N/A | BK18: N/A | BL18: N/A | BM18: N/A | BN18: N/A | BO18: N/A | BP18: N/A | BQ18: N/A | BR18: N/A | BS18: N/A | BT18: N/A | BU18: N/A | BV18: N/A | BW18: N/A
B19: 2 Limited | C19: 0.1869636223 | D19: 0.1153765867 | E19: 0 | F19: 0.05931067831 | G19: 0 | H19: 0 | I19: 0 | J19: 0 | K19: 0 | L19: 0 | M19: 0.3184925493 | N19: 0.1516708862 | O19: 0.04504817265 | P19: 0.1012288025 | Q19: 0 | R19: 1.011688746 | S19: 0 | T19: 0 | U19: 0 | V19: 0 | W19: 0 | BB19: Limited | BC19: N/A | BD19: N/A | BE19: N/A | BF19: N/A | BG19: N/A | BH19: N/A | BI19: N/A | BJ19: N/A | BK19: N/A | BL19: N/A | BM19: N/A | BN19: N/A | BO19: N/A | BP19: N/A | BQ19: N/A | BR19: N/A | BS19: N/A | BT19: N/A | BU19: N/A | BV19: N/A | BW19: N/A
B20: 3 Other unimproved | C20: 1.091115047 | D20: 0.2284869634 | E20: 0 | F20: 0.03925469021 | G20: 0.3165890322 | H20: 1.267266892 | I20: 0 | J20: 0 | K20: 0 | L20: 0.7683070019 | M20: 0.6734788884 | N20: 0.2930144537 | O20: 0.3895988969 | P20: 0 | Q20: 0.06674350947 | R20: 0 | S20: 0.4067265979 | T20: 0.126928721 | U20: 0 | V20: 0.6332870628 | W20: 0.5198391664 | BB20: Unimproved | BC20: N/A | BD20: N/A | BE20: N/A | BF20: N/A | BG20: N/A | BH20: N/A | BI20: N/A | BJ20: N/A | BK20: N/A | BL20: N/A | BM20: N/A | BN20: N/A | BO20: N/A | BP20: N/A | BQ20: N/A | BR20: N/A | BS20: N/A | BT20: N/A | BU20: N/A | BV20: N/A | BW20: N/A
B21: 4 Surface water | C21: 0 | D21: 0 | E21: 0 | F21: 0 | G21: 0 | H21: 0 | I21: 0 | J21: 0 | K21: 0 | L21: 0 | M21: 0 | N21: 0 | O21: 0 | P21: 0 | Q21: 0 | R21: 0 | S21: 0 | T21: 0 | U21: 0 | V21: 0 | W21: 0 | BB21: Surface water | BC21: N/A | BD21: N/A | BE21: N/A | BF21: N/A | BG21: N/A | BH21: N/A | BI21: N/A | BJ21: N/A | BK21: N/A | BL21: N/A | BM21: N/A | BN21: N/A | BO21: N/A | BP21: N/A | BQ21: N/A | BR21: N/A | BS21: N/A | BT21: N/A | BU21: N/A | BV21: N/A | BW21: N/A
A22: Improved water point at more than 30 minutes | B22: 1 Yes | C22: 0.1890261146 | D22: 0.1156408109 | E22: 0 | F22: 0.05933396967 | G22: 0 | H22: 0 | I22: 0 | J22: 0 | K22: 0 | L22: 0 | M22: 0.3206520733 | N22: 0.1521166099 | O22: 0.04522436628 | P22: 0.1012288025 | Q22: 0 | R22: 1.011688746 | S22: 0 | T22: 0 | U22: 0 | V22: 0 | W22: 0 | BA22: Improved water point at more than 30 minutes | BB22: Yes | BC22: N/A | BD22: N/A | BE22: N/A | BF22: N/A | BG22: N/A | BH22: N/A | BI22: N/A | BJ22: N/A | BK22: N/A | BL22: N/A | BM22: N/A | BN22: N/A | BO22: N/A | BP22: N/A | BQ22: N/A | BR22: N/A | BS22: N/A | BT22: N/A | BU22: N/A | BV22: N/A | BW22: N/A
B23: 2 No | C23: 99.81097389 | D23: 99.88435919 | E23: 100 | F23: 99.94066603 | G23: 100 | H23: 100 | I23: 100 | J23: 100 | K23: 100 | L23: 100 | M23: 99.67934793 | N23: 99.84788339 | O23: 99.95477563 | P23: 99.8987712 | Q23: 100 | R23: 98.98831125 | S23: 100 | T23: 100 | U23: 100 | V23: 100 | W23: 100 | BB23: No | BC23: N/A | BD23: N/A | BE23: N/A | BF23: N/A | BG23: N/A | BH23: N/A | BI23: N/A | BJ23: N/A | BK23: N/A | BL23: N/A | BM23: N/A | BN23: N/A | BO23: N/A | BP23: N/A | BQ23: N/A | BR23: N/A | BS23: N/A | BT23: N/A | BU23: N/A | BV23: N/A | BW23: N/A
A24: Manually calculated ratios | B24: Improved wells
B25: Improved springs
B26: Other
C27: NATIONAL wealth index quintile | H27: URBAN wealth index quintile | M27: RURAL wealth index quintile | R27: SUB-REGIONS: | BA27: Raw numbers of respondents: | BB27: Use of drinking water sources | BC27: NATIONAL wealth index quintile | BH27: URBAN wealth index quintile | BM27: RURAL wealth index quintile | BR27: SUB-REGIONS:
A28: Percentage based on weighted population | C28: Poorest | D28: Poor | E28: Middle | F28: Rich | G28: Richest | H28: 1 Poorest | I28: 2 Poor | J28: 3 Middle | K28: 4 Rich | L28: 5 Richest | M28: 1 Poorest | N28: 2 Poor | O28: 3 Middle | P28: 4 Rich | Q28: 5 Richest | R28: 4 Central Region | S28: 1 Malé | T28: 3 North Central | U28: 2 North Region | V28: 5 South Central | W28: 6 South Region | BA28: Water data, raw numbers (weighted) | BC28: Poorest | BD28: Poor | BE28: Middle | BF28: Rich | BG28: Richest | BH28: Poorest | BI28: Poor | BJ28: Middle | BK28: Rich | BL28: Richest | BM28: Poorest | BN28: Poor | BO28: Middle | BP28: Rich | BQ28: Richest | BR28: 4 Central Region | BS28: 1 Malé | BT28: 3 North Central | BU28: 2 North Region | BV28: 5 South Central | BW28: 6 South Region
A29: Piped water | B29: 1 Yes | C29: 29.69461255 | D29: 38.82674103 | E29: 49.23945305 | F29: 57.31524031 | G29: 68.22131043 | H29: 97.1931687 | I29: 98.19304377 | J29: 99.75562943 | K29: 97.69413328 | L29: 99.231693 | M29: 10.89241868 | N29: 10.90178603 | O29: 13.25694547 | P29: 17.51451478 | Q29: 15.57278875 | R29: 9.547012282 | S29: 98.40786121 | T29: 19.37249678 | U29: 10.51105232 | V29: 11.84302327 | W29: 15.06866233 | BA29: Piped water | BB29: Yes | BC29: N/A | BD29: N/A | BE29: N/A | BF29: N/A | BG29: N/A | BH29: N/A | BI29: N/A | BJ29: N/A | BK29: N/A | BL29: N/A | BM29: N/A | BN29: N/A | BO29: N/A | BP29: N/A | BQ29: N/A | BR29: N/A | BS29: N/A | BT29: N/A | BU29: N/A | BV29: N/A | BW29: N/A
B30: 2 No | C30: 70.30538745 | D30: 61.17325897 | E30: 50.76054695 | F30: 42.68475969 | G30: 31.77868957 | H30: 2.806831299 | I30: 1.806956228 | J30: 0.2443705723 | K30: 2.305866723 | L30: 0.7683070019 | M30: 89.10758132 | N30: 89.09821397 | O30: 86.74305453 | P30: 82.48548522 | Q30: 84.42721125 | R30: 90.45298772 | S30: 1.592138792 | T30: 80.62750322 | U30: 89.48894768 | V30: 88.15697673 | W30: 84.93133767 | BB30: No | BC30: N/A | BD30: N/A | BE30: N/A | BF30: N/A | BG30: N/A | BH30: N/A | BI30: N/A | BJ30: N/A | BK30: N/A | BL30: N/A | BM30: N/A | BN30: N/A | BO30: N/A | BP30: N/A | BQ30: N/A | BR30: N/A | BS30: N/A | BT30: N/A | BU30: N/A | BV30: N/A | BW30: N/A
A31: Piped water on premises | B31: Yes | C31: 29.50963604 | D31: 38.802522 | E31: 49.23945305 | F31: 57.11733313 | G31: 68.22131043 | H31: 97.1931687 | I31: 98.19304377 | J31: 99.75562943 | K31: 97.69413328 | L31: 99.231693 | M31: 10.72825584 | N31: 10.75076284 | O31: 13.215649 | P31: 17.17673568 | Q31: 15.57278875 | R31: 9.547012282 | S31: 98.40786121 | T31: 19.32364705 | U31: 10.41082927 | V31: 11.65244663 | W31: 14.79454247 | BA31: Piped water on premises | BB31: Yes | BC31: N/A | BD31: N/A | BE31: N/A | BF31: N/A | BG31: N/A | BH31: N/A | BI31: N/A | BJ31: N/A | BK31: N/A | BL31: N/A | BM31: N/A | BN31: N/A | BO31: N/A | BP31: N/A | BQ31: N/A | BR31: N/A | BS31: N/A | BT31: N/A | BU31: N/A | BV31: N/A | BW31: N/A
B32: No | C32: 70.49036396 | D32: 61.197478 | E32: 50.76054695 | F32: 42.88266687 | G32: 31.77868957 | H32: 2.806831299 | I32: 1.806956228 | J32: 0.2443705723 | K32: 2.305866723 | L32: 0.7683070019 | M32: 89.27174416 | N32: 89.24923716 | O32: 86.784351 | P32: 82.82326432 | Q32: 84.42721125 | R32: 90.45298772 | S32: 1.592138792 | T32: 80.67635295 | U32: 89.58917073 | V32: 88.34755337 | W32: 85.20545753 | BB32: No | BC32: N/A | BD32: N/A | BE32: N/A | BF32: N/A | BG32: N/A | BH32: N/A | BI32: N/A | BJ32: N/A | BK32: N/A | BL32: N/A | BM32: N/A | BN32: N/A | BO32: N/A | BP32: N/A | BQ32: N/A | BR32: N/A | BS32: N/A | BT32: N/A | BU32: N/A | BV32: N/A | BW32: N/A
A33: Piped water into dwelling | B33: Yes | C33: N/A | D33: N/A | E33: N/A | F33: N/A | G33: N/A | H33: N/A | I33: N/A | J33: N/A | K33: N/A | L33: N/A | M33: N/A | N33: N/A | O33: N/A | P33: N/A | Q33: N/A | R33: N/A | S33: N/A | T33: N/A | U33: N/A | V33: N/A | W33: N/A | BA33: Piped water into dwelling | BB33: Yes | BC33: N/A | BD33: N/A | BE33: N/A | BF33: N/A | BG33: N/A | BH33: N/A | BI33: N/A | BJ33: N/A | BK33: N/A | BL33: N/A | BM33: N/A | BN33: N/A | BO33: N/A | BP33: N/A | BQ33: N/A | BR33: N/A | BS33: N/A | BT33: N/A | BU33: N/A | BV33: N/A | BW33: N/A
B34: No | C34: N/A | D34: N/A | E34: N/A | F34: N/A | G34: N/A | H34: N/A | I34: N/A | J34: N/A | K34: N/A | L34: N/A | M34: N/A | N34: N/A | O34: N/A | P34: N/A | Q34: N/A | R34: N/A | S34: N/A | T34: N/A | U34: N/A | V34: N/A | W34: N/A | BB34: No | BC34: N/A | BD34: N/A | BE34: N/A | BF34: N/A | BG34: N/A | BH34: N/A | BI34: N/A | BJ34: N/A | BK34: N/A | BL34: N/A | BM34: N/A | BN34: N/A | BO34: N/A | BP34: N/A | BQ34: N/A | BR34: N/A | BS34: N/A | BT34: N/A | BU34: N/A | BV34: N/A | BW34: N/A
A35: Water source on premises | B35: 1 Yes | C35: 93.57333717 | D35: 97.23507124 | E35: 98.42289095 | F35: 99.00228879 | G35: 99.49177602 | H35: 100 | I35: 100 | J35: 100 | K35: 99.50252248 | L35: 100 | M35: 90.91627527 | N35: 95.99572978 | O35: 96.29089933 | P35: 97.82924776 | Q35: 98.40331896 | R35: 92.37893859 | S35: 99.89962764 | T35: 96.65073666 | U35: 97.56416165 | V35: 96.06899767 | W35: 95.33774443 | BA35: Water source on premises | BB35: Yes | BC35: N/A | BD35: N/A | BE35: N/A | BF35: N/A | BG35: N/A | BH35: N/A | BI35: N/A | BJ35: N/A | BK35: N/A | BL35: N/A | BM35: N/A | BN35: N/A | BO35: N/A | BP35: N/A | BQ35: N/A | BR35: N/A | BS35: N/A | BT35: N/A | BU35: N/A | BV35: N/A | BW35: N/A
B36: 2 No | C36: 6.426662825 | D36: 2.764928761 | E36: 1.577109045 | F36: 0.9977112088 | G36: 0.5082239828 | H36: 0 | I36: 0 | J36: 0 | K36: 0.4974775184 | L36: 0 | M36: 9.083724734 | N36: 4.00427022 | O36: 3.709100672 | P36: 2.170752239 | Q36: 1.596681044 | R36: 7.621061405 | S36: 0.1003723622 | T36: 3.349263342 | U36: 2.435838352 | V36: 3.931002332 | W36: 4.662255571 | BB36: No | BC36: N/A | BD36: N/A | BE36: N/A | BF36: N/A | BG36: N/A | BH36: N/A | BI36: N/A | BJ36: N/A | BK36: N/A | BL36: N/A | BM36: N/A | BN36: N/A | BO36: N/A | BP36: N/A | BQ36: N/A | BR36: N/A | BS36: N/A | BT36: N/A | BU36: N/A | BV36: N/A | BW36: N/A
A37: Improved Water source on premises | B37: 1 Yes | C37: 94.07596709 | D37: 97.39812836 | E37: 98.42289095 | F37: 99.04116709 | G37: 99.49016193 | H37: 100 | I37: 100 | J37: 100 | K37: 99.50252248 | L37: 100 | M37: 91.53272887 | N37: 96.27783776 | O37: 96.56568898 | P37: 97.82924776 | Q37: 98.46904065 | R37: 92.37893859 | S37: 99.89921773 | T37: 96.77357011 | U37: 97.56416165 | V37: 96.58209651 | W37: 95.83593717 | BA37: Improved water source on premises | BB37: Yes | BC37: N/A | BD37: N/A | BE37: N/A | BF37: N/A | BG37: N/A | BH37: N/A | BI37: N/A | BJ37: N/A | BK37: N/A | BL37: N/A | BM37: N/A | BN37: N/A | BO37: N/A | BP37: N/A | BQ37: N/A | BR37: N/A | BS37: N/A | BT37: N/A | BU37: N/A | BV37: N/A | BW37: N/A
B38: 2 No | C38: 5.92403291 | D38: 2.601871637 | E38: 1.577109045 | F38: 0.9588329054 | G38: 0.5098380742 | H38: 0 | I38: 0 | J38: 0 | K38: 0.4974775184 | L38: 0 | M38: 8.467271129 | N38: 3.722162239 | O38: 3.434311022 | P38: 2.170752239 | Q38: 1.53095935 | R38: 7.621061405 | S38: 0.1007822705 | T38: 3.226429887 | U38: 2.435838352 | V38: 3.417903489 | W38: 4.164062834 | BB38: No | BC38: N/A | BD38: N/A | BE38: N/A | BF38: N/A | BG38: N/A | BH38: N/A | BI38: N/A | BJ38: N/A | BK38: N/A | BL38: N/A | BM38: N/A | BN38: N/A | BO38: N/A | BP38: N/A | BQ38: N/A | BR38: N/A | BS38: N/A | BT38: N/A | BU38: N/A | BV38: N/A | BW38: N/A
A39: Piped water on premises available when needed | B39: Yes | C39: N/A | D39: N/A | E39: N/A | F39: N/A | G39: N/A | H39: N/A | I39: N/A | J39: N/A | K39: N/A | L39: N/A | M39: N/A | N39: N/A | O39: N/A | P39: N/A | Q39: N/A | R39: N/A | S39: N/A | T39: N/A | U39: N/A | V39: N/A | W39: N/A | BA39: Piped water on premises available when needed | BB39: Yes | BC39: N/A | BD39: N/A | BE39: N/A | BF39: N/A | BG39: N/A | BH39: N/A | BI39: N/A | BJ39: N/A | BK39: N/A | BL39: N/A | BM39: N/A | BN39: N/A | BO39: N/A | BP39: N/A | BQ39: N/A | BR39: N/A | BS39: N/A | BT39: N/A | BU39: N/A | BV39: N/A | BW39: N/A
B40: No | C40: N/A | D40: N/A | E40: N/A | F40: N/A | G40: N/A | H40: N/A | I40: N/A | J40: N/A | K40: N/A | L40: N/A | M40: N/A | N40: N/A | O40: N/A | P40: N/A | Q40: N/A | R40: N/A | S40: N/A | T40: N/A | U40: N/A | V40: N/A | W40: N/A | BB40: No | BC40: N/A | BD40: N/A | BE40: N/A | BF40: N/A | BG40: N/A | BH40: N/A | BI40: N/A | BJ40: N/A | BK40: N/A | BL40: N/A | BM40: N/A | BN40: N/A | BO40: N/A | BP40: N/A | BQ40: N/A | BR40: N/A | BS40: N/A | BT40: N/A | BU40: N/A | BV40: N/A | BW40: N/A
A41: Water point at more than 30 minutes | B41: 1 Yes | C41: 0.1869636223 | D41: 0.1153765867 | E41: 0 | F41: 0.05931067831 | G41: 0 | H41: 0 | I41: 0 | J41: 0 | K41: 0 | L41: 0 | M41: 0.3184925493 | N41: 0.1516708862 | O41: 0.04504817265 | P41: 0.1012288025 | Q41: 0 | R41: 1.011688746 | S41: 0 | T41: 0 | U41: 0 | V41: 0 | W41: 0 | BA41: Water point at more than 30 minutes | BB41: Yes | BC41: N/A | BD41: N/A | BE41: N/A | BF41: N/A | BG41: N/A | BH41: N/A | BI41: N/A | BJ41: N/A | BK41: N/A | BL41: N/A | BM41: N/A | BN41: N/A | BO41: N/A | BP41: N/A | BQ41: N/A | BR41: N/A | BS41: N/A | BT41: N/A | BU41: N/A | BV41: N/A | BW41: N/A
B42: 2 No | C42: 99.81303638 | D42: 99.88462341 | E42: 100 | F42: 99.94068932 | G42: 100 | H42: 100 | I42: 100 | J42: 100 | K42: 100 | L42: 100 | M42: 99.68150745 | N42: 99.84832911 | O42: 99.95495183 | P42: 99.8987712 | Q42: 100 | R42: 98.98831125 | S42: 100 | T42: 100 | U42: 100 | V42: 100 | W42: 100 | BB42: No | BC42: N/A | BD42: N/A | BE42: N/A | BF42: N/A | BG42: N/A | BH42: N/A | BI42: N/A | BJ42: N/A | BK42: N/A | BL42: N/A | BM42: N/A | BN42: N/A | BO42: N/A | BP42: N/A | BQ42: N/A | BR42: N/A | BS42: N/A | BT42: N/A | BU42: N/A | BV42: N/A | BW42: N/A
A43: Water source available when needed | B43: 1 Yes | C43: 81.58445154 | D43: 85.85191339 | E43: 85.69782171 | F43: 83.85227527 | G43: 76.67619717 | H43: 80.18660216 | I43: 87.2762874 | J43: 84.96094869 | K43: 73.92482848 | L43: 78.07792236 | M43: 90.01663761 | N43: 94.32297923 | O43: 86.54552322 | P43: 87.57172301 | Q43: 89.23576665 | R43: 93.35561191 | S43: 80.88216647 | T43: 96.53534556 | U43: 92.50601816 | V43: 73.07629322 | W43: 88.57879821 | BA43: Water source available when needed | BB43: Yes | BC43: N/A | BD43: N/A | BE43: N/A | BF43: N/A | BG43: N/A | BH43: N/A | BI43: N/A | BJ43: N/A | BK43: N/A | BL43: N/A | BM43: N/A | BN43: N/A | BO43: N/A | BP43: N/A | BQ43: N/A | BR43: N/A | BS43: N/A | BT43: N/A | BU43: N/A | BV43: N/A | BW43: N/A
B44: 2 No | C44: 18.41554846 | D44: 14.14808661 | E44: 14.30217829 | F44: 16.14772473 | G44: 23.32380283 | H44: 19.81339784 | I44: 12.7237126 | J44: 15.03905131 | K44: 26.07517152 | L44: 21.92207764 | M44: 9.983362386 | N44: 5.677020766 | O44: 13.45447678 | P44: 12.42827699 | Q44: 10.76423335 | R44: 6.644388095 | S44: 19.11783353 | T44: 3.464654438 | U44: 7.493981836 | V44: 26.92370678 | W44: 11.42120179 | BB44: No | BC44: N/A | BD44: N/A | BE44: N/A | BF44: N/A | BG44: N/A | BH44: N/A | BI44: N/A | BJ44: N/A | BK44: N/A | BL44: N/A | BM44: N/A | BN44: N/A | BO44: N/A | BP44: N/A | BQ44: N/A | BR44: N/A | BS44: N/A | BT44: N/A | BU44: N/A | BV44: N/A | BW44: N/A
A45: Improved water source available when needed | B45: 1 Yes | C45: 81.58445154 | D45: 85.85191339 | E45: 85.69782171 | F45: 83.85227527 | G45: 76.67619717 | H45: 80.18660216 | I45: 87.2762874 | J45: 84.96094869 | K45: 73.92482848 | L45: 78.07792236 | M45: 90.01663761 | N45: 94.32297923 | O45: 86.54552322 | P45: 87.57172301 | Q45: 89.23576665 | R45: 93.35561191 | S45: 80.88216647 | T45: 96.53534556 | U45: 92.50601816 | V45: 73.07629322 | W45: 88.57879821 | BA45: Improved water source available when needed | BB45: Yes | BC45: N/A | BD45: N/A | BE45: N/A | BF45: N/A | BG45: N/A | BH45: N/A | BI45: N/A | BJ45: N/A | BK45: N/A | BL45: N/A | BM45: N/A | BN45: N/A | BO45: N/A | BP45: N/A | BQ45: N/A | BR45: N/A | BS45: N/A | BT45: N/A | BU45: N/A | BV45: N/A | BW45: N/A
B46: 2 No | C46: 18.41554846 | D46: 14.14808661 | E46: 14.30217829 | F46: 16.14772473 | G46: 23.32380283 | H46: 19.81339784 | I46: 12.7237126 | J46: 15.03905131 | K46: 26.07517152 | L46: 21.92207764 | M46: 9.983362386 | N46: 5.677020766 | O46: 13.45447678 | P46: 12.42827699 | Q46: 10.76423335 | R46: 6.644388095 | S46: 19.11783353 | T46: 3.464654438 | U46: 7.493981836 | V46: 26.92370678 | W46: 11.42120179 | BB46: No | BC46: N/A | BD46: N/A | BE46: N/A | BF46: N/A | BG46: N/A | BH46: N/A | BI46: N/A | BJ46: N/A | BK46: N/A | BL46: N/A | BM46: N/A | BN46: N/A | BO46: N/A | BP46: N/A | BQ46: N/A | BR46: N/A | BS46: N/A | BT46: N/A | BU46: N/A | BV46: N/A | BW46: N/A
A47: Microbiological quality at point of collection | B47: Not contaminated (No E. coli in 100 mL) | C47: N/A | D47: N/A | E47: N/A | F47: N/A | G47: N/A | H47: N/A | I47: N/A | J47: N/A | K47: N/A | L47: N/A | M47: N/A | N47: N/A | O47: N/A | P47: N/A | Q47: N/A | R47: N/A | S47: N/A | T47: N/A | U47: N/A | V47: N/A | W47: N/A | BA47: Microbiological quality at point of collection | BB47: Not contaminated (No E. coli in 100 mL) | BC47: N/A | BD47: N/A | BE47: N/A | BF47: N/A | BG47: N/A | BH47: N/A | BI47: N/A | BJ47: N/A | BK47: N/A | BL47: N/A | BM47: N/A | BN47: N/A | BO47: N/A | BP47: N/A | BQ47: N/A | BR47: N/A | BS47: N/A | BT47: N/A | BU47: N/A | BV47: N/A | BW47: N/A
B48: Contaminated (E. coli detected in 100 mL) | C48: N/A | D48: N/A | E48: N/A | F48: N/A | G48: N/A | H48: N/A | I48: N/A | J48: N/A | K48: N/A | L48: N/A | M48: N/A | N48: N/A | O48: N/A | P48: N/A | Q48: N/A | R48: N/A | S48: N/A | T48: N/A | U48: N/A | V48: N/A | W48: N/A | BB48: Contaminated (E. coli detected in 100 mL) | BC48: N/A | BD48: N/A | BE48: N/A | BF48: N/A | BG48: N/A | BH48: N/A | BI48: N/A | BJ48: N/A | BK48: N/A | BL48: N/A | BM48: N/A | BN48: N/A | BO48: N/A | BP48: N/A | BQ48: N/A | BR48: N/A | BS48: N/A | BT48: N/A | BU48: N/A | BV48: N/A | BW48: N/A
B49: Highly contaminated (>100 CFU/100 mL) | C49: N/A | D49: N/A | E49: N/A | F49: N/A | G49: N/A | H49: N/A | I49: N/A | J49: N/A | K49: N/A | L49: N/A | M49: N/A | N49: N/A | O49: N/A | P49: N/A | Q49: N/A | R49: N/A | S49: N/A | T49: N/A | U49: N/A | V49: N/A | W49: N/A | BB49: Highly contaminated (>100 CFU/100 mL) | BC49: N/A | BD49: N/A | BE49: N/A | BF49: N/A | BG49: N/A | BH49: N/A | BI49: N/A | BJ49: N/A | BK49: N/A | BL49: N/A | BM49: N/A | BN49: N/A | BO49: N/A | BP49: N/A | BQ49: N/A | BR49: N/A | BS49: N/A | BT49: N/A | BU49: N/A | BV49: N/A | BW49: N/A
A50: Microbiological quality of improved water sources at point of collection | B50: Not contaminated (No E. coli in 100 mL) | C50: N/A | D50: N/A | E50: N/A | F50: N/A | G50: N/A | H50: N/A | I50: N/A | J50: N/A | K50: N/A | L50: N/A | M50: N/A | N50: N/A | O50: N/A | P50: N/A | Q50: N/A | R50: N/A | S50: N/A | T50: N/A | U50: N/A | V50: N/A | W50: N/A | BA50: Microbiological quality of improved water sources at point of collection | BB50: Not contaminated (No E. coli in 100 mL) | BC50: N/A | BD50: N/A | BE50: N/A | BF50: N/A | BG50: N/A | BH50: N/A | BI50: N/A | BJ50: N/A | BK50: N/A | BL50: N/A | BM50: N/A | BN50: N/A | BO50: N/A | BP50: N/A | BQ50: N/A | BR50: N/A | BS50: N/A | BT50: N/A | BU50: N/A | BV50: N/A | BW50: N/A
B51: Contaminated (E. coli detected in 100 mL) | C51: N/A | D51: N/A | E51: N/A | F51: N/A | G51: N/A | H51: N/A | I51: N/A | J51: N/A | K51: N/A | L51: N/A | M51: N/A | N51: N/A | O51: N/A | P51: N/A | Q51: N/A | R51: N/A | S51: N/A | T51: N/A | U51: N/A | V51: N/A | W51: N/A | BB51: Contaminated (E. coli detected in 100 mL) | BC51: N/A | BD51: N/A | BE51: N/A | BF51: N/A | BG51: N/A | BH51: N/A | BI51: N/A | BJ51: N/A | BK51: N/A | BL51: N/A | BM51: N/A | BN51: N/A | BO51: N/A | BP51: N/A | BQ51: N/A | BR51: N/A | BS51: N/A | BT51: N/A | BU51: N/A | BV51: N/A | BW51: N/A
B52: Highly contaminated (>100 CFU/100 mL) | C52: N/A | D52: N/A | E52: N/A | F52: N/A | G52: N/A | H52: N/A | I52: N/A | J52: N/A | K52: N/A | L52: N/A | M52: N/A | N52: N/A | O52: N/A | P52: N/A | Q52: N/A | R52: N/A | S52: N/A | T52: N/A | U52: N/A | V52: N/A | W52: N/A | BB52: Highly contaminated (>100 CFU/100 mL) | BC52: N/A | BD52: N/A | BE52: N/A | BF52: N/A | BG52: N/A | BH52: N/A | BI52: N/A | BJ52: N/A | BK52: N/A | BL52: N/A | BM52: N/A | BN52: N/A | BO52: N/A | BP52: N/A | BQ52: N/A | BR52: N/A | BS52: N/A | BT52: N/A | BU52: N/A | BV52: N/A | BW52: N/A
A53: Microbiological quality of piped on premises at point of collection | B53: Not contaminated (No E. coli in 100 mL) | C53: N/A | D53: N/A | E53: N/A | F53: N/A | G53: N/A | H53: N/A | I53: N/A | J53: N/A | K53: N/A | L53: N/A | M53: N/A | N53: N/A | O53: N/A | P53: N/A | Q53: N/A | R53: N/A | S53: N/A | T53: N/A | U53: N/A | V53: N/A | W53: N/A | BA53: Microbiological quality of piped on premises at point of collection | BB53: Not contaminated (No E. coli in 100 mL) | BC53: N/A | BD53: N/A | BE53: N/A | BF53: N/A | BG53: N/A | BH53: N/A | BI53: N/A | BJ53: N/A | BK53: N/A | BL53: N/A | BM53: N/A | BN53: N/A | BO53: N/A | BP53: N/A | BQ53: N/A | BR53: N/A | BS53: N/A | BT53: N/A | BU53: N/A | BV53: N/A | BW53: N/A
B54: Contaminated (E. coli detected in 100 mL) | C54: N/A | D54: N/A | E54: N/A | F54: N/A | G54: N/A | H54: N/A | I54: N/A | J54: N/A | K54: N/A | L54: N/A | M54: N/A | N54: N/A | O54: N/A | P54: N/A | Q54: N/A | R54: N/A | S54: N/A | T54: N/A | U54: N/A | V54: N/A | W54: N/A | BB54: Contaminated (E. coli detected in 100 mL) | BC54: N/A | BD54: N/A | BE54: N/A | BF54: N/A | BG54: N/A | BH54: N/A | BI54: N/A | BJ54: N/A | BK54: N/A | BL54: N/A | BM54: N/A | BN54: N/A | BO54: N/A | BP54: N/A | BQ54: N/A | BR54: N/A | BS54: N/A | BT54: N/A | BU54: N/A | BV54: N/A | BW54: N/A
B55: Highly contaminated (>100 CFU/100 mL) | C55: N/A | D55: N/A | E55: N/A | F55: N/A | G55: N/A | H55: N/A | I55: N/A | J55: N/A | K55: N/A | L55: N/A | M55: N/A | N55: N/A | O55: N/A | P55: N/A | Q55: N/A | R55: N/A | S55: N/A | T55: N/A | U55: N/A | V55: N/A | W55: N/A | BB55: Highly contaminated (>100 CFU/100 mL) | BC55: N/A | BD55: N/A | BE55: N/A | BF55: N/A | BG55: N/A | BH55: N/A | BI55: N/A | BJ55: N/A | BK55: N/A | BL55: N/A | BM55: N/A | BN55: N/A | BO55: N/A | BP55: N/A | BQ55: N/A | BR55: N/A | BS55: N/A | BT55: N/A | BU55: N/A | BV55: N/A | BW55: N/A
C56: NATIONAL wealth index quintile | H56: URBAN wealth index quintile | M56: RURAL wealth index quintile | R56: SUB-REGIONS: | BA56: Raw numbers of respondents: | BB56: Use of drinking water sources | BC56: NATIONAL wealth index quintile | BH56: URBAN wealth index quintile | BM56: RURAL wealth index quintile | BR56: SUB-REGIONS:
A57: Percentage based on weighted population | C57: Poorest | D57: Poor | E57: Middle | F57: Rich | G57: Richest | H57: 1 Poorest | I57: 2 Poor | J57: 3 Middle | K57: 4 Rich | L57: 5 Richest | M57: 1 Poorest | N57: 2 Poor | O57: 3 Middle | P57: 4 Rich | Q57: 5 Richest | R57: 4 Central Region | S57: 1 Malé | T57: 3 North Central | U57: 2 North Region | V57: 5 South Central | W57: 6 South Region | BA57: Water data, raw numbers (weighted) | BC57: Poorest | BD57: Poor | BE57: Middle | BF57: Rich | BG57: Richest | BH57: Poorest | BI57: Poor | BJ57: Middle | BK57: Rich | BL57: Richest | BM57: Poorest | BN57: Poor | BO57: Middle | BP57: Rich | BQ57: Richest | BR57: 4 Central Region | BS57: 1 Malé | BT57: 3 North Central | BU57: 2 North Region | BV57: 5 South Central | BW57: 6 South Region
A58: Source of drinking water | B58: 11 Piped into dwelling | C58: 13.36953163 | D58: 14.56975713 | E58: 13.76378073 | F58: 17.87855089 | G58: 19.24366363 | H58: 35.17562077 | I58: 20.89162801 | J58: 30.51477987 | K58: 26.66413256 | L58: 22.14028308 | M58: 6.908887659 | N58: 7.27254803 | O58: 7.833652278 | P58: 9.048977747 | Q58: 7.990572063 | R58: 7.200640159 | S58: 27.06053905 | T58: 16.6511036 | U58: 3.19029204 | V58: 5.318172495 | W58: 6.853341451
B59: 12 Piped to yard/plot | C59: 2.384821976 | D59: 1.803581737 | E59: 2.931662753 | F59: 2.224725388 | G59: 1.976603778 | H59: 0 | I59: 0 | J59: 0 | K59: 0 | L59: 0 | M59: 2.847618425 | N59: 2.50700624 | O59: 3.936131056 | P59: 5.72614989 | Q59: 4.279033009 | R59: 0 | S59: 0 | T59: 0.5395346442 | U59: 6.005791555 | V59: 4.892001765 | W59: 5.794289922
B60: 14 Public tap/standpipe | C60: 0.1849765108 | D60: 0.02421902615 | E60: 0 | F60: 0.1979071864 | G60: 0 | H60: 0 | I60: 0 | J60: 0 | K60: 0 | L60: 0 | M60: 0.1641628417 | N60: 0.1510231942 | O60: 0.04129647369 | P60: 0.3377790992 | Q60: 0 | R60: 0 | S60: 0 | T60: 0.04884973136 | U60: 0.1002230503 | V60: 0.1905766395 | W60: 0.2741198656
B61: 31 Protected well | C61: 0.4046780214 | D61: 0.7220434003 | E61: 0.1487811534 | F61: 0.2992458505 | G61: 0.805740926 | H61: 0 | I61: 0 | J61: 0 | K61: 0 | L61: 0 | M61: 0.6893690501 | N61: 0.2698618536 | O61: 1.000017938 | P61: 0.3640140384 | Q61: 1.731049447 | R61: 0.1270974287 | S61: 0 | T61: 0 | U61: 1.296424556 | V61: 0.4085371642 | W61: 1.739869744
B62: 32 Unprotected well | C62: 0 | D62: 0.05948490174 | E62: 0 | F62: 0 | G62: 0 | H62: 0 | I62: 0 | J62: 0 | K62: 0 | L62: 0 | M62: 0 | N62: 0 | O62: 0.1014292096 | P62: 0 | Q62: 0 | R62: 0 | S62: 0 | T62: 0 | U62: 0 | V62: 0.09854307891 | W62: 0
B63: 51 Rainwater (tank in compoud) | C63: 62.73726712 | D63: 54.02449492 | E63: 45.2193513 | F63: 36.72413181 | G63: 25.84160684 | H63: 0 | I63: 0 | J63: 0 | K63: 1.808389205 | L63: 0 | M63: 81.41865912 | N63: 80.04375888 | O63: 77.77502026 | P63: 72.37563709 | Q63: 69.78010082 | R63: 81.89528438 | S63: 0.3648653246 | T63: 72.69868991 | U63: 83.56732912 | V63: 80.20041719 | W63: 66.74490907
B64: 52 Rainwater (public or community tank) | C64: 1.158867033 | D64: 0.6068953347 | E64: 0.2860068888 | F64: 0.2287572146 | G64: 0.276018126 | H64: 0 | I64: 0 | J64: 0 | K64: 0 | L64: 0 | M64: 1.285630814 | N64: 1.388408199 | O64: 0.4094009714 | P64: 0.7010251389 | Q64: 0.5724440583 | R64: 2.188506537 | S64: 0 | T64: 0.6564720534 | U64: 0.2522733849 | V64: 0.9663284673 | W64: 0.8715203696
B65: 71 Bottled water | C65: 18.66874266 | D65: 28.02052148 | E65: 37.65041717 | F65: 42.40742696 | G65: 51.53977767 | H65: 63.55711234 | I65: 79.10837199 | J65: 69.48522013 | K65: 71.52747824 | L65: 77.09140992 | M65: 6.012193202 | N65: 8.07437915 | O65: 8.614882123 | P65: 11.446417 | Q65: 15.58005709 | R65: 8.588471497 | S65: 72.16786903 | T65: 9.278421347 | U65: 5.587666291 | V65: 7.390679221 | W65: 17.20211041
B66: 96 Other | C66: 1.091115047 | D66: 0.1690020617 | E66: 0 | F66: 0.03925469021 | G66: 0.3165890322 | H66: 1.267266892 | I66: 0 | J66: 0 | K66: 0 | L66: 0.7683070019 | M66: 0.6734788884 | N66: 0.2930144537 | O66: 0.2881696873 | P66: 0 | Q66: 0.06674350947 | R66: 0 | S66: 0.4067265979 | T66: 0.126928721 | U66: 0 | V66: 0.5347439839 | W66: 0.5198391664
A108: =A1026 -> Maldives
A109: =A1034 -> 2017
A110: Use of sanitation facilities
A111: by wealth quintile and sub-national region
A112: Notes:
A113: WHO/UNICEF JMP customised wealth index excludes water,
A114: sanitation and hygiene assets.
A115: Survey used for analysis: | B115: =A1025 -> DHS17
A116: =B1030 -> 
A117: =B1029 -> 
A120: Use of sanitation facilities | C120: NATIONAL wealth index quintile | H120: URBAN wealth index quintile | M120: RURAL wealth index quintile | R120: SUB-REGIONS: | BA120: Raw numbers of respondents: | BB120: Use of sanitation facilities | BC120: NATIONAL wealth index quintile | BH120: URBAN wealth index quintile | BM120: RURAL wealth index quintile | BR120: SUB-REGIONS:
A121: Weighted percentage (used in graphs) | C121: Poorest | D121: Poor | E121: Middle | F121: Rich | G121: Richest | H121: 1 Poorest | I121: 2 Poor | J121: 3 Middle | K121: 4 Rich | L121: 5 Richest | M121: 1 Poorest | N121: 2 Poor | O121: 3 Middle | P121: 4 Rich | Q121: 5 Richest | R121: 4 Central Region | S121: 1 Malé | T121: 3 North Central | U121: 2 North Region | V121: 5 South Central | W121: 6 South Region | BA121: Sanitation data, raw numbers (weighted) | BC121: Poorest | BD121: Poor | BE121: Middle | BF121: Rich | BG121: Richest | BH121: Poorest | BI121: Poor | BJ121: Middle | BK121: Rich | BL121: Richest | BM121: Poorest | BN121: Poor | BO121: Middle | BP121: Rich | BQ121: Richest | BR121: 4 Central Region | BS121: 1 Malé | BT121: 3 North Central | BU121: 2 North Region | BV121: 5 South Central | BW121: 6 South Region
A122: Sanitation | B122: 1 Improved | C122: 98.33916366 | D122: 98.85502498 | E122: 99.37866515 | F122: 99.48076081 | G122: 99.23962707 | H122: 100 | I122: 100 | J122: 100 | K122: 99.00912274 | L122: 100 | M122: 97.55452794 | N122: 98.56759229 | O122: 98.30902145 | P122: 99.09591586 | Q122: 99.15531405 | R122: 92.6765474 | S122: 99.80007802 | T122: 98.68973373 | U122: 99.60658802 | V122: 99.25806694 | W122: 99.7535629 | BA122: Sanitation | BB122: Improved | BC122: 6539.558654 | BD122: 6576.172514 | BE122: 6611.086728 | BF122: 6617.151051 | BG122: 6603.671166 | BH122: 2748.896559 | BI122: 2769.165862 | BJ122: 2711.3502 | BK122: 2745.648042 | BL122: 2741.961735 | BM122: 3808.265314 | BN122: 3845.811769 | BO122: 3835.407632 | BP122: 3862.037601 | BQ122: 3879.095399 | BR122: 2203.439334 | BS122: 13717.0224 | BT122: 3995.816763 | BU122: 4255.005892 | BV122: 3985.849365 | BW122: 4790.506361
B123: 2 Not Improved | C123: 1.660836344 | D123: 1.144975021 | E123: 0.6213348477 | F123: 0.519239186 | G123: 0.7603729335 | H123: 0 | I123: 0 | J123: 0 | K123: 0.9908772565 | L123: 0 | M123: 2.445472061 | N123: 1.432407712 | O123: 1.69097855 | P123: 0.9040841389 | Q123: 0.8446859537 | R123: 7.323452604 | S123: 0.1999219808 | T123: 1.310266272 | U123: 0.3934119792 | V123: 0.7419330574 | W123: 0.2464370965 | BB123: Not Improved | BC123: 110.445689 | BD123: 76.167633 | BE123: 41.333807 | BF123: 34.538177 | BG123: 50.597256 | BH123: 0 | BI123: 0 | BJ123: 0 | BK123: 27.478278 | BL123: 0 | BM123: 95.464625 | BN123: 55.888252 | BO123: 65.971484 | BP123: 35.23462 | BQ123: 33.045303 | BR123: 174.119386 | BS123: 27.478278 | BT123: 53.050948 | BU123: 16.805819 | BV123: 29.793381 | BW123: 11.83475
A124: Sanitation ladder | B124: 1 Basic | C124: 97.35652069 | D124: 98.19188849 | E124: 98.65196584 | F124: 99.04142927 | G124: 98.92874911 | H124: 98.30621418 | I124: 98.99781077 | J124: 100 | K124: 99.00912274 | L124: 99.42170437 | M124: 96.98768832 | N124: 97.77798499 | O124: 97.97840249 | P124: 98.06489204 | Q124: 98.86067319 | R124: 92.13764676 | S124: 99.14403857 | T124: 98.07136601 | U124: 99.09920349 | V124: 98.72684787 | W124: 98.98961628 | BA124: Sanitation ladder | BB124: Basic | BC124: 6474.212854 | BD124: 6532.058419 | BE124: 6562.743634 | BF124: 6587.928082 | BG124: 6582.984512 | BH124: 2702.336139 | BI124: 2741.41358 | BJ124: 2711.3502 | BK124: 2745.648042 | BL124: 2726.10509 | BM124: 3786.137426 | BN124: 3815.003661 | BO124: 3822.508933 | BP124: 3821.855796 | BQ124: 3867.568634 | BR124: 2190.626655 | BS124: 13626.85305 | BT124: 3970.779872 | BU124: 4233.33138 | BV124: 3964.517505 | BW124: 4753.819038
B125: 2 Limited | C125: 0.9826429673 | D125: 0.6631364907 | E125: 0.7266993081 | F125: 0.4393315442 | G125: 0.3108779612 | H125: 1.693785816 | I125: 1.002189229 | J125: 0 | K125: 0 | L125: 0.578295634 | M125: 0.5668396212 | N125: 0.7896072951 | O125: 0.3306189585 | P125: 1.031023822 | Q125: 0.2946408598 | R125: 0.5389006333 | S125: 0.6560394526 | T125: 0.6183677212 | U125: 0.5073845353 | V125: 0.5312190688 | W125: 0.7639466284 | BB125: Limited | BC125: 65.3458 | BD125: 44.114095 | BE125: 48.343094 | BF125: 29.222969 | BG125: 20.686654 | BH125: 46.56042 | BI125: 27.752282 | BJ125: 0 | BK125: 0 | BL125: 15.856645 | BM125: 22.127888 | BN125: 30.808108 | BO125: 12.898699 | BP125: 40.181805 | BQ125: 11.526765 | BR125: 12.812679 | BS125: 90.169347 | BT125: 25.036891 | BU125: 21.674512 | BV125: 21.33186 | BW125: 36.687323
B126: 3 Other unimproved | C126: 1.226862853 | D126: 1.144975021 | E126: 0.6213348477 | F126: 0.519239186 | G126: 0.7603729335 | H126: 0 | I126: 0 | J126: 0 | K126: 0.9908772565 | L126: 0 | M126: 1.706198176 | N126: 1.432407712 | O126: 1.69097855 | P126: 0.9040841389 | Q126: 0.8446859537 | R126: 7.323452604 | S126: 0.1999219808 | T126: 1.129722117 | U126: 0.15858831 | V126: 0.6189817066 | W126: 0.1094049731 | BB126: Unimproved | BC126: 81.586433 | BD126: 76.167633 | BE126: 41.333807 | BF126: 34.538177 | BG126: 50.597256 | BH126: 0 | BI126: 0 | BJ126: 0 | BK126: 27.478278 | BL126: 0 | BM126: 66.605369 | BN126: 55.888252 | BO126: 65.971484 | BP126: 35.23462 | BQ126: 33.045303 | BR126: 174.119386 | BS126: 27.478278 | BT126: 45.740954 | BU126: 6.774594 | BV126: 24.856094 | BW126: 5.254
B127: 4 Open defecation | C127: 0.433973491 | D127: 0 | E127: 0 | F127: 0 | G127: 0 | H127: 0 | I127: 0 | J127: 0 | K127: 0 | L127: 0 | M127: 0.7392738855 | N127: 0 | O127: 0 | P127: 0 | Q127: 0 | R127: 0 | S127: 0 | T127: 0.1805441551 | U127: 0.2348236692 | V127: 0.1229513508 | W127: 0.1370321235 | BB127: Open defecation | BC127: 28.859256 | BD127: 0 | BE127: 0 | BF127: 0 | BG127: 0 | BH127: 0 | BI127: 0 | BJ127: 0 | BK127: 0 | BL127: 0 | BM127: 28.859256 | BN127: 0 | BO127: 0 | BP127: 0 | BQ127: 0 | BR127: 0 | BS127: 0 | BT127: 7.309994 | BU127: 10.031225 | BV127: 4.937287 | BW127: 6.58075
A128: Shared among Improved Sanitation | B128: 1 Yes | C128: 0.9992386865 | D128: 0.6708171798 | E128: 0.7312427743 | F128: 0.4416246323 | G128: 0.3132599047 | H128: 1.693785816 | I128: 1.002189229 | J128: 0 | K128: 0 | L128: 0.578295634 | M128: 0.5810490125 | N128: 0.8010820563 | O128: 0.3363058177 | P128: 1.040430186 | Q128: 0.2971508513 | R128: 0.5814854442 | S128: 0.6573536471 | T128: 0.6265775556 | U128: 0.5093885308 | V128: 0.5351898189 | W128: 0.7658339273 | BA128: Shared among improved sanitation facilities | BB128: Yes | BC128: N/A | BD128: N/A | BE128: N/A | BF128: N/A | BG128: N/A | BH128: N/A | BI128: N/A | BJ128: N/A | BK128: N/A | BL128: N/A | BM128: N/A | BN128: N/A | BO128: N/A | BP128: N/A | BQ128: N/A | BR128: N/A | BS128: N/A | BT128: N/A | BU128: N/A | BV128: N/A | BW128: N/A
B129: 2 No | C129: 99.00076131 | D129: 99.32918282 | E129: 99.26875723 | F129: 99.55837537 | G129: 99.6867401 | H129: 98.30621418 | I129: 98.99781077 | J129: 100 | K129: 100 | L129: 99.42170437 | M129: 99.41895099 | N129: 99.19891794 | O129: 99.66369418 | P129: 98.95956981 | Q129: 99.70284915 | R129: 99.41851456 | S129: 99.34264635 | T129: 99.37342244 | U129: 99.49061147 | V129: 99.46481018 | W129: 99.23416607 | BB129: No | BC129: N/A | BD129: N/A | BE129: N/A | BF129: N/A | BG129: N/A | BH129: N/A | BI129: N/A | BJ129: N/A | BK129: N/A | BL129: N/A | BM129: N/A | BN129: N/A | BO129: N/A | BP129: N/A | BQ129: N/A | BR129: N/A | BS129: N/A | BT129: N/A | BU129: N/A | BV129: N/A | BW129: N/A
A130: Manually calculated ratios | B130: Improved latrines
B131: Other
B132: Other
C133: NATIONAL wealth index quintile | H133: URBAN wealth index quintile | M133: RURAL wealth index quintile | R133: SUB-REGIONS: | BA133: Raw numbers of respondents: | BB133: Use of sanitation facilities | BC133: NATIONAL wealth index quintile | BH133: URBAN wealth index quintile | BM133: RURAL wealth index quintile | BR133: SUB-REGIONS:
A134: Percentage based on weighted population | C134: Poorest | D134: Poor | E134: Middle | F134: Rich | G134: Richest | H134: 1 Poorest | I134: 2 Poor | J134: 3 Middle | K134: 4 Rich | L134: 5 Richest | M134: 1 Poorest | N134: 2 Poor | O134: 3 Middle | P134: 4 Rich | Q134: 5 Richest | R134: 4 Central Region | S134: 1 Malé | T134: 3 North Central | U134: 2 North Region | V134: 5 South Central | W134: 6 South Region | BA134: Sanitation data, raw numbers (weighted) | BC134: Poorest | BD134: Poor | BE134: Middle | BF134: Rich | BG134: Richest | BH134: Poorest | BI134: Poor | BJ134: Middle | BK134: Rich | BL134: Richest | BM134: Poorest | BN134: Poor | BO134: Middle | BP134: Rich | BQ134: Richest | BR134: 4 Central Region | BS134: 1 Malé | BT134: 3 North Central | BU134: 2 North Region | BV134: 5 South Central | BW134: 6 South Region
A135: Sanitation type | B135: 1 Sewer connection | C135: 46.79653411 | D135: 57.18148728 | E135: 63.88065154 | F135: 69.9846656 | G135: 77.71926568 | H135: 99.40981111 | I135: 99.66268145 | J135: 95.33766966 | K135: 97.24264836 | L135: 99.42170437 | M135: 30.85624146 | N135: 36.73641226 | O135: 36.60426138 | P135: 43.14046586 | Q135: 44.60052649 | R135: 59.65746638 | S135: 98.22257505 | T135: 32.54763201 | U135: 44.44170419 | V135: 51.6243121 | W135: 16.33330388 | BA135: Sanitation type | BB135: Sewer connection | BC135: N/A | BD135: N/A | BE135: N/A | BF135: N/A | BG135: N/A | BH135: N/A | BI135: N/A | BJ135: N/A | BK135: N/A | BL135: N/A | BM135: N/A | BN135: N/A | BO135: N/A | BP135: N/A | BQ135: N/A | BR135: N/A | BS135: N/A | BT135: N/A | BU135: N/A | BV135: N/A | BW135: N/A
B136: 2 Septic tank connection | C136: 50.612464 | D136: 40.71858844 | E136: 34.97155853 | F136: 27.27491453 | G136: 20.60929295 | H136: 0 | I136: 0 | J136: 0 | K136: 0 | L136: 0 | M136: 65.35931616 | N136: 61.16197658 | O136: 61.07310636 | P136: 54.77072509 | Q136: 54.48422926 | R136: 29.53356551 | S136: 0 | T136: 65.85850483 | U136: 54.76193396 | V136: 47.3490085 | W136: 82.81731768 | BB136: Septic tank connection | BC136: N/A | BD136: N/A | BE136: N/A | BF136: N/A | BG136: N/A | BH136: N/A | BI136: N/A | BJ136: N/A | BK136: N/A | BL136: N/A | BM136: N/A | BN136: N/A | BO136: N/A | BP136: N/A | BQ136: N/A | BR136: N/A | BS136: N/A | BT136: N/A | BU136: N/A | BV136: N/A | BW136: N/A
B137: 3 Improved latrines | C137: 0.9301655429 | D137: 0.9549492599 | E137: 0.5264550823 | F137: 2.22118068 | G137: 0.9110684324 | H137: 0.5901888868 | I137: 0.3373185452 | J137: 4.66233034 | K137: 1.766474381 | L137: 0.578295634 | M137: 1.338970313 | N137: 0.6692034462 | O137: 0.6316537119 | P137: 1.184724915 | Q137: 0.07055830069 | R137: 3.485515512 | S137: 1.577502967 | T137: 0.2835968923 | U137: 0.4029498762 | V137: 0.2847463463 | W137: 0.6029413432 | BB137: Improved latrines | BC137: N/A | BD137: N/A | BE137: N/A | BF137: N/A | BG137: N/A | BH137: N/A | BI137: N/A | BJ137: N/A | BK137: N/A | BL137: N/A | BM137: N/A | BN137: N/A | BO137: N/A | BP137: N/A | BQ137: N/A | BR137: N/A | BS137: N/A | BT137: N/A | BU137: N/A | BV137: N/A | BW137: N/A
B138: 4 Unimproved facilities | C138: 1.226862853 | D138: 1.144975021 | E138: 0.6213348477 | F138: 0.519239186 | G138: 0.7603729335 | H138: 0 | I138: 0 | J138: 0 | K138: 0.9908772565 | L138: 0 | M138: 1.706198176 | N138: 1.432407712 | O138: 1.69097855 | P138: 0.9040841389 | Q138: 0.8446859537 | R138: 7.323452604 | S138: 0.1999219808 | T138: 1.129722117 | U138: 0.15858831 | V138: 0.6189817066 | W138: 0.1094049731 | BB138: Unimproved facilities | BC138: N/A | BD138: N/A | BE138: N/A | BF138: N/A | BG138: N/A | BH138: N/A | BI138: N/A | BJ138: N/A | BK138: N/A | BL138: N/A | BM138: N/A | BN138: N/A | BO138: N/A | BP138: N/A | BQ138: N/A | BR138: N/A | BS138: N/A | BT138: N/A | BU138: N/A | BV138: N/A | BW138: N/A
B139: 5 Open defecation | C139: 0.433973491 | D139: 0 | E139: 0 | F139: 0 | G139: 0 | H139: 0 | I139: 0 | J139: 0 | K139: 0 | L139: 0 | M139: 0.7392738855 | N139: 0 | O139: 0 | P139: 0 | Q139: 0 | R139: 0 | S139: 0 | T139: 0.1805441551 | U139: 0.2348236692 | V139: 0.1229513508 | W139: 0.1370321235 | BB139: Open defecation | BC139: N/A | BD139: N/A | BE139: N/A | BF139: N/A | BG139: N/A | BH139: N/A | BI139: N/A | BJ139: N/A | BK139: N/A | BL139: N/A | BM139: N/A | BN139: N/A | BO139: N/A | BP139: N/A | BQ139: N/A | BR139: N/A | BS139: N/A | BT139: N/A | BU139: N/A | BV139: N/A | BW139: N/A
A140: Septic tank emptying practices | B140: Not emptied/treated and disposed in situ | C140: N/A | D140: N/A | E140: N/A | F140: N/A | G140: N/A | H140: N/A | I140: N/A | J140: N/A | K140: N/A | L140: N/A | M140: N/A | N140: N/A | O140: N/A | P140: N/A | Q140: N/A | R140: N/A | S140: N/A | T140: N/A | U140: N/A | V140: N/A | W140: N/A | BA140: Septic tank emptying practices | BB140: Not emptied/treated and disposed in situ | BC140: N/A | BD140: N/A | BE140: N/A | BF140: N/A | BG140: N/A | BH140: N/A | BI140: N/A | BJ140: N/A | BK140: N/A | BL140: N/A | BM140: N/A | BN140: N/A | BO140: N/A | BP140: N/A | BQ140: N/A | BR140: N/A | BS140: N/A | BT140: N/A | BU140: N/A | BV140: N/A | BW140: N/A
B141: Emptied and buried on site | C141: N/A | D141: N/A | E141: N/A | F141: N/A | G141: N/A | H141: N/A | I141: N/A | J141: N/A | K141: N/A | L141: N/A | M141: N/A | N141: N/A | O141: N/A | P141: N/A | Q141: N/A | R141: N/A | S141: N/A | T141: N/A | U141: N/A | V141: N/A | W141: N/A | BB141: Emptied and buried on site | BC141: N/A | BD141: N/A | BE141: N/A | BF141: N/A | BG141: N/A | BH141: N/A | BI141: N/A | BJ141: N/A | BK141: N/A | BL141: N/A | BM141: N/A | BN141: N/A | BO141: N/A | BP141: N/A | BQ141: N/A | BR141: N/A | BS141: N/A | BT141: N/A | BU141: N/A | BV141: N/A | BW141: N/A
B142: Emptied and discharged locally | C142: N/A | D142: N/A | E142: N/A | F142: N/A | G142: N/A | H142: N/A | I142: N/A | J142: N/A | K142: N/A | L142: N/A | M142: N/A | N142: N/A | O142: N/A | P142: N/A | Q142: N/A | R142: N/A | S142: N/A | T142: N/A | U142: N/A | V142: N/A | W142: N/A | BB142: Emptied and discharged locally | BC142: N/A | BD142: N/A | BE142: N/A | BF142: N/A | BG142: N/A | BH142: N/A | BI142: N/A | BJ142: N/A | BK142: N/A | BL142: N/A | BM142: N/A | BN142: N/A | BO142: N/A | BP142: N/A | BQ142: N/A | BR142: N/A | BS142: N/A | BT142: N/A | BU142: N/A | BV142: N/A | BW142: N/A
B143: Emptied and removed offsite | C143: N/A | D143: N/A | E143: N/A | F143: N/A | G143: N/A | H143: N/A | I143: N/A | J143: N/A | K143: N/A | L143: N/A | M143: N/A | N143: N/A | O143: N/A | P143: N/A | Q143: N/A | R143: N/A | S143: N/A | T143: N/A | U143: N/A | V143: N/A | W143: N/A | BB143: Emptied and removed offsite | BC143: N/A | BD143: N/A | BE143: N/A | BF143: N/A | BG143: N/A | BH143: N/A | BI143: N/A | BJ143: N/A | BK143: N/A | BL143: N/A | BM143: N/A | BN143: N/A | BO143: N/A | BP143: N/A | BQ143: N/A | BR143: N/A | BS143: N/A | BT143: N/A | BU143: N/A | BV143: N/A | BW143: N/A
A144: Latrine emptying practices | B144: Not emptied/treated and disposed in situ | C144: N/A | D144: N/A | E144: N/A | F144: N/A | G144: N/A | H144: N/A | I144: N/A | J144: N/A | K144: N/A | L144: N/A | M144: N/A | N144: N/A | O144: N/A | P144: N/A | Q144: N/A | R144: N/A | S144: N/A | T144: N/A | U144: N/A | V144: N/A | W144: N/A | BA144: Latrine emptying practices | BB144: Not emptied/treated and disposed in situ | BC144: N/A | BD144: N/A | BE144: N/A | BF144: N/A | BG144: N/A | BH144: N/A | BI144: N/A | BJ144: N/A | BK144: N/A | BL144: N/A | BM144: N/A | BN144: N/A | BO144: N/A | BP144: N/A | BQ144: N/A | BR144: N/A | BS144: N/A | BT144: N/A | BU144: N/A | BV144: N/A | BW144: N/A
B145: Emptied and buried on site | C145: N/A | D145: N/A | E145: N/A | F145: N/A | G145: N/A | H145: N/A | I145: N/A | J145: N/A | K145: N/A | L145: N/A | M145: N/A | N145: N/A | O145: N/A | P145: N/A | Q145: N/A | R145: N/A | S145: N/A | T145: N/A | U145: N/A | V145: N/A | W145: N/A | BB145: Emptied and buried on site | BC145: N/A | BD145: N/A | BE145: N/A | BF145: N/A | BG145: N/A | BH145: N/A | BI145: N/A | BJ145: N/A | BK145: N/A | BL145: N/A | BM145: N/A | BN145: N/A | BO145: N/A | BP145: N/A | BQ145: N/A | BR145: N/A | BS145: N/A | BT145: N/A | BU145: N/A | BV145: N/A | BW145: N/A
B146: Emptied and discharged locally | C146: N/A | D146: N/A | E146: N/A | F146: N/A | G146: N/A | H146: N/A | I146: N/A | J146: N/A | K146: N/A | L146: N/A | M146: N/A | N146: N/A | O146: N/A | P146: N/A | Q146: N/A | R146: N/A | S146: N/A | T146: N/A | U146: N/A | V146: N/A | W146: N/A | BB146: Emptied and discharged locally | BC146: N/A | BD146: N/A | BE146: N/A | BF146: N/A | BG146: N/A | BH146: N/A | BI146: N/A | BJ146: N/A | BK146: N/A | BL146: N/A | BM146: N/A | BN146: N/A | BO146: N/A | BP146: N/A | BQ146: N/A | BR146: N/A | BS146: N/A | BT146: N/A | BU146: N/A | BV146: N/A | BW146: N/A
B147: Emptied and removed offsite | C147: N/A | D147: N/A | E147: N/A | F147: N/A | G147: N/A | H147: N/A | I147: N/A | J147: N/A | K147: N/A | L147: N/A | M147: N/A | N147: N/A | O147: N/A | P147: N/A | Q147: N/A | R147: N/A | S147: N/A | T147: N/A | U147: N/A | V147: N/A | W147: N/A | BB147: Emptied and removed offsite | BC147: N/A | BD147: N/A | BE147: N/A | BF147: N/A | BG147: N/A | BH147: N/A | BI147: N/A | BJ147: N/A | BK147: N/A | BL147: N/A | BM147: N/A | BN147: N/A | BO147: N/A | BP147: N/A | BQ147: N/A | BR147: N/A | BS147: N/A | BT147: N/A | BU147: N/A | BV147: N/A | BW147: N/A
A148: Shared among improved sanitation facilities | B148: Yes | C148: 0.9826429673 | D148: 0.6631364907 | E148: 0.7266993081 | F148: 0.4393315442 | G148: 0.3108779612 | H148: 1.693785816 | I148: 1.002189229 | J148: 0 | K148: 0 | L148: 0.578295634 | M148: 0.5668396212 | N148: 0.7896072951 | O148: 0.3306189585 | P148: 1.031023822 | Q148: 0.2946408598 | R148: 0.5389006333 | S148: 0.6560394526 | T148: 0.6183677212 | U148: 0.5073845353 | V148: 0.5312190688 | W148: 0.7639466284 | BA148: Shared among improved sanitation facilities | BB148: Yes | BC148: N/A | BD148: N/A | BE148: N/A | BF148: N/A | BG148: N/A | BH148: N/A | BI148: N/A | BJ148: N/A | BK148: N/A | BL148: N/A | BM148: N/A | BN148: N/A | BO148: N/A | BP148: N/A | BQ148: N/A | BR148: N/A | BS148: N/A | BT148: N/A | BU148: N/A | BV148: N/A | BW148: N/A
B149: No | C149: 97.35652069 | D149: 98.19188849 | E149: 98.65196584 | F149: 99.04142927 | G149: 98.92874911 | H149: 98.30621418 | I149: 98.99781077 | J149: 100 | K149: 99.00912274 | L149: 99.42170437 | M149: 96.98768832 | N149: 97.77798499 | O149: 97.97840249 | P149: 98.06489204 | Q149: 98.86067319 | R149: 92.13764676 | S149: 99.14403857 | T149: 98.07136601 | U149: 99.09920349 | V149: 98.72684787 | W149: 98.98961628 | BB149: No | BC149: N/A | BD149: N/A | BE149: N/A | BF149: N/A | BG149: N/A | BH149: N/A | BI149: N/A | BJ149: N/A | BK149: N/A | BL149: N/A | BM149: N/A | BN149: N/A | BO149: N/A | BP149: N/A | BQ149: N/A | BR149: N/A | BS149: N/A | BT149: N/A | BU149: N/A | BV149: N/A | BW149: N/A
B150: DK/missing | C150: 1.660836344 | D150: 1.144975021 | E150: 0.6213348477 | F150: 0.519239186 | G150: 0.7603729335 | H150: 0 | I150: 0 | J150: 0 | K150: 0.9908772565 | L150: 0 | M150: 2.445472061 | N150: 1.432407712 | O150: 1.69097855 | P150: 0.9040841389 | Q150: 0.8446859537 | R150: 7.323452604 | S150: 0.1999219808 | T150: 1.310266272 | U150: 0.3934119792 | V150: 0.7419330574 | W150: 0.2464370965 | BB150: DK/missing | BC150: N/A | BD150: N/A | BE150: N/A | BF150: N/A | BG150: N/A | BH150: N/A | BI150: N/A | BJ150: N/A | BK150: N/A | BL150: N/A | BM150: N/A | BN150: N/A | BO150: N/A | BP150: N/A | BQ150: N/A | BR150: N/A | BS150: N/A | BT150: N/A | BU150: N/A | BV150: N/A | BW150: N/A
A151: Shared among all sanitation facilities | B151: Yes | C151: 0.9869259643 | D151: 0.6631364907 | E151: 0.7266993081 | F151: 0.4393315442 | G151: 0.3108779612 | H151: 1.693785816 | I151: 1.002189229 | J151: 0 | K151: 0 | L151: 0.578295634 | M151: 0.5710613285 | N151: 0.7896072951 | O151: 0.3306189585 | P151: 1.031023822 | Q151: 0.2946408598 | R151: 0.5389006333 | S151: 0.6560394526 | T151: 0.6194861673 | U151: 0.5085787987 | V151: 0.5318730138 | W151: 0.7649949171 | BA151: Shared among all sanitation facilities | BB151: Yes | BC151: N/A | BD151: N/A | BE151: N/A | BF151: N/A | BG151: N/A | BH151: N/A | BI151: N/A | BJ151: N/A | BK151: N/A | BL151: N/A | BM151: N/A | BN151: N/A | BO151: N/A | BP151: N/A | BQ151: N/A | BR151: N/A | BS151: N/A | BT151: N/A | BU151: N/A | BV151: N/A | BW151: N/A
B152: No | C152: 99.01307404 | D152: 99.33686351 | E152: 99.27330069 | F152: 99.56066846 | G152: 99.68912204 | H152: 98.30621418 | I152: 98.99781077 | J152: 100 | K152: 100 | L152: 99.42170437 | M152: 99.42893867 | N152: 99.2103927 | O152: 99.66938104 | P152: 98.96897618 | Q152: 99.70535914 | R152: 99.46109937 | S152: 99.34396055 | T152: 99.38051383 | U152: 99.4914212 | V152: 99.46812699 | W152: 99.23500508 | BB152: No | BC152: N/A | BD152: N/A | BE152: N/A | BF152: N/A | BG152: N/A | BH152: N/A | BI152: N/A | BJ152: N/A | BK152: N/A | BL152: N/A | BM152: N/A | BN152: N/A | BO152: N/A | BP152: N/A | BQ152: N/A | BR152: N/A | BS152: N/A | BT152: N/A | BU152: N/A | BV152: N/A | BW152: N/A
A153: Type of toilet facility | B153: 11 Flush to piped sewer system | C153: 46.79653411 | D153: 57.18148728 | E153: 63.88065154 | F153: 69.9846656 | G153: 77.71926568 | H153: 99.40981111 | I153: 99.66268145 | J153: 95.33766966 | K153: 97.24264836 | L153: 99.42170437 | M153: 30.85624146 | N153: 36.73641226 | O153: 36.60426138 | P153: 43.14046586 | Q153: 44.60052649 | R153: 59.65746638 | S153: 98.22257505 | T153: 32.54763201 | U153: 44.44170419 | V153: 51.6243121 | W153: 16.33330388 | BA153: Type of toilet facility | BB153: 11 Flush to piped sewer system | BC153: 3111.971551 | BD153: 3803.907035 | BE153: 4249.609581 | BF153: 4655.162463 | BG153: 5171.648554 | BH153: 2732.672877 | BI153: 2759.824952 | BJ153: 2584.938097 | BK153: 2696.661476 | BL153: 2726.10509 | BM153: 1204.544336 | BN153: 1433.344605 | BO153: 1428.071009 | BP153: 1681.301392 | BQ153: 1744.83535 | BR153: 1418.391294 | BS153: 13500.20249 | BT153: 1317.810563 | BU153: 1898.465924 | BV153: 2073.047944 | BW153: 784.380967
B154: 12 Flush to septic tank | C154: 50.612464 | D154: 40.71858844 | E154: 34.97155853 | F154: 27.27491453 | G154: 20.60929295 | H154: 0 | I154: 0 | J154: 0 | K154: 0 | L154: 0 | M154: 65.35931616 | N154: 61.16197658 | O154: 61.07310636 | P154: 54.77072509 | Q154: 54.48422926 | R154: 29.53356551 | S154: 0 | T154: 65.85850483 | U154: 54.76193396 | V154: 47.3490085 | W154: 82.81731768 | BB154: 12 Flush to septic tank | BC154: 3365.731054 | BD154: 2708.739006 | BE154: 2326.455141 | BF154: 1814.242552 | BG154: 1371.397673 | BH154: 0 | BI154: 0 | BJ154: 0 | BK154: 0 | BL154: 0 | BM154: 2551.451193 | BN154: 2386.356853 | BO154: 2382.693417 | BP154: 2134.564254 | BQ154: 2131.499709 | BR154: 702.177862 | BS154: 0 | BT154: 2666.523737 | BU154: 2339.326708 | BV154: 1901.367025 | BW154: 3977.170094
B155: 13 Flush to pit latrine | C155: 0.632775301 | D155: 0.7110699386 | E155: 0.379908499 | F155: 1.876981917 | G155: 0.9110684324 | H155: 0 | I155: 0.3373185452 | J155: 3.931474105 | K155: 1.766474381 | L155: 0.578295634 | M155: 0.8323660066 | N155: 0.6692034462 | O155: 0.6316537119 | P155: 0.8555753386 | Q155: 0.07055830069 | R155: 3.127259292 | S155: 1.315290793 | T155: 0.04281611857 | U155: 0.3312392249 | V155: 0.2006395616 | W155: 0.4385027951 | BB155: 13 Flush to pit latrine | BC155: 42.079585 | BD155: 47.302791 | BE155: 25.273111 | BF155: 124.851004 | BG155: 60.624939 | BH155: 0 | BI155: 9.34091 | BJ155: 106.596031 | BK155: 48.986566 | BL155: 15.856645 | BM155: 32.493321 | BN155: 26.110311 | BO155: 24.643206 | BP155: 33.3441 | BQ155: 2.76034 | BR155: 74.352426 | BS155: 180.780152 | BT155: 1.733568 | BU155: 14.149916 | BV155: 8.056968 | BW155: 21.0584
B156: 14 Flush to somewhere else | C156: 0.9566409692 | D156: 1.05848215 | E156: 0.5194983212 | F156: 0.519239186 | G156: 0.3474307998 | H156: 0 | I156: 0 | J156: 0 | K156: 0 | L156: 0 | M156: 1.24587517 | N156: 1.432407712 | O156: 1.369851235 | P156: 0.9040841389 | Q156: 0.8446859537 | R156: 7.004215694 | S156: 0 | T156: 0.9464764654 | U156: 0 | V156: 0.5003033704 | W156: 0.02718569901 | BB156: 14 Flush to somewhere else | BC156: 63.616666 | BD156: 70.413833 | BE156: 34.559213 | BF156: 34.538177 | BG156: 23.118978 | BH156: 0 | BI156: 0 | BJ156: 0 | BK156: 0 | BL156: 0 | BM156: 48.635602 | BN156: 55.888252 | BO156: 53.44309 | BP156: 35.23462 | BQ156: 33.045303 | BR156: 166.529341 | BS156: 0 | BT156: 38.32158 | BU156: 0 | BV156: 20.090396 | BW156: 1.30555
B157: 15 Flush, don't know where | C157: 0 | D157: 0.2438793213 | E157: 0 | F157: 0.3441987624 | G157: 0 | H157: 0.5901888868 | I157: 0 | J157: 0.7308562354 | K157: 0 | L157: 0 | M157: 0 | N157: 0 | O157: 0 | P157: 0.07900294938 | Q157: 0 | R157: 0.1295009025 | S157: 0.2622121738 | T157: 0 | U157: 0 | V157: 0 | W157: 0 | BB157: 15 Flush, don't know where | BC157: 0 | BD157: 16.223682 | BE157: 0 | BF157: 22.895032 | BG157: 0 | BH157: 16.223682 | BI157: 0 | BJ157: 19.816072 | BK157: 0 | BL157: 0 | BM157: 0 | BN157: 0 | BO157: 0 | BP157: 3.07896 | BQ157: 0 | BR157: 3.07896 | BS157: 36.039754 | BT157: 0 | BU157: 0 | BV157: 0 | BW157: 0
B158: 21 Ventilated Improved Pit latrine (VIP) | C158: 0.1278515857 | D158: 0 | E158: 0.1465465833 | F158: 0 | G158: 0 | H158: 0 | I158: 0 | J158: 0 | K158: 0 | L158: 0 | M158: 0.217795189 | N158: 0 | O158: 0 | P158: 0.2501466269 | Q158: 0 | R158: 0.2287553176 | S158: 0 | T158: 0.2407807737 | U158: 0.07171065129 | V158: 0 | W158: 0 | BB158: 21 Ventilated Improved Pit latrine (VIP) | BC158: 8.502136 | BD158: 0 | BE158: 9.748895 | BF158: 0 | BG158: 0 | BH158: 0 | BI158: 0 | BJ158: 0 | BK158: 0 | BL158: 0 | BM158: 8.502136 | BN158: 0 | BO158: 0 | BP158: 9.748895 | BQ158: 0 | BR158: 5.438792 | BS158: 0 | BT158: 9.748895 | BU158: 3.063344 | BV158: 0 | BW158: 0
B159: 22 Pit latrine with slab | C159: 0.1695386562 | D159: 0 | E159: 0 | F159: 0 | G159: 0 | H159: 0 | I159: 0 | J159: 0 | K159: 0 | L159: 0 | M159: 0.2888091178 | N159: 0 | O159: 0 | P159: 0 | Q159: 0 | R159: 0 | S159: 0 | T159: 0 | U159: 0 | V159: 0.08410678473 | W159: 0.1644385481 | BB159: 22 Pit latrine with slab | BC159: 11.274328 | BD159: 0 | BE159: 0 | BF159: 0 | BG159: 0 | BH159: 0 | BI159: 0 | BJ159: 0 | BK159: 0 | BL159: 0 | BM159: 11.274328 | BN159: 0 | BO159: 0 | BP159: 0 | BQ159: 0 | BR159: 0 | BS159: 0 | BT159: 0 | BU159: 0 | BV159: 3.377428 | BW159: 7.8969
B160: 23 Pit latrine without slab/open pit | C160: 0.10378706 | D160: 0 | E160: 0 | F160: 0 | G160: 0 | H160: 0 | I160: 0 | J160: 0 | K160: 0 | L160: 0 | M160: 0.1768012672 | N160: 0 | O160: 0 | P160: 0 | Q160: 0 | R160: 0.1762648369 | S160: 0 | T160: 0 | U160: 0 | V160: 0.06751208141 | W160: 0 | BB160: 23 Pit latrine without slab/open pit | BC160: 6.901844 | BD160: 0 | BE160: 0 | BF160: 0 | BG160: 0 | BH160: 0 | BI160: 0 | BJ160: 0 | BK160: 0 | BL160: 0 | BM160: 6.901844 | BN160: 0 | BO160: 0 | BP160: 0 | BQ160: 0 | BR160: 4.1908 | BS160: 0 | BT160: 0 | BU160: 0 | BV160: 2.711044 | BW160: 0
B161: 31 No facility/bush/field | C161: 0.433973491 | D161: 0 | E161: 0 | F161: 0 | G161: 0 | H161: 0 | I161: 0 | J161: 0 | K161: 0 | L161: 0 | M161: 0.7392738855 | N161: 0 | O161: 0 | P161: 0 | Q161: 0 | R161: 0 | S161: 0 | T161: 0.1805441551 | U161: 0.2348236692 | V161: 0.1229513508 | W161: 0.1370321235 | BB161: 31 No facility/bush/field | BC161: 28.859256 | BD161: 0 | BE161: 0 | BF161: 0 | BG161: 0 | BH161: 0 | BI161: 0 | BJ161: 0 | BK161: 0 | BL161: 0 | BM161: 28.859256 | BN161: 0 | BO161: 0 | BP161: 0 | BQ161: 0 | BR161: 0 | BS161: 0 | BT161: 7.309994 | BU161: 10.031225 | BV161: 4.937287 | BW161: 6.58075
B162: 96 Other | C162: 0.1664348236 | D162: 0.08649287127 | E162: 0.1018365265 | F162: 0 | G162: 0.4129421336 | H162: 0 | I162: 0 | J162: 0 | K162: 0.9908772565 | L162: 0 | M162: 0.2835217388 | N162: 0 | O162: 0.3211273149 | P162: 0 | Q162: 0 | R162: 0.1429720735 | S162: 0.1999219808 | T162: 0.1832456511 | U162: 0.15858831 | V162: 0.05116625482 | W162: 0.08221927407 | BB162: 96 Other | BC162: 11.067923 | BD162: 5.7538 | BE162: 6.774594 | BF162: 0 | BG162: 27.478278 | BH162: 0 | BI162: 0 | BJ162: 0 | BK162: 27.478278 | BL162: 0 | BM162: 11.067923 | BN162: 0 | BO162: 12.528394 | BP162: 0 | BQ162: 0 | BR162: 3.399245 | BS162: 27.478278 | BT162: 7.419374 | BU162: 6.774594 | BV162: 2.054654 | BW162: 3.94845
BB163: Total | BC163: 6650.004343 | BD163: 6652.340147 | BE163: 6652.420535 | BF163: 6651.689228 | BG163: 6654.268422 | BH163: 2748.896559 | BI163: 2769.165862 | BJ163: 2711.3502 | BK163: 2773.12632 | BL163: 2741.961735 | BM163: 3903.729939 | BN163: 3901.700021 | BO163: 3901.379116 | BP163: 3897.272221 | BQ163: 3912.140702 | BR163: 2377.55872 | BS163: 13744.50068 | BT163: 4048.867711 | BU163: 4271.811711 | BV163: 4015.642746 | BW163: 4802.341111
A208: =A1026 -> Maldives
A209: =A1034 -> 2017
A210: Access to hygiene facilities
A211: by wealth quintile and sub-national region
A212: Notes:
A213: WHO/UNICEF JMP customised wealth index excludes water,
A214: sanitation and hygiene assets.
A215: Survey used for analysis: | B215: =A1025 -> DHS17
A220: Access to handwashing | C220: NATIONAL wealth index quintile | H220: URBAN wealth index quintile | M220: RURAL wealth index quintile | R220: SUB-REGIONS: | BA220: Raw numbers of respondents: | BB220: Access to handwashing | BC220: NATIONAL wealth index quintile | BH220: URBAN wealth index quintile | BM220: RURAL wealth index quintile | BR220: SUB-REGIONS:
A221: Weighted percentage (used in graphs) | C221: Poorest | D221: Poor | E221: Middle | F221: Rich | G221: Richest | H221: 1 Poorest | I221: 2 Poor | J221: 3 Middle | K221: 4 Rich | L221: 5 Richest | M221: 1 Poorest | N221: 2 Poor | O221: 3 Middle | P221: 4 Rich | Q221: 5 Richest | R221: 4 Central Region | S221: 1 Malé | T221: 3 North Central | U221: 2 North Region | V221: 5 South Central | W221: 6 South Region | BA221: Hygiene data, raw numbers (weighted) | BC221: Poorest | BD221: Poor | BE221: Middle | BF221: Rich | BG221: Richest | BH221: Poorest | BI221: Poor | BJ221: Middle | BK221: Rich | BL221: Richest | BM221: Poorest | BN221: Poor | BO221: Middle | BP221: Rich | BQ221: Richest | BR221: 4 Central Region | BS221: 1 Malé | BT221: 3 North Central | BU221: 2 North Region | BV221: 5 South Central | BW221: 6 South Region
A222: Hygiene ladder | B222: 1,00 Basic | C222: 86.39435132 | D222: 93.41812008 | E222: 95.97560359 | F222: 96.65149464 | G222: 97.26196905 | H222: 95.61649095 | I222: 95.24940485 | J222: 97.32441139 | K222: 100 | L222: 97.19013573 | M222: 82.19336379 | N222: 91.56036878 | O222: 94.38876712 | P222: 94.99580502 | Q222: 95.53378244 | R222: 94.89775108 | S222: 97.07846283 | T222: 84.59337698 | U222: 95.56063972 | V222: 93.0283282 | W222: 91.73050039 | BA222: Hygiene ladder | BB222: Basic | BC222: 5723.460438 | BD222: 6208.101273 | BE222: 6384.700762 | BF222: 6428.957058 | BG222: 6470.146142 | BH222: 2622.559815 | BI222: 2637.614003 | BJ222: 2638.805623 | BK222: 2773.12632 | BL222: 2664.916332 | BM222: 3200.489218 | BN222: 3560.656319 | BO222: 3679.429059 | BP222: 3702.24512 | BQ222: 3735.523864 | BR222: 2246.362176 | BS222: 13337.02209 | BT222: 3425.073926 | BU222: 4081.494961 | BV222: 3729.346385 | BW222: 4396.066132
B223: 2,00 Limited | C223: 7.971482618 | D223: 4.246575417 | E223: 2.652636842 | F223: 2.139775764 | G223: 1.611953835 | H223: 3.169832626 | I223: 4.199320474 | J223: 2.225164754 | K223: 0 | L223: 2.809864267 | M223: 10.63307767 | N223: 4.671318024 | O223: 3.221414182 | P223: 2.833019936 | Q223: 1.637777661 | R223: 4.172099611 | S223: 2.479222916 | T223: 7.098444961 | U223: 3.88756025 | V223: 4.435333814 | W223: 3.457809114 | BB223: Limited | BC223: 528.095468 | BD223: 282.206174 | BE223: 176.464558 | BF223: 142.331234 | BG223: 107.231809 | BH223: 86.941861 | BI223: 116.286149 | BJ223: 60.332009 | BK223: 0 | BL223: 77.045403 | BM223: 414.036473 | BN223: 181.661108 | BO223: 125.576012 | BP223: 110.410499 | BQ223: 64.039729 | BR223: 98.759419 | BS223: 340.605422 | BT223: 287.406646 | BU223: 166.041768 | BV223: 177.804938 | BW223: 165.71105
B224: 3,00 No facility | C224: 5.634166059 | D224: 2.335304498 | E224: 1.371759565 | F224: 1.208729591 | G224: 1.126077115 | H224: 1.213676427 | I224: 0.5512746712 | J224: 0.4504238516 | K224: 0 | L224: 0 | M224: 7.173558534 | N224: 3.768313195 | O224: 2.389818694 | P224: 2.171175048 | Q224: 2.828439899 | R224: 0.930149311 | S224: 0.4423142564 | T224: 8.308178064 | U224: 0.5518000314 | V224: 2.536337989 | W224: 4.811690493 | BB224: No facility | BC224: 373.252719 | BD224: 155.192663 | BE224: 91.255215 | BF224: 80.400936 | BG224: 74.909891 | BH224: 33.288599 | BI224: 15.26571 | BJ224: 12.212568 | BK224: 0 | BL224: 0 | BM224: 279.327864 | BN224: 146.544497 | BO224: 93.159055 | BP224: 84.616602 | BQ224: 110.596529 | BR224: 22.017932 | BS224: 60.766877 | BT224: 336.387139 | BU224: 23.567957 | BV224: 101.677447 | BW224: 230.594072
A225: Place where household members wash their hands | B225: 1 Observed, fixed place | C225: 89.03031518 | D225: 95.2229836 | E225: 97.43631296 | F225: 97.77280304 | G225: 98.39613658 | H225: 98.56688376 | I225: 99.44872533 | J225: 99.44984919 | K225: 100 | L225: 100 | M225: 85.00581697 | N225: 92.79371693 | O225: 95.01370779 | P225: 95.5781881 | Q225: 95.66105946 | R225: 98.16983342 | S225: 99.49378221 | T225: 85.43844926 | U225: 96.05380849 | V225: 94.80334965 | W225: 91.8213716 | BA225: Observed handwashing place | BB225: Fixed | BC225: N/A | BD225: N/A | BE225: N/A | BF225: N/A | BG225: N/A | BH225: N/A | BI225: N/A | BJ225: N/A | BK225: N/A | BL225: N/A | BM225: N/A | BN225: N/A | BO225: N/A | BP225: N/A | BQ225: N/A | BR225: N/A | BS225: N/A | BT225: N/A | BU225: N/A | BV225: N/A | BW225: N/A
B226: 2 Observed, mobile place | C226: 4.977982914 | D226: 2.341291584 | E226: 1.191927473 | F226: 1.018467365 | G226: 0.4483574167 | H226: 0 | I226: 0 | J226: 0.09972695523 | K226: 0 | L226: 0 | M226: 7.585774852 | N226: 3.121330531 | O226: 2.516036383 | P226: 2.250636856 | Q226: 1.461306082 | R226: 0.4658627317 | S226: 0.0196729373 | T226: 6.253372673 | U226: 3.377931865 | V226: 2.49493036 | W226: 3.169323076 | BB226: Mobile | BC226: N/A | BD226: N/A | BE226: N/A | BF226: N/A | BG226: N/A | BH226: N/A | BI226: N/A | BJ226: N/A | BK226: N/A | BL226: N/A | BM226: N/A | BN226: N/A | BO226: N/A | BP226: N/A | BQ226: N/A | BR226: N/A | BS226: N/A | BT226: N/A | BU226: N/A | BV226: N/A | BW226: N/A
B227: 3 Not observed: not in dwelling | C227: 4.393669356 | D227: 2.103424508 | E227: 1.234111923 | F227: 0.9155756668 | G227: 1.074466891 | H227: 0.9888445933 | I227: 0 | J227: 0 | K227: 0 | L227: 0 | M227: 5.352852868 | N227: 3.638009284 | O227: 2.387849328 | P227: 1.749238394 | Q227: 2.739792793 | R227: 0.1143482589 | S227: 0.1977686614 | T227: 7.87521519 | U227: 0.07030883389 | V227: 2.080277587 | W227: 4.400053872 | BA227: Water / Soap | BB227: Water and soap | BC227: N/A | BD227: N/A | BE227: N/A | BF227: N/A | BG227: N/A | BH227: N/A | BI227: N/A | BJ227: N/A | BK227: N/A | BL227: N/A | BM227: N/A | BN227: N/A | BO227: N/A | BP227: N/A | BQ227: N/A | BR227: N/A | BS227: N/A | BT227: N/A | BU227: N/A | BV227: N/A | BW227: N/A
B228: 4 Not observed: no permission to see | C228: 0.37888273 | D228: 0.1028215162 | E228: 0 | F228: 0 | G228: 0.0297640533 | H228: 0.2221358232 | I228: 0 | J228: 0 | K228: 0 | L228: 0 | M228: 0.2529986488 | N228: 0.3290385455 | O228: 0.08240650048 | P228: 0 | Q228: 0.05062650224 | R228: 0.4382307327 | S228: 0.04442710684 | T228: 0 | U228: 0.01655094016 | V228: 0.169685812 | W228: 0.2076040991 | BB228: Water only | BC228: N/A | BD228: N/A | BE228: N/A | BF228: N/A | BG228: N/A | BH228: N/A | BI228: N/A | BJ228: N/A | BK228: N/A | BL228: N/A | BM228: N/A | BN228: N/A | BO228: N/A | BP228: N/A | BQ228: N/A | BR228: N/A | BS228: N/A | BT228: N/A | BU228: N/A | BV228: N/A | BW228: N/A
B229: 5 Not observed: other reason | C229: 1.21914982 | D229: 0.2294787949 | E229: 0.137647642 | F229: 0.2931539242 | G229: 0.05127505811 | H229: 0.2221358232 | I229: 0.5512746712 | J229: 0.4504238516 | K229: 0 | L229: 0 | M229: 1.80255666 | N229: 0.1179047076 | O229: 0 | P229: 0.4219366538 | Q229: 0.08721516581 | R229: 0.811724852 | S229: 0.2443490876 | T229: 0.4329628739 | U229: 0.4813998695 | V229: 0.4517565966 | W229: 0.401647354 | BB229: Soap only | BC229: N/A | BD229: N/A | BE229: N/A | BF229: N/A | BG229: N/A | BH229: N/A | BI229: N/A | BJ229: N/A | BK229: N/A | BL229: N/A | BM229: N/A | BN229: N/A | BO229: N/A | BP229: N/A | BQ229: N/A | BR229: N/A | BS229: N/A | BT229: N/A | BU229: N/A | BV229: N/A | BW229: N/A
BB230: Neither | BC230: N/A | BD230: N/A | BE230: N/A | BF230: N/A | BG230: N/A | BH230: N/A | BI230: N/A | BJ230: N/A | BK230: N/A | BL230: N/A | BM230: N/A | BN230: N/A | BO230: N/A | BP230: N/A | BQ230: N/A | BR230: N/A | BS230: N/A | BT230: N/A | BU230: N/A | BV230: N/A | BW230: N/A
BA231: Place where household members wash their hands | BB231: 1 Observed, fixed place | BC231: 5920.519826 | BD231: 6334.556767 | BE231: 6481.873292 | BF231: 6503.543008 | BG231: 6547.543045 | BH231: 2709.501676 | BI231: 2753.900152 | BJ231: 2696.433685 | BK231: 2773.12632 | BL231: 2741.961735 | BM231: 3318.397527 | BN231: 3620.532473 | BO231: 3706.844953 | BP231: 3724.942174 | BQ231: 3742.395243 | BR231: 2334.045435 | BS231: 13674.92357 | BT231: 3459.289785 | BU231: 4103.23784 | BV231: 3806.963833 | BW231: 4409.575477
BB232: 2 Observed, mobile place | BC232: 331.03608 | BD232: 155.75068 | BE232: 79.292028 | BF232: 67.745284 | BG232: 29.834906 | BH232: 0 | BI232: 0 | BJ232: 2.703947 | BK232: 0 | BL232: 0 | BM232: 296.128164 | BN232: 121.784954 | BO232: 98.160118 | BP232: 87.713445 | BQ232: 57.16835 | BR232: 11.07616 | BS232: 2.703947 | BT232: 253.190787 | BU232: 144.298889 | BV232: 100.18749 | BW232: 152.201705
BB233: 3 Not observed: not in dwelling | BC233: 292.179203 | BD233: 139.926953 | BE233: 82.098315 | BF233: 60.901248 | BG233: 71.497911 | BH233: 27.182315 | BI233: 0 | BJ233: 0 | BK233: 0 | BL233: 0 | BM233: 208.96092 | BN233: 141.944209 | BO233: 93.159055 | BP233: 68.172582 | BQ233: 107.184549 | BR233: 2.718697 | BS233: 27.182315 | BT233: 318.857045 | BU233: 3.003461 | BV233: 83.536516 | BW233: 211.305596
BB234: 4 Not observed: no permission to see | BC234: 25.195718 | BD234: 6.840037 | BE234: 0 | BF234: 0 | BG234: 1.98058 | BH234: 6.106284 | BI234: 0 | BJ234: 0 | BK234: 0 | BL234: 0 | BM234: 9.876384 | BN234: 12.838097 | BO234: 3.21499 | BP234: 0 | BQ234: 1.98058 | BR234: 10.419193 | BS234: 6.106284 | BT234: 0 | BU234: 0.707025 | BV234: 6.813976 | BW234: 9.969857
BB235: 5 Not observed: other reason | BC235: 81.073516 | BD235: 15.26571 | BE235: 9.1569 | BF235: 19.499688 | BG235: 3.41198 | BH235: 6.106284 | BI235: 15.26571 | BJ235: 12.212568 | BK235: 0 | BL235: 0 | BM235: 70.366944 | BN235: 4.600288 | BO235: 0 | BP235: 16.44402 | BQ235: 3.41198 | BR235: 19.299235 | BS235: 33.584562 | BT235: 17.530094 | BU235: 20.564496 | BV235: 18.140931 | BW235: 19.288476
BB236: Total | BC236: 6650.004343 | BD236: 6652.340147 | BE236: 6652.420535 | BF236: 6651.689228 | BG236: 6654.268422 | BH236: 2748.896559 | BI236: 2769.165862 | BJ236: 2711.3502 | BK236: 2773.12632 | BL236: 2741.961735 | BM236: 3903.729939 | BN236: 3901.700021 | BO236: 3901.379116 | BP236: 3897.272221 | BQ236: 3912.140702 | BR236: 2377.55872 | BS236: 13744.50068 | BT236: 4048.867711 | BU236: 4271.811711 | BV236: 4015.642746 | BW236: 4802.341111
BA259: Raw numbers of respondents: | BB259: Menstrual health and hygiene | BC259: NATIONAL wealth index quintile | BH259: URBAN wealth index quintile | BM259: RURAL wealth index quintile | BR259: SUB-REGIONS:
BA260: MHH data, raw numbers (weighted) | BC260: Poorest | BD260: Poor | BE260: Middle | BF260: Rich | BG260: Richest | BH260: Poorest | BI260: Poor | BJ260: Middle | BK260: Rich | BL260: Richest | BM260: Poorest | BN260: Poor | BO260: Middle | BP260: Rich | BQ260: Richest | BR260: 4 Central Region | BS260: 1 Malé | BT260: 3 North Central | BU260: 2 North Region | BV260: 5 South Central | BW260: 6 South Region
BA261: Private place to wash and change | BB261: Yes | BC261: N/A | BD261: N/A | BE261: N/A | BF261: N/A | BG261: N/A | BH261: N/A | BI261: N/A | BJ261: N/A | BK261: N/A | BL261: N/A | BM261: N/A | BN261: N/A | BO261: N/A | BP261: N/A | BQ261: N/A | BR261: N/A | BS261: N/A | BT261: N/A | BU261: N/A | BV261: N/A | BW261: N/A
BB262: No | BC262: N/A | BD262: N/A | BE262: N/A | BF262: N/A | BG262: N/A | BH262: N/A | BI262: N/A | BJ262: N/A | BK262: N/A | BL262: N/A | BM262: N/A | BN262: N/A | BO262: N/A | BP262: N/A | BQ262: N/A | BR262: N/A | BS262: N/A | BT262: N/A | BU262: N/A | BV262: N/A | BW262: N/A
BB263: DK/not sure/missing | BC263: N/A | BD263: N/A | BE263: N/A | BF263: N/A | BG263: N/A | BH263: N/A | BI263: N/A | BJ263: N/A | BK263: N/A | BL263: N/A | BM263: N/A | BN263: N/A | BO263: N/A | BP263: N/A | BQ263: N/A | BR263: N/A | BS263: N/A | BT263: N/A | BU263: N/A | BV263: N/A | BW263: N/A
BA264: Use of menstrual materials | BB264: Materials reusable | BC264: N/A | BD264: N/A | BE264: N/A | BF264: N/A | BG264: N/A | BH264: N/A | BI264: N/A | BJ264: N/A | BK264: N/A | BL264: N/A | BM264: N/A | BN264: N/A | BO264: N/A | BP264: N/A | BQ264: N/A | BR264: N/A | BS264: N/A | BT264: N/A | BU264: N/A | BV264: N/A | BW264: N/A
BB265: Materials not reusable | BC265: N/A | BD265: N/A | BE265: N/A | BF265: N/A | BG265: N/A | BH265: N/A | BI265: N/A | BJ265: N/A | BK265: N/A | BL265: N/A | BM265: N/A | BN265: N/A | BO265: N/A | BP265: N/A | BQ265: N/A | BR265: N/A | BS265: N/A | BT265: N/A | BU265: N/A | BV265: N/A | BW265: N/A
BB266: No materials used | BC266: N/A | BD266: N/A | BE266: N/A | BF266: N/A | BG266: N/A | BH266: N/A | BI266: N/A | BJ266: N/A | BK266: N/A | BL266: N/A | BM266: N/A | BN266: N/A | BO266: N/A | BP266: N/A | BQ266: N/A | BR266: N/A | BS266: N/A | BT266: N/A | BU266: N/A | BV266: N/A | BW266: N/A
BB267: DK/not sure/missing | BC267: N/A | BD267: N/A | BE267: N/A | BF267: N/A | BG267: N/A | BH267: N/A | BI267: N/A | BJ267: N/A | BK267: N/A | BL267: N/A | BM267: N/A | BN267: N/A | BO267: N/A | BP267: N/A | BQ267: N/A | BR267: N/A | BS267: N/A | BT267: N/A | BU267: N/A | BV267: N/A | BW267: N/A
BA268: Use of menstrual materials with private place to wash and change | BB268: Materials reusable | BC268: N/A | BD268: N/A | BE268: N/A | BF268: N/A | BG268: N/A | BH268: N/A | BI268: N/A | BJ268: N/A | BK268: N/A | BL268: N/A | BM268: N/A | BN268: N/A | BO268: N/A | BP268: N/A | BQ268: N/A | BR268: N/A | BS268: N/A | BT268: N/A | BU268: N/A | BV268: N/A | BW268: N/A
BB269: Materials not reusable | BC269: N/A | BD269: N/A | BE269: N/A | BF269: N/A | BG269: N/A | BH269: N/A | BI269: N/A | BJ269: N/A | BK269: N/A | BL269: N/A | BM269: N/A | BN269: N/A | BO269: N/A | BP269: N/A | BQ269: N/A | BR269: N/A | BS269: N/A | BT269: N/A | BU269: N/A | BV269: N/A | BW269: N/A
BB270: No materials used | BC270: N/A | BD270: N/A | BE270: N/A | BF270: N/A | BG270: N/A | BH270: N/A | BI270: N/A | BJ270: N/A | BK270: N/A | BL270: N/A | BM270: N/A | BN270: N/A | BO270: N/A | BP270: N/A | BQ270: N/A | BR270: N/A | BS270: N/A | BT270: N/A | BU270: N/A | BV270: N/A | BW270: N/A
BA271: Awareness of menstruation before menarche | BB271: Yes | BC271: N/A | BD271: N/A | BE271: N/A | BF271: N/A | BG271: N/A | BH271: N/A | BI271: N/A | BJ271: N/A | BK271: N/A | BL271: N/A | BM271: N/A | BN271: N/A | BO271: N/A | BP271: N/A | BQ271: N/A | BR271: N/A | BS271: N/A | BT271: N/A | BU271: N/A | BV271: N/A | BW271: N/A
BB272: No | BC272: N/A | BD272: N/A | BE272: N/A | BF272: N/A | BG272: N/A | BH272: N/A | BI272: N/A | BJ272: N/A | BK272: N/A | BL272: N/A | BM272: N/A | BN272: N/A | BO272: N/A | BP272: N/A | BQ272: N/A | BR272: N/A | BS272: N/A | BT272: N/A | BU272: N/A | BV272: N/A | BW272: N/A
BB273: DK/not sure/missing | BC273: N/A | BD273: N/A | BE273: N/A | BF273: N/A | BG273: N/A | BH273: N/A | BI273: N/A | BJ273: N/A | BK273: N/A | BL273: N/A | BM273: N/A | BN273: N/A | BO273: N/A | BP273: N/A | BQ273: N/A | BR273: N/A | BS273: N/A | BT273: N/A | BU273: N/A | BV273: N/A | BW273: N/A
BA274: Participation in (all) activities during menstruation | BB274: Yes | BC274: N/A | BD274: N/A | BE274: N/A | BF274: N/A | BG274: N/A | BH274: N/A | BI274: N/A | BJ274: N/A | BK274: N/A | BL274: N/A | BM274: N/A | BN274: N/A | BO274: N/A | BP274: N/A | BQ274: N/A | BR274: N/A | BS274: N/A | BT274: N/A | BU274: N/A | BV274: N/A | BW274: N/A
BB275: No | BC275: N/A | BD275: N/A | BE275: N/A | BF275: N/A | BG275: N/A | BH275: N/A | BI275: N/A | BJ275: N/A | BK275: N/A | BL275: N/A | BM275: N/A | BN275: N/A | BO275: N/A | BP275: N/A | BQ275: N/A | BR275: N/A | BS275: N/A | BT275: N/A | BU275: N/A | BV275: N/A | BW275: N/A
BB276: DK/not sure/missing/no such activity | BC276: N/A | BD276: N/A | BE276: N/A | BF276: N/A | BG276: N/A | BH276: N/A | BI276: N/A | BJ276: N/A | BK276: N/A | BL276: N/A | BM276: N/A | BN276: N/A | BO276: N/A | BP276: N/A | BQ276: N/A | BR276: N/A | BS276: N/A | BT276: N/A | BU276: N/A | BV276: N/A | BW276: N/A
BA277: Participation in specific activities during menstruation | BB277: Did not go to school (amongst those usually attending school) | BC277: N/A | BD277: N/A | BE277: N/A | BF277: N/A | BG277: N/A | BH277: N/A | BI277: N/A | BJ277: N/A | BK277: N/A | BL277: N/A | BM277: N/A | BN277: N/A | BO277: N/A | BP277: N/A | BQ277: N/A | BR277: N/A | BS277: N/A | BT277: N/A | BU277: N/A | BV277: N/A | BW277: N/A
BB278: Did not go to work (amongst those who usually work) | BC278: N/A | BD278: N/A | BE278: N/A | BF278: N/A | BG278: N/A | BH278: N/A | BI278: N/A | BJ278: N/A | BK278: N/A | BL278: N/A | BM278: N/A | BN278: N/A | BO278: N/A | BP278: N/A | BQ278: N/A | BR278: N/A | BS278: N/A | BT278: N/A | BU278: N/A | BV278: N/A | BW278: N/A
BB279: Did not participate in social activities | BC279: N/A | BD279: N/A | BE279: N/A | BF279: N/A | BG279: N/A | BH279: N/A | BI279: N/A | BJ279: N/A | BK279: N/A | BL279: N/A | BM279: N/A | BN279: N/A | BO279: N/A | BP279: N/A | BQ279: N/A | BR279: N/A | BS279: N/A | BT279: N/A | BU279: N/A | BV279: N/A | BW279: N/A
BB280: Did not cook food | BC280: N/A | BD280: N/A | BE280: N/A | BF280: N/A | BG280: N/A | BH280: N/A | BI280: N/A | BJ280: N/A | BK280: N/A | BL280: N/A | BM280: N/A | BN280: N/A | BO280: N/A | BP280: N/A | BQ280: N/A | BR280: N/A | BS280: N/A | BT280: N/A | BU280: N/A | BV280: N/A | BW280: N/A
BB281: Did not eat with others | BC281: N/A | BD281: N/A | BE281: N/A | BF281: N/A | BG281: N/A | BH281: N/A | BI281: N/A | BJ281: N/A | BK281: N/A | BL281: N/A | BM281: N/A | BN281: N/A | BO281: N/A | BP281: N/A | BQ281: N/A | BR281: N/A | BS281: N/A | BT281: N/A | BU281: N/A | BV281: N/A | BW281: N/A
BB282: Did not bathe in regular place | BC282: N/A | BD282: N/A | BE282: N/A | BF282: N/A | BG282: N/A | BH282: N/A | BI282: N/A | BJ282: N/A | BK282: N/A | BL282: N/A | BM282: N/A | BN282: N/A | BO282: N/A | BP282: N/A | BQ282: N/A | BR282: N/A | BS282: N/A | BT282: N/A | BU282: N/A | BV282: N/A | BW282: N/A
BB283: Did not participate in other activities | BC283: N/A | BD283: N/A | BE283: N/A | BF283: N/A | BG283: N/A | BH283: N/A | BI283: N/A | BJ283: N/A | BK283: N/A | BL283: N/A | BM283: N/A | BN283: N/A | BO283: N/A | BP283: N/A | BQ283: N/A | BR283: N/A | BS283: N/A | BT283: N/A | BU283: N/A | BV283: N/A | BW283: N/A
BB284: DK/not sure/missing/no such activity | BC284: N/A | BD284: N/A | BE284: N/A | BF284: N/A | BG284: N/A | BH284: N/A | BI284: N/A | BJ284: N/A | BK284: N/A | BL284: N/A | BM284: N/A | BN284: N/A | BO284: N/A | BP284: N/A | BQ284: N/A | BR284: N/A | BS284: N/A | BT284: N/A | BU284: N/A | BV284: N/A | BW284: N/A
BA339: Raw numbers of respondents: | BB339: Basic water, sanitation and hygiene | BC339: NATIONAL wealth index quintile | BH339: URBAN wealth index quintile | BM339: RURAL wealth index quintile | BR339: SUB-REGIONS:
BA340: WatSan data, raw numbers (weighted) | BC340: Poorest | BD340: Poor | BE340: Middle | BF340: Rich | BG340: Richest | BH340: Poorest | BI340: Poor | BJ340: Middle | BK340: Rich | BL340: Richest | BM340: Poorest | BN340: Poor | BO340: Middle | BP340: Rich | BQ340: Richest | BR340: 4 Central Region | BS340: 1 Malé | BT340: 3 North Central | BU340: 2 North Region | BV340: 5 South Central | BW340: 6 South Region
BA341: Use of Basic Water Sanitation and Hygiene | BB341: Yes | BC341: N/A | BD341: N/A | BE341: N/A | BF341: N/A | BG341: N/A | BH341: N/A | BI341: N/A | BJ341: N/A | BK341: N/A | BL341: N/A | BM341: N/A | BN341: N/A | BO341: N/A | BP341: N/A | BQ341: N/A | BR341: N/A | BS341: N/A | BT341: N/A | BU341: N/A | BV341: N/A | BW341: N/A
BB342: No | BC342: N/A | BD342: N/A | BE342: N/A | BF342: N/A | BG342: N/A | BH342: N/A | BI342: N/A | BJ342: N/A | BK342: N/A | BL342: N/A | BM342: N/A | BN342: N/A | BO342: N/A | BP342: N/A | BQ342: N/A | BR342: N/A | BS342: N/A | BT342: N/A | BU342: N/A | BV342: N/A | BW342: N/A
BA343: Use of Basic Water and Sanitation | BB343: Yes | BC343: N/A | BD343: N/A | BE343: N/A | BF343: N/A | BG343: N/A | BH343: N/A | BI343: N/A | BJ343: N/A | BK343: N/A | BL343: N/A | BM343: N/A | BN343: N/A | BO343: N/A | BP343: N/A | BQ343: N/A | BR343: N/A | BS343: N/A | BT343: N/A | BU343: N/A | BV343: N/A | BW343: N/A
BB344: No | BC344: N/A | BD344: N/A | BE344: N/A | BF344: N/A | BG344: N/A | BH344: N/A | BI344: N/A | BJ344: N/A | BK344: N/A | BL344: N/A | BM344: N/A | BN344: N/A | BO344: N/A | BP344: N/A | BQ344: N/A | BR344: N/A | BS344: N/A | BT344: N/A | BU344: N/A | BV344: N/A | BW344: N/A
BA345: Use of Basic Water and Hygiene | BB345: Yes | BC345: N/A | BD345: N/A | BE345: N/A | BF345: N/A | BG345: N/A | BH345: N/A | BI345: N/A | BJ345: N/A | BK345: N/A | BL345: N/A | BM345: N/A | BN345: N/A | BO345: N/A | BP345: N/A | BQ345: N/A | BR345: N/A | BS345: N/A | BT345: N/A | BU345: N/A | BV345: N/A | BW345: N/A
BB346: No | BC346: N/A | BD346: N/A | BE346: N/A | BF346: N/A | BG346: N/A | BH346: N/A | BI346: N/A | BJ346: N/A | BK346: N/A | BL346: N/A | BM346: N/A | BN346: N/A | BO346: N/A | BP346: N/A | BQ346: N/A | BR346: N/A | BS346: N/A | BT346: N/A | BU346: N/A | BV346: N/A | BW346: N/A
BA347: Use of Basic Sanitation and Hygiene | BB347: Yes | BC347: N/A | BD347: N/A | BE347: N/A | BF347: N/A | BG347: N/A | BH347: N/A | BI347: N/A | BJ347: N/A | BK347: N/A | BL347: N/A | BM347: N/A | BN347: N/A | BO347: N/A | BP347: N/A | BQ347: N/A | BR347: N/A | BS347: N/A | BT347: N/A | BU347: N/A | BV347: N/A | BW347: N/A
BB348: No | BC348: N/A | BD348: N/A | BE348: N/A | BF348: N/A | BG348: N/A | BH348: N/A | BI348: N/A | BJ348: N/A | BK348: N/A | BL348: N/A | BM348: N/A | BN348: N/A | BO348: N/A | BP348: N/A | BQ348: N/A | BR348: N/A | BS348: N/A | BT348: N/A | BU348: N/A | BV348: N/A | BW348: N/A
BA349: Use of Basic Water | BB349: Yes | BC349: N/A | BD349: N/A | BE349: N/A | BF349: N/A | BG349: N/A | BH349: N/A | BI349: N/A | BJ349: N/A | BK349: N/A | BL349: N/A | BM349: N/A | BN349: N/A | BO349: N/A | BP349: N/A | BQ349: N/A | BR349: N/A | BS349: N/A | BT349: N/A | BU349: N/A | BV349: N/A | BW349: N/A
BB350: No | BC350: N/A | BD350: N/A | BE350: N/A | BF350: N/A | BG350: N/A | BH350: N/A | BI350: N/A | BJ350: N/A | BK350: N/A | BL350: N/A | BM350: N/A | BN350: N/A | BO350: N/A | BP350: N/A | BQ350: N/A | BR350: N/A | BS350: N/A | BT350: N/A | BU350: N/A | BV350: N/A | BW350: N/A
BA351: Use of Basic Sanitation | BB351: Yes | BC351: N/A | BD351: N/A | BE351: N/A | BF351: N/A | BG351: N/A | BH351: N/A | BI351: N/A | BJ351: N/A | BK351: N/A | BL351: N/A | BM351: N/A | BN351: N/A | BO351: N/A | BP351: N/A | BQ351: N/A | BR351: N/A | BS351: N/A | BT351: N/A | BU351: N/A | BV351: N/A | BW351: N/A
BB352: No | BC352: N/A | BD352: N/A | BE352: N/A | BF352: N/A | BG352: N/A | BH352: N/A | BI352: N/A | BJ352: N/A | BK352: N/A | BL352: N/A | BM352: N/A | BN352: N/A | BO352: N/A | BP352: N/A | BQ352: N/A | BR352: N/A | BS352: N/A | BT352: N/A | BU352: N/A | BV352: N/A | BW352: N/A
BA353: Access to Basic Hygiene | BB353: Yes | BC353: N/A | BD353: N/A | BE353: N/A | BF353: N/A | BG353: N/A | BH353: N/A | BI353: N/A | BJ353: N/A | BK353: N/A | BL353: N/A | BM353: N/A | BN353: N/A | BO353: N/A | BP353: N/A | BQ353: N/A | BR353: N/A | BS353: N/A | BT353: N/A | BU353: N/A | BV353: N/A | BW353: N/A
BB354: No | BC354: N/A | BD354: N/A | BE354: N/A | BF354: N/A | BG354: N/A | BH354: N/A | BI354: N/A | BJ354: N/A | BK354: N/A | BL354: N/A | BM354: N/A | BN354: N/A | BO354: N/A | BP354: N/A | BQ354: N/A | BR354: N/A | BS354: N/A | BT354: N/A | BU354: N/A | BV354: N/A | BW354: N/A
C399: INITIAL (national) Wealth Index | H399: URBAN Wealth Index | M399: RURAL Wealth Index
C400: Matrice des composantes | H400: Matrice des composantes | M400: Matrice des composantes
E401: Composante | J401: Composante | O401: Composante
B402: Note: The INITIAL (national) Wealth Index is based on the first component of the Principal Component Analysis (PCA) which has been obtained at national level. The final national-level (NATIONAL) Wealth Index is based on the URBAN and RURAL specific wealth indexes. Regression procedures are used to establish the relationships between the two sets of scores (urban and rural) and the initial (national) wealth factors. This allows best use of the available information for each area and a better precision of the FINAL (NATIONAL) Wealth Index. For dependency reasons, all WASH variables (contained in the generic MICS and DHS scripts) have been excluded from the sets of asset variables used in the PCAs. The PCA can extracts as many components as there are asset variables in the input. Only the first of the components is used to represent the Wealth Index. The scores represent the weights of the asset variables on the Wealth Index (correlations between the variables and the component). The communalities are the proportion of each variable's variance that can be explained by the component. Proportion of explained variance is the part of the model's total variance that is explained by the component. For more information on the procedure used: The DHS Wealth Index, DHS Comparative Reports No. 6, Shea Oscar Rutstein, Kiersten Johnson, ORC Macro International Inc., 2004. The DHS Wealth Index: Approaches for Rural and Urban Areas, Shea O. Rutstein, ORC Macro International Inc., 2008. MICS Methodological Paper No. 4, Review of options for reporting water, sanitation and hygiene coverage by wealth quintile, UNICEF, 2016. | E402: 1 | J402: 1 | O402: 1
C403: floor33 Terrazo, ceramic tile floor | E403: 0.563797446 | H403: SH121F Household has internet connection | J403: 0.4977388244 | M403: floor33 Terrazo, ceramic tile floor | O403: 0.5553102076
C404: HV208 Has television | E404: 0.5233284653 | H404: cooknone Does not cook | J404: -0.4971363891 | M404: HV208 Has television | O404: 0.5463561201
C405: HV209 Has refrigerator | E405: 0.5103255099 | H405: HV243E Has a computer | J405: 0.4963769337 | M405: HV209 Has refrigerator | O405: 0.5243182805
C406: HV243E Has a computer | E406: 0.4970711386 | H406: HV208 Has television | J406: 0.4959113661 | M406: SH121D Household has satelite/cable TV | O406: 0.5032224498
C407: floor34 Concrete, cement floor | E407: -0.4949722507 | H407: SH121D Household has satelite/cable TV | J407: 0.4917956255 | M407: SH121K Household has washing machine | O407: 0.4966120258
C408: SH121J Household has air conditioner | E408: 0.4853870081 | H408: HV209 Has refrigerator | J408: 0.4653887896 | M408: floor34 Concrete, cement floor | O408: -0.4856115166
C409: SH121K Household has washing machine | E409: 0.4798151708 | H409: SH121J Household has air conditioner | J409: 0.4634446951 | M409: cooklpg LPG for cooking | O409: 0.4852543801
C410: SH121D Household has satelite/cable TV | E410: 0.4720281785 | H410: SH121K Household has washing machine | J410: 0.4457885688 | M410: HV243E Has a computer | O410: 0.4744201958
C411: cooknone Does not cook | E411: -0.4555768138 | H411: HV247 Has bank account | J411: 0.398911104 | M411: cooknone Does not cook | O411: -0.4674096498
C412: cooklpg LPG for cooking | E412: 0.4410416376 | H412: HV211 Has motorcycle/scooter | J412: 0.378989409 | M412: SH121J Household has air conditioner | O412: 0.4620024649
C413: SH121F Household has internet connection | E413: 0.4315913356 | H413: HV243B Has watch | J413: 0.3538064791 | M413: SH121F Household has internet connection | O413: 0.422094068
C414: HV211 Has motorcycle/scooter | E414: 0.4148992465 | H414: cooklpg LPG for cooking | J414: 0.3525521499 | M414: HV211 Has motorcycle/scooter | O414: 0.3838365885
... 220 more rows

Sheet data_summary
A1: iso3 | B1: year | C1: data_source | D1: row | E1: var1 | F1: var2 | G1: varname | H1: total_q1 | I1: total_q2 | J1: total_q3 | K1: total_q4 | L1: total_q5 | M1: urban_q1 | N1: urban_q2 | O1: urban_q3 | P1: urban_q4 | Q1: urban_q5 | R1: rural_q1 | S1: rural_q2 | T1: rural_q3 | U1: rural_q4 | V1: rural_q5 | W1: region_1_name | X1: region_2_name | Y1: region_3_name | Z1: region_4_name | AA1: region_5_name | AB1: region_6_name | AC1: region_1 | AD1: region_2 | AE1: region_3 | AF1: region_4 | AG1: region_5 | AH1: region_6 | AI1: n_total_q1 | AJ1: n_total_q2 | AK1: n_total_q3 | AL1: n_total_q4 | AM1: n_total_q5 | AN1: n_urban_q1 | AO1: n_urban_q2 | AP1: n_urban_q3 | AQ1: n_urban_q4 | AR1: n_urban_q5 | AS1: n_rural_q1 | AT1: n_rural_q2 | AU1: n_rural_q3 | AV1: n_rural_q4 | AW1: n_rural_q5 | AX1: n_region_1 | AY1: n_region_2 | AZ1: n_region_3 | BA1: n_region_4 | BB1: n_region_5 | BC1: n_region_6
A2: MDV | B2: 2017 | C2: MDV_2017_DHS | D2: 16 | E2: Water | F2: 1 Improved | G2: w_imp | H2: 98.90888495 | I2: 99.77151304 | J2: 100 | K2: 99.96074531 | L2: 99.68341097 | M2: 98.73273311 | N2: 100 | O2: 100 | P2: 100 | Q2: 99.231693 | R2: 99.32652111 | S2: 99.70698555 | T2: 99.6104011 | U2: 100 | V2: 99.93325649 | W2: 4 Central Region | X2: 1 Malé | Y2: 3 North Central | Z2: 2 North Region | AA2: 5 South Central | AB2: 6 South Region | AC2: 100 | AD2: 99.5932734 | AE2: 99.87307128 | AF2: 100 | AG2: 99.36671294 | AH2: 99.48016083
A3: MDV | B3: 2017 | C3: MDV_2017_DHS | D3: 17 | E3: Water | F3: 2 Not Improved | H3: 1.091115047 | I3: 0.2284869634 | J3: 0 | K3: 0.03925469021 | L3: 0.3165890322 | M3: 1.267266892 | N3: 0 | O3: 0 | P3: 0 | Q3: 0.7683070019 | R3: 0.6734788884 | S3: 0.2930144537 | T3: 0.3895988969 | U3: 0 | V3: 0.06674350947 | W3: 4 Central Region | X3: 1 Malé | Y3: 3 North Central | Z3: 2 North Region | AA3: 5 South Central | AB3: 6 South Region | AC3: 0 | AD3: 0.4067265979 | AE3: 0.126928721 | AF3: 0 | AG3: 0.6332870628 | AH3: 0.5198391664
A4: MDV | B4: 2017 | C4: MDV_2017_DHS | D4: 18 | E4: Water ladder | F4: 1 Basic | G4: w_bas | H4: 98.72192133 | I4: 99.65613645 | J4: 100 | K4: 99.90143463 | L4: 99.68341097 | M4: 98.73273311 | N4: 100 | O4: 100 | P4: 100 | Q4: 99.231693 | R4: 99.00802856 | S4: 99.55531466 | T4: 99.56535293 | U4: 99.8987712 | V4: 99.93325649 | W4: 4 Central Region | X4: 1 Malé | Y4: 3 North Central | Z4: 2 North Region | AA4: 5 South Central | AB4: 6 South Region | AC4: 98.98831125 | AD4: 99.5932734 | AE4: 99.87307128 | AF4: 100 | AG4: 99.36671294 | AH4: 99.48016083
A5: MDV | B5: 2017 | C5: MDV_2017_DHS | D5: 19 | E5: Water ladder | F5: 2 Limited | G5: w_lim | H5: 0.1869636223 | I5: 0.1153765867 | J5: 0 | K5: 0.05931067831 | L5: 0 | M5: 0 | N5: 0 | O5: 0 | P5: 0 | Q5: 0 | R5: 0.3184925493 | S5: 0.1516708862 | T5: 0.04504817265 | U5: 0.1012288025 | V5: 0 | W5: 4 Central Region | X5: 1 Malé | Y5: 3 North Central | Z5: 2 North Region | AA5: 5 South Central | AB5: 6 South Region | AC5: 1.011688746 | AD5: 0 | AE5: 0 | AF5: 0 | AG5: 0 | AH5: 0
A6: MDV | B6: 2017 | C6: MDV_2017_DHS | D6: 20 | E6: Water ladder | F6: 3 Other unimproved | G6: w_unimp | H6: 1.091115047 | I6: 0.2284869634 | J6: 0 | K6: 0.03925469021 | L6: 0.3165890322 | M6: 1.267266892 | N6: 0 | O6: 0 | P6: 0 | Q6: 0.7683070019 | R6: 0.6734788884 | S6: 0.2930144537 | T6: 0.3895988969 | U6: 0 | V6: 0.06674350947 | W6: 4 Central Region | X6: 1 Malé | Y6: 3 North Central | Z6: 2 North Region | AA6: 5 South Central | AB6: 6 South Region | AC6: 0 | AD6: 0.4067265979 | AE6: 0.126928721 | AF6: 0 | AG6: 0.6332870628 | AH6: 0.5198391664
A7: MDV | B7: 2017 | C7: MDV_2017_DHS | D7: 21 | E7: Water ladder | F7: 4 Surface water | G7: w_sur | H7: 0 | I7: 0 | J7: 0 | K7: 0 | L7: 0 | M7: 0 | N7: 0 | O7: 0 | P7: 0 | Q7: 0 | R7: 0 | S7: 0 | T7: 0 | U7: 0 | V7: 0 | W7: 4 Central Region | X7: 1 Malé | Y7: 3 North Central | Z7: 2 North Region | AA7: 5 South Central | AB7: 6 South Region | AC7: 0 | AD7: 0 | AE7: 0 | AF7: 0 | AG7: 0 | AH7: 0
A8: MDV | B8: 2017 | C8: MDV_2017_DHS | D8: 22 | E8: Improved water point at more than 30 minutes | F8: 1 Yes | H8: 0.1890261146 | I8: 0.1156408109 | J8: 0 | K8: 0.05933396967 | L8: 0 | M8: 0 | N8: 0 | O8: 0 | P8: 0 | Q8: 0 | R8: 0.3206520733 | S8: 0.1521166099 | T8: 0.04522436628 | U8: 0.1012288025 | V8: 0 | W8: 4 Central Region | X8: 1 Malé | Y8: 3 North Central | Z8: 2 North Region | AA8: 5 South Central | AB8: 6 South Region | AC8: 1.011688746 | AD8: 0 | AE8: 0 | AF8: 0 | AG8: 0 | AH8: 0
A9: MDV | B9: 2017 | C9: MDV_2017_DHS | D9: 23 | E9: Improved water point at more than 30 minutes | F9: 2 No | H9: 99.81097389 | I9: 99.88435919 | J9: 100 | K9: 99.94066603 | L9: 100 | M9: 100 | N9: 100 | O9: 100 | P9: 100 | Q9: 100 | R9: 99.67934793 | S9: 99.84788339 | T9: 99.95477563 | U9: 99.8987712 | V9: 100 | W9: 4 Central Region | X9: 1 Malé | Y9: 3 North Central | Z9: 2 North Region | AA9: 5 South Central | AB9: 6 South Region | AC9: 98.98831125 | AD9: 100 | AE9: 100 | AF9: 100 | AG9: 100 | AH9: 100
A10: MDV | B10: 2017 | C10: MDV_2017_DHS | D10: 29 | E10: Piped water | F10: 1 Yes | G10: w_pip | H10: 29.69461255 | I10: 38.82674103 | J10: 49.23945305 | K10: 57.31524031 | L10: 68.22131043 | M10: 97.1931687 | N10: 98.19304377 | O10: 99.75562943 | P10: 97.69413328 | Q10: 99.231693 | R10: 10.89241868 | S10: 10.90178603 | T10: 13.25694547 | U10: 17.51451478 | V10: 15.57278875 | W10: 4 Central Region | X10: 1 Malé | Y10: 3 North Central | Z10: 2 North Region | AA10: 5 South Central | AB10: 6 South Region | AC10: 9.547012282 | AD10: 98.40786121 | AE10: 19.37249678 | AF10: 10.51105232 | AG10: 11.84302327 | AH10: 15.06866233
A11: MDV | B11: 2017 | C11: MDV_2017_DHS | D11: 30 | E11: Piped water | F11: 2 No | H11: 70.30538745 | I11: 61.17325897 | J11: 50.76054695 | K11: 42.68475969 | L11: 31.77868957 | M11: 2.806831299 | N11: 1.806956228 | O11: 0.2443705723 | P11: 2.305866723 | Q11: 0.7683070019 | R11: 89.10758132 | S11: 89.09821397 | T11: 86.74305453 | U11: 82.48548522 | V11: 84.42721125 | W11: 4 Central Region | X11: 1 Malé | Y11: 3 North Central | Z11: 2 North Region | AA11: 5 South Central | AB11: 6 South Region | AC11: 90.45298772 | AD11: 1.592138792 | AE11: 80.62750322 | AF11: 89.48894768 | AG11: 88.15697673 | AH11: 84.93133767
A12: MDV | B12: 2017 | C12: MDV_2017_DHS | D12: 31 | E12: Piped water on premises | F12: Yes | G12: w_pop | H12: 29.50963604 | I12: 38.802522 | J12: 49.23945305 | K12: 57.11733313 | L12: 68.22131043 | M12: 97.1931687 | N12: 98.19304377 | O12: 99.75562943 | P12: 97.69413328 | Q12: 99.231693 | R12: 10.72825584 | S12: 10.75076284 | T12: 13.215649 | U12: 17.17673568 | V12: 15.57278875 | W12: 4 Central Region | X12: 1 Malé | Y12: 3 North Central | Z12: 2 North Region | AA12: 5 South Central | AB12: 6 South Region | AC12: 9.547012282 | AD12: 98.40786121 | AE12: 19.32364705 | AF12: 10.41082927 | AG12: 11.65244663 | AH12: 14.79454247
A13: MDV | B13: 2017 | C13: MDV_2017_DHS | D13: 32 | E13: Piped water on premises | F13: No | H13: 70.49036396 | I13: 61.197478 | J13: 50.76054695 | K13: 42.88266687 | L13: 31.77868957 | M13: 2.806831299 | N13: 1.806956228 | O13: 0.2443705723 | P13: 2.305866723 | Q13: 0.7683070019 | R13: 89.27174416 | S13: 89.24923716 | T13: 86.784351 | U13: 82.82326432 | V13: 84.42721125 | W13: 4 Central Region | X13: 1 Malé | Y13: 3 North Central | Z13: 2 North Region | AA13: 5 South Central | AB13: 6 South Region | AC13: 90.45298772 | AD13: 1.592138792 | AE13: 80.67635295 | AF13: 89.58917073 | AG13: 88.34755337 | AH13: 85.20545753
A14: MDV | B14: 2017 | C14: MDV_2017_DHS | D14: 35 | E14: Water source on premises | F14: 1 Yes | H14: 93.57333717 | I14: 97.23507124 | J14: 98.42289095 | K14: 99.00228879 | L14: 99.49177602 | M14: 100 | N14: 100 | O14: 100 | P14: 99.50252248 | Q14: 100 | R14: 90.91627527 | S14: 95.99572978 | T14: 96.29089933 | U14: 97.82924776 | V14: 98.40331896 | W14: 4 Central Region | X14: 1 Malé | Y14: 3 North Central | Z14: 2 North Region | AA14: 5 South Central | AB14: 6 South Region | AC14: 92.37893859 | AD14: 99.89962764 | AE14: 96.65073666 | AF14: 97.56416165 | AG14: 96.06899767 | AH14: 95.33774443
A15: MDV | B15: 2017 | C15: MDV_2017_DHS | D15: 36 | E15: Water source on premises | F15: 2 No | H15: 6.426662825 | I15: 2.764928761 | J15: 1.577109045 | K15: 0.9977112088 | L15: 0.5082239828 | M15: 0 | N15: 0 | O15: 0 | P15: 0.4974775184 | Q15: 0 | R15: 9.083724734 | S15: 4.00427022 | T15: 3.709100672 | U15: 2.170752239 | V15: 1.596681044 | W15: 4 Central Region | X15: 1 Malé | Y15: 3 North Central | Z15: 2 North Region | AA15: 5 South Central | AB15: 6 South Region | AC15: 7.621061405 | AD15: 0.1003723622 | AE15: 3.349263342 | AF15: 2.435838352 | AG15: 3.931002332 | AH15: 4.662255571
A16: MDV | B16: 2017 | C16: MDV_2017_DHS | D16: 37 | E16: Improved Water source on premises | F16: 1 Yes | G16: w_premises | H16: 94.07596709 | I16: 97.39812836 | J16: 98.42289095 | K16: 99.04116709 | L16: 99.49016193 | M16: 100 | N16: 100 | O16: 100 | P16: 99.50252248 | Q16: 100 | R16: 91.53272887 | S16: 96.27783776 | T16: 96.56568898 | U16: 97.82924776 | V16: 98.46904065 | W16: 4 Central Region | X16: 1 Malé | Y16: 3 North Central | Z16: 2 North Region | AA16: 5 South Central | AB16: 6 South Region | AC16: 92.37893859 | AD16: 99.89921773 | AE16: 96.77357011 | AF16: 97.56416165 | AG16: 96.58209651 | AH16: 95.83593717
A17: MDV | B17: 2017 | C17: MDV_2017_DHS | D17: 38 | E17: Improved Water source on premises | F17: 2 No | H17: 5.92403291 | I17: 2.601871637 | J17: 1.577109045 | K17: 0.9588329054 | L17: 0.5098380742 | M17: 0 | N17: 0 | O17: 0 | P17: 0.4974775184 | Q17: 0 | R17: 8.467271129 | S17: 3.722162239 | T17: 3.434311022 | U17: 2.170752239 | V17: 1.53095935 | W17: 4 Central Region | X17: 1 Malé | Y17: 3 North Central | Z17: 2 North Region | AA17: 5 South Central | AB17: 6 South Region | AC17: 7.621061405 | AD17: 0.1007822705 | AE17: 3.226429887 | AF17: 2.435838352 | AG17: 3.417903489 | AH17: 4.164062834
A18: MDV | B18: 2017 | C18: MDV_2017_DHS | D18: 41 | E18: Water point at more than 30 minutes | F18: 1 Yes | H18: 0.1869636223 | I18: 0.1153765867 | J18: 0 | K18: 0.05931067831 | L18: 0 | M18: 0 | N18: 0 | O18: 0 | P18: 0 | Q18: 0 | R18: 0.3184925493 | S18: 0.1516708862 | T18: 0.04504817265 | U18: 0.1012288025 | V18: 0 | W18: 4 Central Region | X18: 1 Malé | Y18: 3 North Central | Z18: 2 North Region | AA18: 5 South Central | AB18: 6 South Region | AC18: 1.011688746 | AD18: 0 | AE18: 0 | AF18: 0 | AG18: 0 | AH18: 0
A19: MDV | B19: 2017 | C19: MDV_2017_DHS | D19: 42 | E19: Water point at more than 30 minutes | F19: 2 No | G19: w_30min | H19: 99.81303638 | I19: 99.88462341 | J19: 100 | K19: 99.94068932 | L19: 100 | M19: 100 | N19: 100 | O19: 100 | P19: 100 | Q19: 100 | R19: 99.68150745 | S19: 99.84832911 | T19: 99.95495183 | U19: 99.8987712 | V19: 100 | W19: 4 Central Region | X19: 1 Malé | Y19: 3 North Central | Z19: 2 North Region | AA19: 5 South Central | AB19: 6 South Region | AC19: 98.98831125 | AD19: 100 | AE19: 100 | AF19: 100 | AG19: 100 | AH19: 100
A20: MDV | B20: 2017 | C20: MDV_2017_DHS | D20: 43 | E20: Water source available when needed | F20: 1 Yes | G20: w_available | H20: 81.58445154 | I20: 85.85191339 | J20: 85.69782171 | K20: 83.85227527 | L20: 76.67619717 | M20: 80.18660216 | N20: 87.2762874 | O20: 84.96094869 | P20: 73.92482848 | Q20: 78.07792236 | R20: 90.01663761 | S20: 94.32297923 | T20: 86.54552322 | U20: 87.57172301 | V20: 89.23576665 | W20: 4 Central Region | X20: 1 Malé | Y20: 3 North Central | Z20: 2 North Region | AA20: 5 South Central | AB20: 6 South Region | AC20: 93.35561191 | AD20: 80.88216647 | AE20: 96.53534556 | AF20: 92.50601816 | AG20: 73.07629322 | AH20: 88.57879821
A21: MDV | B21: 2017 | C21: MDV_2017_DHS | D21: 44 | E21: Water source available when needed | F21: 2 No | H21: 18.41554846 | I21: 14.14808661 | J21: 14.30217829 | K21: 16.14772473 | L21: 23.32380283 | M21: 19.81339784 | N21: 12.7237126 | O21: 15.03905131 | P21: 26.07517152 | Q21: 21.92207764 | R21: 9.983362386 | S21: 5.677020766 | T21: 13.45447678 | U21: 12.42827699 | V21: 10.76423335 | W21: 4 Central Region | X21: 1 Malé | Y21: 3 North Central | Z21: 2 North Region | AA21: 5 South Central | AB21: 6 South Region | AC21: 6.644388095 | AD21: 19.11783353 | AE21: 3.464654438 | AF21: 7.493981836 | AG21: 26.92370678 | AH21: 11.42120179
A22: MDV | B22: 2017 | C22: MDV_2017_DHS | D22: 45 | E22: Improved water source available when needed | F22: 1 Yes | H22: 81.58445154 | I22: 85.85191339 | J22: 85.69782171 | K22: 83.85227527 | L22: 76.67619717 | M22: 80.18660216 | N22: 87.2762874 | O22: 84.96094869 | P22: 73.92482848 | Q22: 78.07792236 | R22: 90.01663761 | S22: 94.32297923 | T22: 86.54552322 | U22: 87.57172301 | V22: 89.23576665 | W22: 4 Central Region | X22: 1 Malé | Y22: 3 North Central | Z22: 2 North Region | AA22: 5 South Central | AB22: 6 South Region | AC22: 93.35561191 | AD22: 80.88216647 | AE22: 96.53534556 | AF22: 92.50601816 | AG22: 73.07629322 | AH22: 88.57879821
A23: MDV | B23: 2017 | C23: MDV_2017_DHS | D23: 46 | E23: Improved water source available when needed | F23: 2 No | H23: 18.41554846 | I23: 14.14808661 | J23: 14.30217829 | K23: 16.14772473 | L23: 23.32380283 | M23: 19.81339784 | N23: 12.7237126 | O23: 15.03905131 | P23: 26.07517152 | Q23: 21.92207764 | R23: 9.983362386 | S23: 5.677020766 | T23: 13.45447678 | U23: 12.42827699 | V23: 10.76423335 | W23: 4 Central Region | X23: 1 Malé | Y23: 3 North Central | Z23: 2 North Region | AA23: 5 South Central | AB23: 6 South Region | AC23: 6.644388095 | AD23: 19.11783353 | AE23: 3.464654438 | AF23: 7.493981836 | AG23: 26.92370678 | AH23: 11.42120179
A24: MDV | B24: 2017 | C24: MDV_2017_DHS | D24: 58 | E24: Source of drinking water | F24: 11 Piped into dwelling | H24: 13.36953163 | I24: 14.56975713 | J24: 13.76378073 | K24: 17.87855089 | L24: 19.24366363 | M24: 35.17562077 | N24: 20.89162801 | O24: 30.51477987 | P24: 26.66413256 | Q24: 22.14028308 | R24: 6.908887659 | S24: 7.27254803 | T24: 7.833652278 | U24: 9.048977747 | V24: 7.990572063 | W24: 4 Central Region | X24: 1 Malé | Y24: 3 North Central | Z24: 2 North Region | AA24: 5 South Central | AB24: 6 South Region | AC24: 7.200640159 | AD24: 27.06053905 | AE24: 16.6511036 | AF24: 3.19029204 | AG24: 5.318172495 | AH24: 6.853341451
A25: MDV | B25: 2017 | C25: MDV_2017_DHS | D25: 59 | E25: Source of drinking water | F25: 12 Piped to yard/plot | H25: 2.384821976 | I25: 1.803581737 | J25: 2.931662753 | K25: 2.224725388 | L25: 1.976603778 | M25: 0 | N25: 0 | O25: 0 | P25: 0 | Q25: 0 | R25: 2.847618425 | S25: 2.50700624 | T25: 3.936131056 | U25: 5.72614989 | V25: 4.279033009 | W25: 4 Central Region | X25: 1 Malé | Y25: 3 North Central | Z25: 2 North Region | AA25: 5 South Central | AB25: 6 South Region | AC25: 0 | AD25: 0 | AE25: 0.5395346442 | AF25: 6.005791555 | AG25: 4.892001765 | AH25: 5.794289922
A26: MDV | B26: 2017 | C26: MDV_2017_DHS | D26: 60 | E26: Source of drinking water | F26: 14 Public tap/standpipe | H26: 0.1849765108 | I26: 0.02421902615 | J26: 0 | K26: 0.1979071864 | L26: 0 | M26: 0 | N26: 0 | O26: 0 | P26: 0 | Q26: 0 | R26: 0.1641628417 | S26: 0.1510231942 | T26: 0.04129647369 | U26: 0.3377790992 | V26: 0 | W26: 4 Central Region | X26: 1 Malé | Y26: 3 North Central | Z26: 2 North Region | AA26: 5 South Central | AB26: 6 South Region | AC26: 0 | AD26: 0 | AE26: 0.04884973136 | AF26: 0.1002230503 | AG26: 0.1905766395 | AH26: 0.2741198656
A27: MDV | B27: 2017 | C27: MDV_2017_DHS | D27: 61 | E27: Source of drinking water | F27: 31 Protected well | H27: 0.4046780214 | I27: 0.7220434003 | J27: 0.1487811534 | K27: 0.2992458505 | L27: 0.805740926 | M27: 0 | N27: 0 | O27: 0 | P27: 0 | Q27: 0 | R27: 0.6893690501 | S27: 0.2698618536 | T27: 1.000017938 | U27: 0.3640140384 | V27: 1.731049447 | W27: 4 Central Region | X27: 1 Malé | Y27: 3 North Central | Z27: 2 North Region | AA27: 5 South Central | AB27: 6 South Region | AC27: 0.1270974287 | AD27: 0 | AE27: 0 | AF27: 1.296424556 | AG27: 0.4085371642 | AH27: 1.739869744
A28: MDV | B28: 2017 | C28: MDV_2017_DHS | D28: 62 | E28: Source of drinking water | F28: 32 Unprotected well | H28: 0 | I28: 0.05948490174 | J28: 0 | K28: 0 | L28: 0 | M28: 0 | N28: 0 | O28: 0 | P28: 0 | Q28: 0 | R28: 0 | S28: 0 | T28: 0.1014292096 | U28: 0 | V28: 0 | W28: 4 Central Region | X28: 1 Malé | Y28: 3 North Central | Z28: 2 North Region | AA28: 5 South Central | AB28: 6 South Region | AC28: 0 | AD28: 0 | AE28: 0 | AF28: 0 | AG28: 0.09854307891 | AH28: 0
A29: MDV | B29: 2017 | C29: MDV_2017_DHS | D29: 63 | E29: Source of drinking water | F29: 51 Rainwater (tank in compoud) | H29: 62.73726712 | I29: 54.02449492 | J29: 45.2193513 | K29: 36.72413181 | L29: 25.84160684 | M29: 0 | N29: 0 | O29: 0 | P29: 1.808389205 | Q29: 0 | R29: 81.41865912 | S29: 80.04375888 | T29: 77.77502026 | U29: 72.37563709 | V29: 69.78010082 | W29: 4 Central Region | X29: 1 Malé | Y29: 3 North Central | Z29: 2 North Region | AA29: 5 South Central | AB29: 6 South Region | AC29: 81.89528438 | AD29: 0.3648653246 | AE29: 72.69868991 | AF29: 83.56732912 | AG29: 80.20041719 | AH29: 66.74490907
A30: MDV | B30: 2017 | C30: MDV_2017_DHS | D30: 64 | E30: Source of drinking water | F30: 52 Rainwater (public or community tank) | H30: 1.158867033 | I30: 0.6068953347 | J30: 0.2860068888 | K30: 0.2287572146 | L30: 0.276018126 | M30: 0 | N30: 0 | O30: 0 | P30: 0 | Q30: 0 | R30: 1.285630814 | S30: 1.388408199 | T30: 0.4094009714 | U30: 0.7010251389 | V30: 0.5724440583 | W30: 4 Central Region | X30: 1 Malé | Y30: 3 North Central | Z30: 2 North Region | AA30: 5 South Central | AB30: 6 South Region | AC30: 2.188506537 | AD30: 0 | AE30: 0.6564720534 | AF30: 0.2522733849 | AG30: 0.9663284673 | AH30: 0.8715203696
A31: MDV | B31: 2017 | C31: MDV_2017_DHS | D31: 65 | E31: Source of drinking water | F31: 71 Bottled water | H31: 18.66874266 | I31: 28.02052148 | J31: 37.65041717 | K31: 42.40742696 | L31: 51.53977767 | M31: 63.55711234 | N31: 79.10837199 | O31: 69.48522013 | P31: 71.52747824 | Q31: 77.09140992 | R31: 6.012193202 | S31: 8.07437915 | T31: 8.614882123 | U31: 11.446417 | V31: 15.58005709 | W31: 4 Central Region | X31: 1 Malé | Y31: 3 North Central | Z31: 2 North Region | AA31: 5 South Central | AB31: 6 South Region | AC31: 8.588471497 | AD31: 72.16786903 | AE31: 9.278421347 | AF31: 5.587666291 | AG31: 7.390679221 | AH31: 17.20211041
A32: MDV | B32: 2017 | C32: MDV_2017_DHS | D32: 66 | E32: Source of drinking water | F32: 96 Other | H32: 1.091115047 | I32: 0.1690020617 | J32: 0 | K32: 0.03925469021 | L32: 0.3165890322 | M32: 1.267266892 | N32: 0 | O32: 0 | P32: 0 | Q32: 0.7683070019 | R32: 0.6734788884 | S32: 0.2930144537 | T32: 0.2881696873 | U32: 0 | V32: 0.06674350947 | W32: 4 Central Region | X32: 1 Malé | Y32: 3 North Central | Z32: 2 North Region | AA32: 5 South Central | AB32: 6 South Region | AC32: 0 | AD32: 0.4067265979 | AE32: 0.126928721 | AF32: 0 | AG32: 0.5347439839 | AH32: 0.5198391664
A33: MDV | B33: 2017 | C33: MDV_2017_DHS | D33: 122 | E33: Sanitation | F33: 1 Improved | G33: s_imp | H33: 98.33916366 | I33: 98.85502498 | J33: 99.37866515 | K33: 99.48076081 | L33: 99.23962707 | M33: 100 | N33: 100 | O33: 100 | P33: 99.00912274 | Q33: 100 | R33: 97.55452794 | S33: 98.56759229 | T33: 98.30902145 | U33: 99.09591586 | V33: 99.15531405 | W33: 4 Central Region | X33: 1 Malé | Y33: 3 North Central | Z33: 2 North Region | AA33: 5 South Central | AB33: 6 South Region | AC33: 92.6765474 | AD33: 99.80007802 | AE33: 98.68973373 | AF33: 99.60658802 | AG33: 99.25806694 | AH33: 99.7535629 | AI33: 6539.558654 | AJ33: 6576.172514 | AK33: 6611.086728 | AL33: 6617.151051 | AM33: 6603.671166 | AN33: 2748.896559 | AO33: 2769.165862 | AP33: 2711.3502 | AQ33: 2745.648042 | AR33: 2741.961735 | AS33: 3808.265314 | AT33: 3845.811769 | AU33: 3835.407632 | AV33: 3862.037601 | AW33: 3879.095399 | AX33: 2203.439334 | AY33: 13717.0224 | AZ33: 3995.816763 | BA33: 4255.005892 | BB33: 3985.849365 | BC33: 4790.506361
A34: MDV | B34: 2017 | C34: MDV_2017_DHS | D34: 123 | E34: Sanitation | F34: 2 Not Improved | H34: 1.660836344 | I34: 1.144975021 | J34: 0.6213348477 | K34: 0.519239186 | L34: 0.7603729335 | M34: 0 | N34: 0 | O34: 0 | P34: 0.9908772565 | Q34: 0 | R34: 2.445472061 | S34: 1.432407712 | T34: 1.69097855 | U34: 0.9040841389 | V34: 0.8446859537 | W34: 4 Central Region | X34: 1 Malé | Y34: 3 North Central | Z34: 2 North Region | AA34: 5 South Central | AB34: 6 South Region | AC34: 7.323452604 | AD34: 0.1999219808 | AE34: 1.310266272 | AF34: 0.3934119792 | AG34: 0.7419330574 | AH34: 0.2464370965 | AI34: 110.445689 | AJ34: 76.167633 | AK34: 41.333807 | AL34: 34.538177 | AM34: 50.597256 | AN34: 0 | AO34: 0 | AP34: 0 | AQ34: 27.478278 | AR34: 0 | AS34: 95.464625 | AT34: 55.888252 | AU34: 65.971484 | AV34: 35.23462 | AW34: 33.045303 | AX34: 174.119386 | AY34: 27.478278 | AZ34: 53.050948 | BA34: 16.805819 | BB34: 29.793381 | BC34: 11.83475
A35: MDV | B35: 2017 | C35: MDV_2017_DHS | D35: 124 | E35: Sanitation ladder | F35: 1 Basic | G35: s_bas | H35: 97.35652069 | I35: 98.19188849 | J35: 98.65196584 | K35: 99.04142927 | L35: 98.92874911 | M35: 98.30621418 | N35: 98.99781077 | O35: 100 | P35: 99.00912274 | Q35: 99.42170437 | R35: 96.98768832 | S35: 97.77798499 | T35: 97.97840249 | U35: 98.06489204 | V35: 98.86067319 | W35: 4 Central Region | X35: 1 Malé | Y35: 3 North Central | Z35: 2 North Region | AA35: 5 South Central | AB35: 6 South Region | AC35: 92.13764676 | AD35: 99.14403857 | AE35: 98.07136601 | AF35: 99.09920349 | AG35: 98.72684787 | AH35: 98.98961628 | AI35: 6474.212854 | AJ35: 6532.058419 | AK35: 6562.743634 | AL35: 6587.928082 | AM35: 6582.984512 | AN35: 2702.336139 | AO35: 2741.41358 | AP35: 2711.3502 | AQ35: 2745.648042 | AR35: 2726.10509 | AS35: 3786.137426 | AT35: 3815.003661 | AU35: 3822.508933 | AV35: 3821.855796 | AW35: 3867.568634 | AX35: 2190.626655 | AY35: 13626.85305 | AZ35: 3970.779872 | BA35: 4233.33138 | BB35: 3964.517505 | BC35: 4753.819038
A36: MDV | B36: 2017 | C36: MDV_2017_DHS | D36: 125 | E36: Sanitation ladder | F36: 2 Limited | G36: s_lim | H36: 0.9826429673 | I36: 0.6631364907 | J36: 0.7266993081 | K36: 0.4393315442 | L36: 0.3108779612 | M36: 1.693785816 | N36: 1.002189229 | O36: 0 | P36: 0 | Q36: 0.578295634 | R36: 0.5668396212 | S36: 0.7896072951 | T36: 0.3306189585 | U36: 1.031023822 | V36: 0.2946408598 | W36: 4 Central Region | X36: 1 Malé | Y36: 3 North Central | Z36: 2 North Region | AA36: 5 South Central | AB36: 6 South Region | AC36: 0.5389006333 | AD36: 0.6560394526 | AE36: 0.6183677212 | AF36: 0.5073845353 | AG36: 0.5312190688 | AH36: 0.7639466284 | AI36: 65.3458 | AJ36: 44.114095 | AK36: 48.343094 | AL36: 29.222969 | AM36: 20.686654 | AN36: 46.56042 | AO36: 27.752282 | AP36: 0 | AQ36: 0 | AR36: 15.856645 | AS36: 22.127888 | AT36: 30.808108 | AU36: 12.898699 | AV36: 40.181805 | AW36: 11.526765 | AX36: 12.812679 | AY36: 90.169347 | AZ36: 25.036891 | BA36: 21.674512 | BB36: 21.33186 | BC36: 36.687323
A37: MDV | B37: 2017 | C37: MDV_2017_DHS | D37: 126 | E37: Sanitation ladder | F37: 3 Other unimproved | G37: s_unimp | H37: 1.226862853 | I37: 1.144975021 | J37: 0.6213348477 | K37: 0.519239186 | L37: 0.7603729335 | M37: 0 | N37: 0 | O37: 0 | P37: 0.9908772565 | Q37: 0 | R37: 1.706198176 | S37: 1.432407712 | T37: 1.69097855 | U37: 0.9040841389 | V37: 0.8446859537 | W37: 4 Central Region | X37: 1 Malé | Y37: 3 North Central | Z37: 2 North Region | AA37: 5 South Central | AB37: 6 South Region | AC37: 7.323452604 | AD37: 0.1999219808 | AE37: 1.129722117 | AF37: 0.15858831 | AG37: 0.6189817066 | AH37: 0.1094049731 | AI37: 81.586433 | AJ37: 76.167633 | AK37: 41.333807 | AL37: 34.538177 | AM37: 50.597256 | AN37: 0 | AO37: 0 | AP37: 0 | AQ37: 27.478278 | AR37: 0 | AS37: 66.605369 | AT37: 55.888252 | AU37: 65.971484 | AV37: 35.23462 | AW37: 33.045303 | AX37: 174.119386 | AY37: 27.478278 | AZ37: 45.740954 | BA37: 6.774594 | BB37: 24.856094 | BC37: 5.254
A38: MDV | B38: 2017 | C38: MDV_2017_DHS | D38: 127 | E38: Sanitation ladder | F38: 4 Open defecation | G38: s_od | H38: 0.433973491 | I38: 0 | J38: 0 | K38: 0 | L38: 0 | M38: 0 | N38: 0 | O38: 0 | P38: 0 | Q38: 0 | R38: 0.7392738855 | S38: 0 | T38: 0 | U38: 0 | V38: 0 | W38: 4 Central Region | X38: 1 Malé | Y38: 3 North Central | Z38: 2 North Region | AA38: 5 South Central | AB38: 6 South Region | AC38: 0 | AD38: 0 | AE38: 0.1805441551 | AF38: 0.2348236692 | AG38: 0.1229513508 | AH38: 0.1370321235 | AI38: 28.859256 | AJ38: 0 | AK38: 0 | AL38: 0 | AM38: 0 | AN38: 0 | AO38: 0 | AP38: 0 | AQ38: 0 | AR38: 0 | AS38: 28.859256 | AT38: 0 | AU38: 0 | AV38: 0 | AW38: 0 | AX38: 0 | AY38: 0 | AZ38: 7.309994 | BA38: 10.031225 | BB38: 4.937287 | BC38: 6.58075
A39: MDV | B39: 2017 | C39: MDV_2017_DHS | D39: 128 | E39: Shared among Improved Sanitation | F39: 1 Yes | G39: s_shared | H39: 0.9992386865 | I39: 0.6708171798 | J39: 0.7312427743 | K39: 0.4416246323 | L39: 0.3132599047 | M39: 1.693785816 | N39: 1.002189229 | O39: 0 | P39: 0 | Q39: 0.578295634 | R39: 0.5810490125 | S39: 0.8010820563 | T39: 0.3363058177 | U39: 1.040430186 | V39: 0.2971508513 | W39: 4 Central Region | X39: 1 Malé | Y39: 3 North Central | Z39: 2 North Region | AA39: 5 South Central | AB39: 6 South Region | AC39: 0.5814854442 | AD39: 0.6573536471 | AE39: 0.6265775556 | AF39: 0.5093885308 | AG39: 0.5351898189 | AH39: 0.7658339273
A40: MDV | B40: 2017 | C40: MDV_2017_DHS | D40: 129 | E40: Shared among Improved Sanitation | F40: 2 No | H40: 99.00076131 | I40: 99.32918282 | J40: 99.26875723 | K40: 99.55837537 | L40: 99.6867401 | M40: 98.30621418 | N40: 98.99781077 | O40: 100 | P40: 100 | Q40: 99.42170437 | R40: 99.41895099 | S40: 99.19891794 | T40: 99.66369418 | U40: 98.95956981 | V40: 99.70284915 | W40: 4 Central Region | X40: 1 Malé | Y40: 3 North Central | Z40: 2 North Region | AA40: 5 South Central | AB40: 6 South Region | AC40: 99.41851456 | AD40: 99.34264635 | AE40: 99.37342244 | AF40: 99.49061147 | AG40: 99.46481018 | AH40: 99.23416607
A41: MDV | B41: 2017 | C41: MDV_2017_DHS | D41: 135 | E41: Sanitation type | F41: 1 Sewer connection | G41: s_sew | H41: 46.79653411 | I41: 57.18148728 | J41: 63.88065154 | K41: 69.9846656 | L41: 77.71926568 | M41: 99.40981111 | N41: 99.66268145 | O41: 95.33766966 | P41: 97.24264836 | Q41: 99.42170437 | R41: 30.85624146 | S41: 36.73641226 | T41: 36.60426138 | U41: 43.14046586 | V41: 44.60052649 | W41: 4 Central Region | X41: 1 Malé | Y41: 3 North Central | Z41: 2 North Region | AA41: 5 South Central | AB41: 6 South Region | AC41: 59.65746638 | AD41: 98.22257505 | AE41: 32.54763201 | AF41: 44.44170419 | AG41: 51.6243121 | AH41: 16.33330388
A42: MDV | B42: 2017 | C42: MDV_2017_DHS | D42: 136 | E42: Sanitation type | F42: 2 Septic tank connection | G42: s_sep | H42: 50.612464 | I42: 40.71858844 | J42: 34.97155853 | K42: 27.27491453 | L42: 20.60929295 | M42: 0 | N42: 0 | O42: 0 | P42: 0 | Q42: 0 | R42: 65.35931616 | S42: 61.16197658 | T42: 61.07310636 | U42: 54.77072509 | V42: 54.48422926 | W42: 4 Central Region | X42: 1 Malé | Y42: 3 North Central | Z42: 2 North Region | AA42: 5 South Central | AB42: 6 South Region | AC42: 29.53356551 | AD42: 0 | AE42: 65.85850483 | AF42: 54.76193396 | AG42: 47.3490085 | AH42: 82.81731768
A43: MDV | B43: 2017 | C43: MDV_2017_DHS | D43: 137 | E43: Sanitation type | F43: 3 Improved latrines | G43: s_lat | H43: 0.9301655429 | I43: 0.9549492599 | J43: 0.5264550823 | K43: 2.22118068 | L43: 0.9110684324 | M43: 0.5901888868 | N43: 0.3373185452 | O43: 4.66233034 | P43: 1.766474381 | Q43: 0.578295634 | R43: 1.338970313 | S43: 0.6692034462 | T43: 0.6316537119 | U43: 1.184724915 | V43: 0.07055830069 | W43: 4 Central Region | X43: 1 Malé | Y43: 3 North Central | Z43: 2 North Region | AA43: 5 South Central | AB43: 6 South Region | AC43: 3.485515512 | AD43: 1.577502967 | AE43: 0.2835968923 | AF43: 0.4029498762 | AG43: 0.2847463463 | AH43: 0.6029413432
A44: MDV | B44: 2017 | C44: MDV_2017_DHS | D44: 138 | E44: Sanitation type | F44: 4 Unimproved facilities | H44: 1.226862853 | I44: 1.144975021 | J44: 0.6213348477 | K44: 0.519239186 | L44: 0.7603729335 | M44: 0 | N44: 0 | O44: 0 | P44: 0.9908772565 | Q44: 0 | R44: 1.706198176 | S44: 1.432407712 | T44: 1.69097855 | U44: 0.9040841389 | V44: 0.8446859537 | W44: 4 Central Region | X44: 1 Malé | Y44: 3 North Central | Z44: 2 North Region | AA44: 5 South Central | AB44: 6 South Region | AC44: 7.323452604 | AD44: 0.1999219808 | AE44: 1.129722117 | AF44: 0.15858831 | AG44: 0.6189817066 | AH44: 0.1094049731
A45: MDV | B45: 2017 | C45: MDV_2017_DHS | D45: 139 | E45: Sanitation type | F45: 5 Open defecation | H45: 0.433973491 | I45: 0 | J45: 0 | K45: 0 | L45: 0 | M45: 0 | N45: 0 | O45: 0 | P45: 0 | Q45: 0 | R45: 0.7392738855 | S45: 0 | T45: 0 | U45: 0 | V45: 0 | W45: 4 Central Region | X45: 1 Malé | Y45: 3 North Central | Z45: 2 North Region | AA45: 5 South Central | AB45: 6 South Region | AC45: 0 | AD45: 0 | AE45: 0.1805441551 | AF45: 0.2348236692 | AG45: 0.1229513508 | AH45: 0.1370321235
A46: MDV | B46: 2017 | C46: MDV_2017_DHS | D46: 148 | E46: Shared among improved sanitation facilities | F46: Yes | H46: 0.9826429673 | I46: 0.6631364907 | J46: 0.7266993081 | K46: 0.4393315442 | L46: 0.3108779612 | M46: 1.693785816 | N46: 1.002189229 | O46: 0 | P46: 0 | Q46: 0.578295634 | R46: 0.5668396212 | S46: 0.7896072951 | T46: 0.3306189585 | U46: 1.031023822 | V46: 0.2946408598 | W46: 4 Central Region | X46: 1 Malé | Y46: 3 North Central | Z46: 2 North Region | AA46: 5 South Central | AB46: 6 South Region | AC46: 0.5389006333 | AD46: 0.6560394526 | AE46: 0.6183677212 | AF46: 0.5073845353 | AG46: 0.5312190688 | AH46: 0.7639466284
A47: MDV | B47: 2017 | C47: MDV_2017_DHS | D47: 149 | E47: Shared among improved sanitation facilities | F47: No | H47: 97.35652069 | I47: 98.19188849 | J47: 98.65196584 | K47: 99.04142927 | L47: 98.92874911 | M47: 98.30621418 | N47: 98.99781077 | O47: 100 | P47: 99.00912274 | Q47: 99.42170437 | R47: 96.98768832 | S47: 97.77798499 | T47: 97.97840249 | U47: 98.06489204 | V47: 98.86067319 | W47: 4 Central Region | X47: 1 Malé | Y47: 3 North Central | Z47: 2 North Region | AA47: 5 South Central | AB47: 6 South Region | AC47: 92.13764676 | AD47: 99.14403857 | AE47: 98.07136601 | AF47: 99.09920349 | AG47: 98.72684787 | AH47: 98.98961628
A48: MDV | B48: 2017 | C48: MDV_2017_DHS | D48: 150 | E48: Shared among improved sanitation facilities | F48: DK/missing | H48: 1.660836344 | I48: 1.144975021 | J48: 0.6213348477 | K48: 0.519239186 | L48: 0.7603729335 | M48: 0 | N48: 0 | O48: 0 | P48: 0.9908772565 | Q48: 0 | R48: 2.445472061 | S48: 1.432407712 | T48: 1.69097855 | U48: 0.9040841389 | V48: 0.8446859537 | W48: 4 Central Region | X48: 1 Malé | Y48: 3 North Central | Z48: 2 North Region | AA48: 5 South Central | AB48: 6 South Region | AC48: 7.323452604 | AD48: 0.1999219808 | AE48: 1.310266272 | AF48: 0.3934119792 | AG48: 0.7419330574 | AH48: 0.2464370965
A49: MDV | B49: 2017 | C49: MDV_2017_DHS | D49: 151 | E49: Shared among all sanitation facilities | F49: Yes | H49: 0.9869259643 | I49: 0.6631364907 | J49: 0.7266993081 | K49: 0.4393315442 | L49: 0.3108779612 | M49: 1.693785816 | N49: 1.002189229 | O49: 0 | P49: 0 | Q49: 0.578295634 | R49: 0.5710613285 | S49: 0.7896072951 | T49: 0.3306189585 | U49: 1.031023822 | V49: 0.2946408598 | W49: 4 Central Region | X49: 1 Malé | Y49: 3 North Central | Z49: 2 North Region | AA49: 5 South Central | AB49: 6 South Region | AC49: 0.5389006333 | AD49: 0.6560394526 | AE49: 0.6194861673 | AF49: 0.5085787987 | AG49: 0.5318730138 | AH49: 0.7649949171
A50: MDV | B50: 2017 | C50: MDV_2017_DHS | D50: 152 | E50: Shared among all sanitation facilities | F50: No | H50: 99.01307404 | I50: 99.33686351 | J50: 99.27330069 | K50: 99.56066846 | L50: 99.68912204 | M50: 98.30621418 | N50: 98.99781077 | O50: 100 | P50: 100 | Q50: 99.42170437 | R50: 99.42893867 | S50: 99.2103927 | T50: 99.66938104 | U50: 98.96897618 | V50: 99.70535914 | W50: 4 Central Region | X50: 1 Malé | Y50: 3 North Central | Z50: 2 North Region | AA50: 5 South Central | AB50: 6 South Region | AC50: 99.46109937 | AD50: 99.34396055 | AE50: 99.38051383 | AF50: 99.4914212 | AG50: 99.46812699 | AH50: 99.23500508
A51: MDV | B51: 2017 | C51: MDV_2017_DHS | D51: 153 | E51: Type of toilet facility | F51: 11 Flush to piped sewer system | H51: 46.79653411 | I51: 57.18148728 | J51: 63.88065154 | K51: 69.9846656 | L51: 77.71926568 | M51: 99.40981111 | N51: 99.66268145 | O51: 95.33766966 | P51: 97.24264836 | Q51: 99.42170437 | R51: 30.85624146 | S51: 36.73641226 | T51: 36.60426138 | U51: 43.14046586 | V51: 44.60052649 | W51: 4 Central Region | X51: 1 Malé | Y51: 3 North Central | Z51: 2 North Region | AA51: 5 South Central | AB51: 6 South Region | AC51: 59.65746638 | AD51: 98.22257505 | AE51: 32.54763201 | AF51: 44.44170419 | AG51: 51.6243121 | AH51: 16.33330388 | AI51: 3111.971551 | AJ51: 3803.907035 | AK51: 4249.609581 | AL51: 4655.162463 | AM51: 5171.648554 | AN51: 2732.672877 | AO51: 2759.824952 | AP51: 2584.938097 | AQ51: 2696.661476 | AR51: 2726.10509 | AS51: 1204.544336 | AT51: 1433.344605 | AU51: 1428.071009 | AV51: 1681.301392 | AW51: 1744.83535 | AX51: 1418.391294 | AY51: 13500.20249 | AZ51: 1317.810563 | BA51: 1898.465924 | BB51: 2073.047944 | BC51: 784.380967
A52: MDV | B52: 2017 | C52: MDV_2017_DHS | D52: 154 | E52: Type of toilet facility | F52: 12 Flush to septic tank | H52: 50.612464 | I52: 40.71858844 | J52: 34.97155853 | K52: 27.27491453 | L52: 20.60929295 | M52: 0 | N52: 0 | O52: 0 | P52: 0 | Q52: 0 | R52: 65.35931616 | S52: 61.16197658 | T52: 61.07310636 | U52: 54.77072509 | V52: 54.48422926 | W52: 4 Central Region | X52: 1 Malé | Y52: 3 North Central | Z52: 2 North Region | AA52: 5 South Central | AB52: 6 South Region | AC52: 29.53356551 | AD52: 0 | AE52: 65.85850483 | AF52: 54.76193396 | AG52: 47.3490085 | AH52: 82.81731768 | AI52: 3365.731054 | AJ52: 2708.739006 | AK52: 2326.455141 | AL52: 1814.242552 | AM52: 1371.397673 | AN52: 0 | AO52: 0 | AP52: 0 | AQ52: 0 | AR52: 0 | AS52: 2551.451193 | AT52: 2386.356853 | AU52: 2382.693417 | AV52: 2134.564254 | AW52: 2131.499709 | AX52: 702.177862 | AY52: 0 | AZ52: 2666.523737 | BA52: 2339.326708 | BB52: 1901.367025 | BC52: 3977.170094
A53: MDV | B53: 2017 | C53: MDV_2017_DHS | D53: 155 | E53: Type of toilet facility | F53: 13 Flush to pit latrine | H53: 0.632775301 | I53: 0.7110699386 | J53: 0.379908499 | K53: 1.876981917 | L53: 0.9110684324 | M53: 0 | N53: 0.3373185452 | O53: 3.931474105 | P53: 1.766474381 | Q53: 0.578295634 | R53: 0.8323660066 | S53: 0.6692034462 | T53: 0.6316537119 | U53: 0.8555753386 | V53: 0.07055830069 | W53: 4 Central Region | X53: 1 Malé | Y53: 3 North Central | Z53: 2 North Region | AA53: 5 South Central | AB53: 6 South Region | AC53: 3.127259292 | AD53: 1.315290793 | AE53: 0.04281611857 | AF53: 0.3312392249 | AG53: 0.2006395616 | AH53: 0.4385027951 | AI53: 42.079585 | AJ53: 47.302791 | AK53: 25.273111 | AL53: 124.851004 | AM53: 60.624939 | AN53: 0 | AO53: 9.34091 | AP53: 106.596031 | AQ53: 48.986566 | AR53: 15.856645 | AS53: 32.493321 | AT53: 26.110311 | AU53: 24.643206 | AV53: 33.3441 | AW53: 2.76034 | AX53: 74.352426 | AY53: 180.780152 | AZ53: 1.733568 | BA53: 14.149916 | BB53: 8.056968 | BC53: 21.0584
A54: MDV | B54: 2017 | C54: MDV_2017_DHS | D54: 156 | E54: Type of toilet facility | F54: 14 Flush to somewhere else | H54: 0.9566409692 | I54: 1.05848215 | J54: 0.5194983212 | K54: 0.519239186 | L54: 0.3474307998 | M54: 0 | N54: 0 | O54: 0 | P54: 0 | Q54: 0 | R54: 1.24587517 | S54: 1.432407712 | T54: 1.369851235 | U54: 0.9040841389 | V54: 0.8446859537 | W54: 4 Central Region | X54: 1 Malé | Y54: 3 North Central | Z54: 2 North Region | AA54: 5 South Central | AB54: 6 South Region | AC54: 7.004215694 | AD54: 0 | AE54: 0.9464764654 | AF54: 0 | AG54: 0.5003033704 | AH54: 0.02718569901 | AI54: 63.616666 | AJ54: 70.413833 | AK54: 34.559213 | AL54: 34.538177 | AM54: 23.118978 | AN54: 0 | AO54: 0 | AP54: 0 | AQ54: 0 | AR54: 0 | AS54: 48.635602 | AT54: 55.888252 | AU54: 53.44309 | AV54: 35.23462 | AW54: 33.045303 | AX54: 166.529341 | AY54: 0 | AZ54: 38.32158 | BA54: 0 | BB54: 20.090396 | BC54: 1.30555
A55: MDV | B55: 2017 | C55: MDV_2017_DHS | D55: 157 | E55: Type of toilet facility | F55: 15 Flush, don't know where | H55: 0 | I55: 0.2438793213 | J55: 0 | K55: 0.3441987624 | L55: 0 | M55: 0.5901888868 | N55: 0 | O55: 0.7308562354 | P55: 0 | Q55: 0 | R55: 0 | S55: 0 | T55: 0 | U55: 0.07900294938 | V55: 0 | W55: 4 Central Region | X55: 1 Malé | Y55: 3 North Central | Z55: 2 North Region | AA55: 5 South Central | AB55: 6 South Region | AC55: 0.1295009025 | AD55: 0.2622121738 | AE55: 0 | AF55: 0 | AG55: 0 | AH55: 0 | AI55: 0 | AJ55: 16.223682 | AK55: 0 | AL55: 22.895032 | AM55: 0 | AN55: 16.223682 | AO55: 0 | AP55: 19.816072 | AQ55: 0 | AR55: 0 | AS55: 0 | AT55: 0 | AU55: 0 | AV55: 3.07896 | AW55: 0 | AX55: 3.07896 | AY55: 36.039754 | AZ55: 0 | BA55: 0 | BB55: 0 | BC55: 0
A56: MDV | B56: 2017 | C56: MDV_2017_DHS | D56: 158 | E56: Type of toilet facility | F56: 21 Ventilated Improved Pit latrine (VIP) | H56: 0.1278515857 | I56: 0 | J56: 0.1465465833 | K56: 0 | L56: 0 | M56: 0 | N56: 0 | O56: 0 | P56: 0 | Q56: 0 | R56: 0.217795189 | S56: 0 | T56: 0 | U56: 0.2501466269 | V56: 0 | W56: 4 Central Region | X56: 1 Malé | Y56: 3 North Central | Z56: 2 North Region | AA56: 5 South Central | AB56: 6 South Region | AC56: 0.2287553176 | AD56: 0 | AE56: 0.2407807737 | AF56: 0.07171065129 | AG56: 0 | AH56: 0 | AI56: 8.502136 | AJ56: 0 | AK56: 9.748895 | AL56: 0 | AM56: 0 | AN56: 0 | AO56: 0 | AP56: 0 | AQ56: 0 | AR56: 0 | AS56: 8.502136 | AT56: 0 | AU56: 0 | AV56: 9.748895 | AW56: 0 | AX56: 5.438792 | AY56: 0 | AZ56: 9.748895 | BA56: 3.063344 | BB56: 0 | BC56: 0
A57: MDV | B57: 2017 | C57: MDV_2017_DHS | D57: 159 | E57: Type of toilet facility | F57: 22 Pit latrine with slab | H57: 0.1695386562 | I57: 0 | J57: 0 | K57: 0 | L57: 0 | M57: 0 | N57: 0 | O57: 0 | P57: 0 | Q57: 0 | R57: 0.2888091178 | S57: 0 | T57: 0 | U57: 0 | V57: 0 | W57: 4 Central Region | X57: 1 Malé | Y57: 3 North Central | Z57: 2 North Region | AA57: 5 South Central | AB57: 6 South Region | AC57: 0 | AD57: 0 | AE57: 0 | AF57: 0 | AG57: 0.08410678473 | AH57: 0.1644385481 | AI57: 11.274328 | AJ57: 0 | AK57: 0 | AL57: 0 | AM57: 0 | AN57: 0 | AO57: 0 | AP57: 0 | AQ57: 0 | AR57: 0 | AS57: 11.274328 | AT57: 0 | AU57: 0 | AV57: 0 | AW57: 0 | AX57: 0 | AY57: 0 | AZ57: 0 | BA57: 0 | BB57: 3.377428 | BC57: 7.8969
A58: MDV | B58: 2017 | C58: MDV_2017_DHS | D58: 160 | E58: Type of toilet facility | F58: 23 Pit latrine without slab/open pit | H58: 0.10378706 | I58: 0 | J58: 0 | K58: 0 | L58: 0 | M58: 0 | N58: 0 | O58: 0 | P58: 0 | Q58: 0 | R58: 0.1768012672 | S58: 0 | T58: 0 | U58: 0 | V58: 0 | W58: 4 Central Region | X58: 1 Malé | Y58: 3 North Central | Z58: 2 North Region | AA58: 5 South Central | AB58: 6 South Region | AC58: 0.1762648369 | AD58: 0 | AE58: 0 | AF58: 0 | AG58: 0.06751208141 | AH58: 0 | AI58: 6.901844 | AJ58: 0 | AK58: 0 | AL58: 0 | AM58: 0 | AN58: 0 | AO58: 0 | AP58: 0 | AQ58: 0 | AR58: 0 | AS58: 6.901844 | AT58: 0 | AU58: 0 | AV58: 0 | AW58: 0 | AX58: 4.1908 | AY58: 0 | AZ58: 0 | BA58: 0 | BB58: 2.711044 | BC58: 0
A59: MDV | B59: 2017 | C59: MDV_2017_DHS | D59: 161 | E59: Type of toilet facility | F59: 31 No facility/bush/field | H59: 0.433973491 | I59: 0 | J59: 0 | K59: 0 | L59: 0 | M59: 0 | N59: 0 | O59: 0 | P59: 0 | Q59: 0 | R59: 0.7392738855 | S59: 0 | T59: 0 | U59: 0 | V59: 0 | W59: 4 Central Region | X59: 1 Malé | Y59: 3 North Central | Z59: 2 North Region | AA59: 5 South Central | AB59: 6 South Region | AC59: 0 | AD59: 0 | AE59: 0.1805441551 | AF59: 0.2348236692 | AG59: 0.1229513508 | AH59: 0.1370321235 | AI59: 28.859256 | AJ59: 0 | AK59: 0 | AL59: 0 | AM59: 0 | AN59: 0 | AO59: 0 | AP59: 0 | AQ59: 0 | AR59: 0 | AS59: 28.859256 | AT59: 0 | AU59: 0 | AV59: 0 | AW59: 0 | AX59: 0 | AY59: 0 | AZ59: 7.309994 | BA59: 10.031225 | BB59: 4.937287 | BC59: 6.58075
A60: MDV | B60: 2017 | C60: MDV_2017_DHS | D60: 162 | E60: Type of toilet facility | F60: 96 Other | H60: 0.1664348236 | I60: 0.08649287127 | J60: 0.1018365265 | K60: 0 | L60: 0.4129421336 | M60: 0 | N60: 0 | O60: 0 | P60: 0.9908772565 | Q60: 0 | R60: 0.2835217388 | S60: 0 | T60: 0.3211273149 | U60: 0 | V60: 0 | W60: 4 Central Region | X60: 1 Malé | Y60: 3 North Central | Z60: 2 North Region | AA60: 5 South Central | AB60: 6 South Region | AC60: 0.1429720735 | AD60: 0.1999219808 | AE60: 0.1832456511 | AF60: 0.15858831 | AG60: 0.05116625482 | AH60: 0.08221927407 | AI60: 11.067923 | AJ60: 5.7538 | AK60: 6.774594 | AL60: 0 | AM60: 27.478278 | AN60: 0 | AO60: 0 | AP60: 0 | AQ60: 27.478278 | AR60: 0 | AS60: 11.067923 | AT60: 0 | AU60: 12.528394 | AV60: 0 | AW60: 0 | AX60: 3.399245 | AY60: 27.478278 | AZ60: 7.419374 | BA60: 6.774594 | BB60: 2.054654 | BC60: 3.94845
A61: MDV | B61: 2017 | C61: MDV_2017_DHS | D61: 222 | E61: Hygiene ladder | F61: 1,00 Basic | G61: h_bas | H61: 86.39435132 | I61: 93.41812008 | J61: 95.97560359 | K61: 96.65149464 | L61: 97.26196905 | M61: 95.61649095 | N61: 95.24940485 | O61: 97.32441139 | P61: 100 | Q61: 97.19013573 | R61: 82.19336379 | S61: 91.56036878 | T61: 94.38876712 | U61: 94.99580502 | V61: 95.53378244 | W61: 4 Central Region | X61: 1 Malé | Y61: 3 North Central | Z61: 2 North Region | AA61: 5 South Central | AB61: 6 South Region | AC61: 94.89775108 | AD61: 97.07846283 | AE61: 84.59337698 | AF61: 95.56063972 | AG61: 93.0283282 | AH61: 91.73050039 | AI61: 5723.460438 | AJ61: 6208.101273 | AK61: 6384.700762 | AL61: 6428.957058 | AM61: 6470.146142 | AN61: 2622.559815 | AO61: 2637.614003 | AP61: 2638.805623 | AQ61: 2773.12632 | AR61: 2664.916332 | AS61: 3200.489218 | AT61: 3560.656319 | AU61: 3679.429059 | AV61: 3702.24512 | AW61: 3735.523864 | AX61: 2246.362176 | AY61: 13337.02209 | AZ61: 3425.073926 | BA61: 4081.494961 | BB61: 3729.346385 | BC61: 4396.066132
A62: MDV | B62: 2017 | C62: MDV_2017_DHS | D62: 223 | E62: Hygiene ladder | F62: 2,00 Limited | G62: h_lim | H62: 7.971482618 | I62: 4.246575417 | J62: 2.652636842 | K62: 2.139775764 | L62: 1.611953835 | M62: 3.169832626 | N62: 4.199320474 | O62: 2.225164754 | P62: 0 | Q62: 2.809864267 | R62: 10.63307767 | S62: 4.671318024 | T62: 3.221414182 | U62: 2.833019936 | V62: 1.637777661 | W62: 4 Central Region | X62: 1 Malé | Y62: 3 North Central | Z62: 2 North Region | AA62: 5 South Central | AB62: 6 South Region | AC62: 4.172099611 | AD62: 2.479222916 | AE62: 7.098444961 | AF62: 3.88756025 | AG62: 4.435333814 | AH62: 3.457809114 | AI62: 528.095468 | AJ62: 282.206174 | AK62: 176.464558 | AL62: 142.331234 | AM62: 107.231809 | AN62: 86.941861 | AO62: 116.286149 | AP62: 60.332009 | AQ62: 0 | AR62: 77.045403 | AS62: 414.036473 | AT62: 181.661108 | AU62: 125.576012 | AV62: 110.410499 | AW62: 64.039729 | AX62: 98.759419 | AY62: 340.605422 | AZ62: 287.406646 | BA62: 166.041768 | BB62: 177.804938 | BC62: 165.71105
A63: MDV | B63: 2017 | C63: MDV_2017_DHS | D63: 224 | E63: Hygiene ladder | F63: 3,00 No facility | G63: h_nfac | H63: 5.634166059 | I63: 2.335304498 | J63: 1.371759565 | K63: 1.208729591 | L63: 1.126077115 | M63: 1.213676427 | N63: 0.5512746712 | O63: 0.4504238516 | P63: 0 | Q63: 0 | R63: 7.173558534 | S63: 3.768313195 | T63: 2.389818694 | U63: 2.171175048 | V63: 2.828439899 | W63: 4 Central Region | X63: 1 Malé | Y63: 3 North Central | Z63: 2 North Region | AA63: 5 South Central | AB63: 6 South Region | AC63: 0.930149311 | AD63: 0.4423142564 | AE63: 8.308178064 | AF63: 0.5518000314 | AG63: 2.536337989 | AH63: 4.811690493 | AI63: 373.252719 | AJ63: 155.192663 | AK63: 91.255215 | AL63: 80.400936 | AM63: 74.909891 | AN63: 33.288599 | AO63: 15.26571 | AP63: 12.212568 | AQ63: 0 | AR63: 0 | AS63: 279.327864 | AT63: 146.544497 | AU63: 93.159055 | AV63: 84.616602 | AW63: 110.596529 | AX63: 22.017932 | AY63: 60.766877 | AZ63: 336.387139 | BA63: 23.567957 | BB63: 101.677447 | BC63: 230.594072
A64: MDV | B64: 2017 | C64: MDV_2017_DHS | D64: 225 | E64: Place where household members wash their hands | F64: 1 Observed, fixed place | H64: 89.03031518 | I64: 95.2229836 | J64: 97.43631296 | K64: 97.77280304 | L64: 98.39613658 | M64: 98.56688376 | N64: 99.44872533 | O64: 99.44984919 | P64: 100 | Q64: 100 | R64: 85.00581697 | S64: 92.79371693 | T64: 95.01370779 | U64: 95.5781881 | V64: 95.66105946 | W64: 4 Central Region | X64: 1 Malé | Y64: 3 North Central | Z64: 2 North Region | AA64: 5 South Central | AB64: 6 South Region | AC64: 98.16983342 | AD64: 99.49378221 | AE64: 85.43844926 | AF64: 96.05380849 | AG64: 94.80334965 | AH64: 91.8213716
A65: MDV | B65: 2017 | C65: MDV_2017_DHS | D65: 226 | E65: Place where household members wash their hands | F65: 2 Observed, mobile place | H65: 4.977982914 | I65: 2.341291584 | J65: 1.191927473 | K65: 1.018467365 | L65: 0.4483574167 | M65: 0 | N65: 0 | O65: 0.09972695523 | P65: 0 | Q65: 0 | R65: 7.585774852 | S65: 3.121330531 | T65: 2.516036383 | U65: 2.250636856 | V65: 1.461306082 | W65: 4 Central Region | X65: 1 Malé | Y65: 3 North Central | Z65: 2 North Region | AA65: 5 South Central | AB65: 6 South Region | AC65: 0.4658627317 | AD65: 0.0196729373 | AE65: 6.253372673 | AF65: 3.377931865 | AG65: 2.49493036 | AH65: 3.169323076
A66: MDV | B66: 2017 | C66: MDV_2017_DHS | D66: 227 | E66: Place where household members wash their hands | F66: 3 Not observed: not in dwelling | H66: 4.393669356 | I66: 2.103424508 | J66: 1.234111923 | K66: 0.9155756668 | L66: 1.074466891 | M66: 0.9888445933 | N66: 0 | O66: 0 | P66: 0 | Q66: 0 | R66: 5.352852868 | S66: 3.638009284 | T66: 2.387849328 | U66: 1.749238394 | V66: 2.739792793 | W66: 4 Central Region | X66: 1 Malé | Y66: 3 North Central | Z66: 2 North Region | AA66: 5 South Central | AB66: 6 South Region | AC66: 0.1143482589 | AD66: 0.1977686614 | AE66: 7.87521519 | AF66: 0.07030883389 | AG66: 2.080277587 | AH66: 4.400053872
A67: MDV | B67: 2017 | C67: MDV_2017_DHS | D67: 228 | E67: Place where household members wash their hands | F67: 4 Not observed: no permission to see | H67: 0.37888273 | I67: 0.1028215162 | J67: 0 | K67: 0 | L67: 0.0297640533 | M67: 0.2221358232 | N67: 0 | O67: 0 | P67: 0 | Q67: 0 | R67: 0.2529986488 | S67: 0.3290385455 | T67: 0.08240650048 | U67: 0 | V67: 0.05062650224 | W67: 4 Central Region | X67: 1 Malé | Y67: 3 North Central | Z67: 2 North Region | AA67: 5 South Central | AB67: 6 South Region | AC67: 0.4382307327 | AD67: 0.04442710684 | AE67: 0 | AF67: 0.01655094016 | AG67: 0.169685812 | AH67: 0.2076040991
A68: MDV | B68: 2017 | C68: MDV_2017_DHS | D68: 229 | E68: Place where household members wash their hands | F68: 5 Not observed: other reason | H68: 1.21914982 | I68: 0.2294787949 | J68: 0.137647642 | K68: 0.2931539242 | L68: 0.05127505811 | M68: 0.2221358232 | N68: 0.5512746712 | O68: 0.4504238516 | P68: 0 | Q68: 0 | R68: 1.80255666 | S68: 0.1179047076 | T68: 0 | U68: 0.4219366538 | V68: 0.08721516581 | W68: 4 Central Region | X68: 1 Malé | Y68: 3 North Central | Z68: 2 North Region | AA68: 5 South Central | AB68: 6 South Region | AC68: 0.811724852 | AD68: 0.2443490876 | AE68: 0.4329628739 | AF68: 0.4813998695 | AG68: 0.4517565966 | AH68: 0.401647354
